Body Name,Invoice Date,Department Code,Department,Expense Area Code,Expense Area,Expense Type Code,Expense Type,Amt Paid (�'s),Supplier Name,Extended Description,Transaction Number,Period
body name,Trans.date,Tier3,Tier3(T),CostC,CostC(T),Account,Account(T),Amount,Ap/Ar ID(T),Cat5(T),TransNo,Period
Rother District Council,31/03/2016,091HOUSING,Housing and Community Services,20204,Housing Administration Account,D2636,Computer Software,"1,250.00",LHS Locata (Housing Services) Ltd,Hired and contracted services - Technical Support,2011533,201905
Rother District Council,31/03/2016,091HOUSING,Housing and Community Services,20200,Housing Needs - HB (Housing Benefit),D2922,Subscriptions,"2,250.00",LHS Locata (Housing Services) Ltd,Subscriptions - Choice Based Letting Membership,2011532,201905
Rother District Council,10/12/2018,091HOUSING,Housing and Community Services,20113,Bexhill Leisure Pool,B1100,Repairs to Premises,165.00,Gilgen Doors Systems UK Ltd,Repairs to Premises - Repairs Doors,2011466,201905
Rother District Council,30/01/2019,041ENVIRON,Environmental Services,20130,Crime and Disorder Initiatives,D1201,Equipment & Materials,326.47,Littlewood Fencing Ltd,Repairs to Premises - Purchase of Materials - Build Maint,2011586,201905
Rother District Council,18/02/2019,101RESOURCES,Resources,20239,Computer Services,D2635,Computer Licences,"26,917.00",Firmstep Ltd,Computer Licences - Domain Name Renewal,2011489,201905
Rother District Council,04/03/2019,101RESOURCES,Resources,20217,Reliefs & Benefits-Council Tax Benefit,D2513,Hired and Contracted services,"6,125.00",Victoria Solutions Ltd t/a Victoria Forms,Hired and contracted services - On-line Forms,2012423,201906
Rother District Council,11/03/2019,091HOUSING,Housing and Community Services,20114,Bexhill Parks & Open Spaces,D1201,Equipment & Materials,492.36,Littlewood Fencing Ltd,Equipment & Materials - Parks- Fencing Products,2011554,201906
Rother District Council,13/03/2019,031RESOURCES,Executive Directors & Corporate Core,20173,Administrative Offices - Town Hall,B1100,Repairs to Premises,510.35,Alfa Electric Ltd,Repairs to Premises Repairs - Electrical Works,2011969,201906
Rother District Council,03/04/2019,999NOREPORT,"Acquisitions, Transformation and Regeneration",70735,Capital - Wainwright Road Development,N1004,Architects & Consultant Fees,875.00,Enka Engineering Ltd,Architects & Consultant Fees Capital-Architect and Conslt Fees,2010843,201904
Rother District Council,10/04/2019,101RESOURCES,Resources,20209,Corporate management,D2513,Hired and Contracted services,3.93,Lloyds Bank,Bank Charges,2012198,201906
Rother District Council,14/04/2019,071STRAT,Strategy and Planning,20259,Land Charges,D2922,Subscriptions,115.00,Local Land Charges Institute,Subscriptions - Subscription to Organisations,2011490,201905
Rother District Council,25/04/2019,101RESOURCES,Resources,20239,Computer Services,D2633,Computer Equipment,"26,282.10",Apple Retail UK Ltd,Computer Equipment New - Computer Hardware,2011194,201904
Rother District Council,25/04/2019,101RESOURCES,Resources,20239,Computer Services,D2633,Computer Equipment,2.30,Apple Retail UK Ltd,Computer Equipment New - Computer Hardware,2011194,201904
Rother District Council,29/04/2019,091HOUSING,Housing and Community Services,20205,Housing Loans Account,D2514,Accommodation Costs,625.00,Calvin Game,Accommodation Costs - Homelessness services Deposit for Landlords,2011101,201904
Rother District Council,29/04/2019,091HOUSING,Housing and Community Services,20205,Housing Loans Account,D2514,Accommodation Costs,625.00,Calvin Game,Accommodation Costs - Homelessness services Rent in Advance for Homeless,2011101,201904
Rother District Council,01/05/2019,101RESOURCES,Resources,20239,Computer Services,D2635,Computer Licences,"34,068.93",GGP Systems Ltd,Computer Licences - GIS System,2010979,201904
Rother District Council,01/05/2019,091HOUSING,Housing and Community Services,20128,Public Conveniences,B2611,Contract cleaning,558.13,Specialist Hygiene Services Ltd,Contract cleaning - Public Conveniences Cleaning Servic,2011055,201904
Rother District Council,01/05/2019,091HOUSING,Housing and Community Services,20128,Public Conveniences,B2611,Contract cleaning,826.03,Specialist Hygiene Services Ltd,Contract cleaning - Public Conveniences Cleaning Servic,2011055,201904
Rother District Council,01/05/2019,091HOUSING,Housing and Community Services,20128,Public Conveniences,B2611,Contract cleaning,730.66,Specialist Hygiene Services Ltd,Contract cleaning - Public Conveniences Cleaning Servic,2011055,201904
Rother District Council,01/05/2019,091HOUSING,Housing and Community Services,20128,Public Conveniences,B2611,Contract cleaning,192.78,Specialist Hygiene Services Ltd,Contract cleaning - Public Conveniences Cleaning Servic,2011055,201904
Rother District Council,01/05/2019,091HOUSING,Housing and Community Services,20128,Public Conveniences,B2611,Contract cleaning,688.31,Specialist Hygiene Services Ltd,Contract cleaning - Public Conveniences Cleaning Servic,2011055,201904
Rother District Council,01/05/2019,091HOUSING,Housing and Community Services,20128,Public Conveniences,B2611,Contract cleaning,495.62,Specialist Hygiene Services Ltd,Contract cleaning - Public Conveniences Cleaning Servic,2011055,201904
Rother District Council,01/05/2019,091HOUSING,Housing and Community Services,20128,Public Conveniences,B2611,Contract cleaning,826.03,Specialist Hygiene Services Ltd,Contract cleaning - Public Conveniences Cleaning Servic,2011055,201904
Rother District Council,01/05/2019,091HOUSING,Housing and Community Services,20128,Public Conveniences,B2611,Contract cleaning,495.62,Specialist Hygiene Services Ltd,Contract cleaning - Public Conveniences Cleaning Servic,2011055,201904
Rother District Council,01/05/2019,091HOUSING,Housing and Community Services,20128,Public Conveniences,B2611,Contract cleaning,605.67,Specialist Hygiene Services Ltd,Contract cleaning - Public Conveniences Cleaning Servic,2011055,201904
Rother District Council,01/05/2019,091HOUSING,Housing and Community Services,20128,Public Conveniences,B2611,Contract cleaning,275.30,Specialist Hygiene Services Ltd,Contract cleaning - Public Conveniences Cleaning Servic,2011055,201904
Rother District Council,01/05/2019,091HOUSING,Housing and Community Services,20128,Public Conveniences,B2611,Contract cleaning,330.41,Specialist Hygiene Services Ltd,Contract cleaning - Public Conveniences Cleaning Servic,2011055,201904
Rother District Council,01/05/2019,091HOUSING,Housing and Community Services,20128,Public Conveniences,B2611,Contract cleaning,578.18,Specialist Hygiene Services Ltd,Contract cleaning - Public Conveniences Cleaning Servic,2011055,201904
Rother District Council,01/05/2019,091HOUSING,Housing and Community Services,20128,Public Conveniences,B2611,Contract cleaning,523.11,Specialist Hygiene Services Ltd,Contract cleaning - Public Conveniences Cleaning Servic,2011055,201904
Rother District Council,01/05/2019,091HOUSING,Housing and Community Services,20128,Public Conveniences,B2611,Contract cleaning,247.77,Specialist Hygiene Services Ltd,Contract cleaning - Public Conveniences Cleaning Servic,2011055,201904
Rother District Council,01/05/2019,091HOUSING,Housing and Community Services,20128,Public Conveniences,B2611,Contract cleaning,550.60,Specialist Hygiene Services Ltd,Contract cleaning - Public Conveniences Cleaning Servic,2011055,201904
Rother District Council,01/05/2019,091HOUSING,Housing and Community Services,20128,Public Conveniences,B2611,Contract cleaning,302.83,Specialist Hygiene Services Ltd,Contract cleaning - Public Conveniences Cleaning Servic,2011055,201904
Rother District Council,01/05/2019,091HOUSING,Housing and Community Services,20128,Public Conveniences,B2611,Contract cleaning,495.62,Specialist Hygiene Services Ltd,Contract cleaning - Public Conveniences Cleaning Servic,2011055,201904
Rother District Council,01/05/2019,091HOUSING,Housing and Community Services,20128,Public Conveniences,B2611,Contract cleaning,730.15,Specialist Hygiene Services Ltd,Contract cleaning - Public Conveniences Cleaning Servic,2011055,201904
Rother District Council,01/05/2019,091HOUSING,Housing and Community Services,20128,Public Conveniences,B2611,Contract cleaning,"1,195.20",Specialist Hygiene Services Ltd,Contract cleaning - Public Conveniences Cleaning Servic,2011055,201904
Rother District Council,01/05/2019,091HOUSING,Housing and Community Services,20128,Public Conveniences,B2611,Contract cleaning,464.97,Specialist Hygiene Services Ltd,Contract cleaning - Public Conveniences Cleaning Servic,2011055,201904
Rother District Council,01/05/2019,091HOUSING,Housing and Community Services,20128,Public Conveniences,B2611,Contract cleaning,912.60,Specialist Hygiene Services Ltd,Contract cleaning - Public Conveniences Cleaning Servic,2011055,201904
Rother District Council,01/05/2019,091HOUSING,Housing and Community Services,20128,Public Conveniences,B2611,Contract cleaning,"1,211.08",Specialist Hygiene Services Ltd,Contract cleaning - Public Conveniences Cleaning Servic,2011055,201904
Rother District Council,01/05/2019,091HOUSING,Housing and Community Services,20128,Public Conveniences,B2611,Contract cleaning,"1,211.08",Specialist Hygiene Services Ltd,Contract cleaning - Public Conveniences Cleaning Servic,2011055,201904
Rother District Council,01/05/2019,091HOUSING,Housing and Community Services,20128,Public Conveniences,B2611,Contract cleaning,"1,721.81",Specialist Hygiene Services Ltd,Contract cleaning - Public Conveniences Cleaning Servic,2011055,201904
Rother District Council,01/05/2019,091HOUSING,Housing and Community Services,20128,Public Conveniences,B2611,Contract cleaning,285.84,Specialist Hygiene Services Ltd,Contract cleaning - Public Conveniences Cleaning Servic,2011055,201904
Rother District Council,01/05/2019,091HOUSING,Housing and Community Services,20128,Public Conveniences,B2611,Contract cleaning,381.21,Specialist Hygiene Services Ltd,Contract cleaning - Public Conveniences Cleaning Servic,2011055,201904
Rother District Council,01/05/2019,091HOUSING,Housing and Community Services,20128,Public Conveniences,B2611,Contract cleaning,317.69,Specialist Hygiene Services Ltd,Contract cleaning - Public Conveniences Cleaning Servic,2011055,201904
Rother District Council,01/05/2019,091HOUSING,Housing and Community Services,20128,Public Conveniences,B2611,Contract cleaning,349.45,Specialist Hygiene Services Ltd,Contract cleaning - Public Conveniences Cleaning Servic,2011055,201904
Rother District Council,01/05/2019,091HOUSING,Housing and Community Services,20128,Public Conveniences,B2611,Contract cleaning,381.21,Specialist Hygiene Services Ltd,Contract cleaning - Public Conveniences Cleaning Servic,2011055,201904
Rother District Council,01/05/2019,091HOUSING,Housing and Community Services,20128,Public Conveniences,B2611,Contract cleaning,285.84,Specialist Hygiene Services Ltd,Contract cleaning - Public Conveniences Cleaning Servic,2011055,201904
Rother District Council,01/05/2019,091HOUSING,Housing and Community Services,20109,Sports Development,D2923,Grants made,112.50,What's On Media,Grants made - Sports Development-Active Rother,2010546,201904
Rother District Council,01/05/2019,031RESOURCES,Executive Directors & Corporate Core,20159,Corporate Policy Making,D2513,Hired and Contracted services,"2,895.00",The Information Commissioner,Hired and contracted services - Data Protection Act,2010921,201904
Rother District Council,02/05/2019,031RESOURCES,Executive Directors & Corporate Core,20163,District Council Elections,B2312,Hire of premises (RDC),220.00,Icklesham Memorial Hall Trust,Hire of Premises (RDC) Hire of Premises (RDC),2011215,201904
Rother District Council,06/05/2019,101RESOURCES,Resources,20239,Computer Services,D2635,Computer Licences,300.00,ElseWare Limited,Computer Licences - BACS Software,2011383,201905
Rother District Council,08/05/2019,081ACQUISIT,"Acquisitions, Transformation and Regeneration",20121,Programme and Policy Office,D2416,Stationery ordered internally (Print Room),160.00,,Non Standard Item,1004451,201906
Rother District Council,08/05/2019,081ACQUISIT,"Acquisitions, Transformation and Regeneration",20140,"Housing Policy,Strategy & Dev",D2416,Stationery ordered internally (Print Room),-160.00,,Non Standard Item,1004451,201906
Rother District Council,10/05/2019,031RESOURCES,Executive Directors & Corporate Core,20158,Committee Service General Exp,A1107,Pension contributions on salaries,"-18,364.26",,Pension contributions on salaries,1004263,201904
Rother District Council,10/05/2019,031RESOURCES,Executive Directors & Corporate Core,20162,Electoral Registration,A1107,Pension contributions on salaries,"-13,307.25",,Pension contributions on salaries,1004263,201904
Rother District Council,10/05/2019,031RESOURCES,Executive Directors & Corporate Core,20158,Committee Service General Exp,A1109,IAS 19 current service cost adjustment,"-41,676.36",,IAS 19 current service cost adjustment,1004260,201904
Rother District Council,10/05/2019,031RESOURCES,Executive Directors & Corporate Core,20162,Electoral Registration,A1109,IAS 19 current service cost adjustment,"-30,199.85",,IAS 19 current service cost adjustment,1004260,201904
Rother District Council,10/05/2019,031RESOURCES,Executive Directors & Corporate Core,20158,Committee Service General Exp,A1107,Pension contributions on salaries,"18,364.26",,Pension contributions on salaries,1004260,201904
Rother District Council,10/05/2019,031RESOURCES,Executive Directors & Corporate Core,20162,Electoral Registration,A1107,Pension contributions on salaries,"13,307.25",,Pension contributions on salaries,1004260,201904
Rother District Council,10/05/2019,031RESOURCES,Executive Directors & Corporate Core,20158,Committee Service General Exp,A1109,IAS 19 current service cost adjustment,"41,676.36",,IAS 19 current service cost adjustment,1004263,201904
Rother District Council,10/05/2019,031RESOURCES,Executive Directors & Corporate Core,20157,"Service Manager, Corporate & Human Resources",A1109,IAS 19 current service cost adjustment,-565.29,,IAS 19 current service cost adjustment,1004260,201904
Rother District Council,10/05/2019,031RESOURCES,Executive Directors & Corporate Core,20171,Human Resources,A1109,IAS 19 current service cost adjustment,"-61,413.76",,IAS 19 current service cost adjustment,1004260,201904
Rother District Council,10/05/2019,031RESOURCES,Executive Directors & Corporate Core,20157,"Service Manager, Corporate & Human Resources",A1107,Pension contributions on salaries,249.09,,Pension contributions on salaries,1004260,201904
Rother District Council,10/05/2019,031RESOURCES,Executive Directors & Corporate Core,20171,Human Resources,A1107,Pension contributions on salaries,"27,061.34",,Pension contributions on salaries,1004260,201904
Rother District Council,10/05/2019,031RESOURCES,Executive Directors & Corporate Core,20171,Human Resources,A1109,IAS 19 current service cost adjustment,"61,413.76",,IAS 19 current service cost adjustment,1004263,201904
Rother District Council,10/05/2019,031RESOURCES,Executive Directors & Corporate Core,20157,"Service Manager, Corporate & Human Resources",A1109,IAS 19 current service cost adjustment,565.29,,IAS 19 current service cost adjustment,1004263,201904
Rother District Council,10/05/2019,011COMMUNITY,Community and Economy,20119,"Service Manager, Community and Economy",A1109,IAS 19 current service cost adjustment,"-213,068.36",,IAS 19 current service cost adjustment,1004260,201904
Rother District Council,10/05/2019,011COMMUNITY,Community and Economy,20119,"Service Manager, Community and Economy",A1109,IAS 19 current service cost adjustment,"-213,068.36",,IAS 19 current service cost adjustment,1004262,201904
Rother District Council,10/05/2019,011COMMUNITY,Community and Economy,20119,"Service Manager, Community and Economy",A1109,IAS 19 current service cost adjustment,"213,068.36",,IAS 19 current service cost adjustment,1004261,201904
Rother District Council,10/05/2019,011COMMUNITY,Community and Economy,20119,"Service Manager, Community and Economy",A1109,IAS 19 current service cost adjustment,"213,068.36",,IAS 19 current service cost adjustment,1004263,201904
Rother District Council,10/05/2019,031RESOURCES,Executive Directors & Corporate Core,20157,"Service Manager, Corporate & Human Resources",A1107,Pension contributions on salaries,-249.09,,Pension contributions on salaries,1004263,201904
Rother District Council,10/05/2019,031RESOURCES,Executive Directors & Corporate Core,20171,Human Resources,A1107,Pension contributions on salaries,"-27,061.34",,Pension contributions on salaries,1004263,201904
Rother District Council,10/05/2019,031RESOURCES,Executive Directors & Corporate Core,20185,Joint Waste procurement,A1109,IAS 19 current service cost adjustment,"12,859.82",,IAS 19 current service cost adjustment,1004263,201904
Rother District Council,10/05/2019,031RESOURCES,Executive Directors & Corporate Core,20185,Joint Waste procurement,A1107,Pension contributions on salaries,"-5,666.52",,Pension contributions on salaries,1004263,201904
Rother District Council,10/05/2019,031RESOURCES,Executive Directors & Corporate Core,20180,Emergency Planning,A1107,Pension contributions on salaries,"-3,429.07",,Pension contributions on salaries,1004263,201904
Rother District Council,10/05/2019,031RESOURCES,Executive Directors & Corporate Core,20172,Facilities Management,A1107,Pension contributions on salaries,"-11,549.02",,Pension contributions on salaries,1004263,201904
Rother District Council,10/05/2019,031RESOURCES,Executive Directors & Corporate Core,20183,Executive Directors,A1107,Pension contributions on salaries,"-44,821.91",,Pension contributions on salaries,1004263,201904
Rother District Council,10/05/2019,031RESOURCES,Executive Directors & Corporate Core,20180,Emergency Planning,A1109,IAS 19 current service cost adjustment,"-7,782.02",,IAS 19 current service cost adjustment,1004260,201904
Rother District Council,10/05/2019,031RESOURCES,Executive Directors & Corporate Core,20172,Facilities Management,A1109,IAS 19 current service cost adjustment,"-26,209.67",,IAS 19 current service cost adjustment,1004260,201904
Rother District Council,10/05/2019,031RESOURCES,Executive Directors & Corporate Core,20183,Executive Directors,A1109,IAS 19 current service cost adjustment,"-101,720.11",,IAS 19 current service cost adjustment,1004260,201904
Rother District Council,10/05/2019,031RESOURCES,Executive Directors & Corporate Core,20185,Joint Waste procurement,A1109,IAS 19 current service cost adjustment,"-12,859.82",,IAS 19 current service cost adjustment,1004260,201904
Rother District Council,10/05/2019,031RESOURCES,Executive Directors & Corporate Core,20185,Joint Waste procurement,A1107,Pension contributions on salaries,"5,666.52",,Pension contributions on salaries,1004260,201904
Rother District Council,10/05/2019,031RESOURCES,Executive Directors & Corporate Core,20180,Emergency Planning,A1107,Pension contributions on salaries,"3,429.07",,Pension contributions on salaries,1004260,201904
Rother District Council,10/05/2019,031RESOURCES,Executive Directors & Corporate Core,20183,Executive Directors,A1107,Pension contributions on salaries,"44,821.91",,Pension contributions on salaries,1004260,201904
Rother District Council,10/05/2019,031RESOURCES,Executive Directors & Corporate Core,20172,Facilities Management,A1107,Pension contributions on salaries,"11,549.02",,Pension contributions on salaries,1004260,201904
Rother District Council,10/05/2019,031RESOURCES,Executive Directors & Corporate Core,20172,Facilities Management,A1109,IAS 19 current service cost adjustment,"26,209.67",,IAS 19 current service cost adjustment,1004263,201904
Rother District Council,10/05/2019,031RESOURCES,Executive Directors & Corporate Core,20183,Executive Directors,A1109,IAS 19 current service cost adjustment,"101,720.11",,IAS 19 current service cost adjustment,1004263,201904
Rother District Council,10/05/2019,031RESOURCES,Executive Directors & Corporate Core,20162,Electoral Registration,A1109,IAS 19 current service cost adjustment,"30,199.85",,IAS 19 current service cost adjustment,1004263,201904
Rother District Council,10/05/2019,031RESOURCES,Executive Directors & Corporate Core,20180,Emergency Planning,A1109,IAS 19 current service cost adjustment,"7,782.02",,IAS 19 current service cost adjustment,1004263,201904
Rother District Council,10/05/2019,041ENVIRON,Environmental Services,20197,Service Manager Env Serv,A1107,Pension contributions on salaries,"-11,339.82",,Pension contributions on salaries,1004263,201904
Rother District Council,10/05/2019,041ENVIRON,Environmental Services,20198,Licensing Team,A1107,Pension contributions on salaries,"-50,180.02",,Pension contributions on salaries,1004263,201904
Rother District Council,10/05/2019,041ENVIRON,Environmental Services,20199,Food and Safety Team,A1107,Pension contributions on salaries,"-81,921.54",,Pension contributions on salaries,1004263,201904
Rother District Council,10/05/2019,031RESOURCES,Executive Directors & Corporate Core,20181,Internal Audit,A1107,Pension contributions on salaries,"-19,220.22",,Pension contributions on salaries,1004263,201904
Rother District Council,10/05/2019,041ENVIRON,Environmental Services,20198,Licensing Team,A1109,IAS 19 current service cost adjustment,"-113,879.95",,IAS 19 current service cost adjustment,1004260,201904
Rother District Council,10/05/2019,041ENVIRON,Environmental Services,20199,Food and Safety Team,A1109,IAS 19 current service cost adjustment,"-185,915.04",,IAS 19 current service cost adjustment,1004260,201904
Rother District Council,10/05/2019,041ENVIRON,Environmental Services,20197,Service Manager Env Serv,A1109,IAS 19 current service cost adjustment,"-25,734.91",,IAS 19 current service cost adjustment,1004260,201904
Rother District Council,10/05/2019,031RESOURCES,Executive Directors & Corporate Core,20181,Internal Audit,A1109,IAS 19 current service cost adjustment,"-43,618.92",,IAS 19 current service cost adjustment,1004260,201904
Rother District Council,10/05/2019,041ENVIRON,Environmental Services,20197,Service Manager Env Serv,A1107,Pension contributions on salaries,"11,339.82",,Pension contributions on salaries,1004260,201904
Rother District Council,10/05/2019,041ENVIRON,Environmental Services,20199,Food and Safety Team,A1107,Pension contributions on salaries,"81,921.54",,Pension contributions on salaries,1004260,201904
Rother District Council,10/05/2019,041ENVIRON,Environmental Services,20198,Licensing Team,A1107,Pension contributions on salaries,"50,180.02",,Pension contributions on salaries,1004260,201904
Rother District Council,10/05/2019,031RESOURCES,Executive Directors & Corporate Core,20181,Internal Audit,A1107,Pension contributions on salaries,"19,220.22",,Pension contributions on salaries,1004260,201904
Rother District Council,10/05/2019,041ENVIRON,Environmental Services,20197,Service Manager Env Serv,A1109,IAS 19 current service cost adjustment,"25,734.91",,IAS 19 current service cost adjustment,1004263,201904
Rother District Council,10/05/2019,041ENVIRON,Environmental Services,20198,Licensing Team,A1109,IAS 19 current service cost adjustment,"113,879.95",,IAS 19 current service cost adjustment,1004263,201904
Rother District Council,10/05/2019,041ENVIRON,Environmental Services,20199,Food and Safety Team,A1109,IAS 19 current service cost adjustment,"185,915.04",,IAS 19 current service cost adjustment,1004263,201904
Rother District Council,10/05/2019,031RESOURCES,Executive Directors & Corporate Core,20181,Internal Audit,A1109,IAS 19 current service cost adjustment,"43,618.92",,IAS 19 current service cost adjustment,1004263,201904
Rother District Council,10/05/2019,071STRAT,Strategy and Planning,20245,Planning Business Support,A1109,IAS 19 current service cost adjustment,"60,832.60",,IAS 19 current service cost adjustment,1004263,201904
Rother District Council,10/05/2019,071STRAT,Strategy and Planning,20248,"Complaints,Compliance,Enforce",A1109,IAS 19 current service cost adjustment,"26,098.16",,IAS 19 current service cost adjustment,1004263,201904
Rother District Council,10/05/2019,071STRAT,Strategy and Planning,20250,Planning Policy,A1109,IAS 19 current service cost adjustment,"62,398.29",,IAS 19 current service cost adjustment,1004263,201904
Rother District Council,10/05/2019,071STRAT,Strategy and Planning,20246,Planning Applications,A1109,IAS 19 current service cost adjustment,"228,215.63",,IAS 19 current service cost adjustment,1004263,201904
Rother District Council,10/05/2019,071STRAT,Strategy and Planning,20247,Service Manager Strategy and Planning,A1109,IAS 19 current service cost adjustment,"25,734.91",,IAS 19 current service cost adjustment,1004263,201904
Rother District Council,10/05/2019,081ACQUISIT,"Acquisitions, Transformation and Regeneration",20122,Economic Development,A1107,Pension contributions on salaries,"-35,675.66",,Pension contributions on salaries,1004263,201904
Rother District Council,10/05/2019,071STRAT,Strategy and Planning,20245,Planning Business Support,A1107,Pension contributions on salaries,"-26,805.26",,Pension contributions on salaries,1004263,201904
Rother District Council,10/05/2019,071STRAT,Strategy and Planning,20250,Planning Policy,A1107,Pension contributions on salaries,"-27,495.16",,Pension contributions on salaries,1004263,201904
Rother District Council,10/05/2019,071STRAT,Strategy and Planning,20248,"Complaints,Compliance,Enforce",A1107,Pension contributions on salaries,"-11,499.88",,Pension contributions on salaries,1004263,201904
Rother District Council,10/05/2019,071STRAT,Strategy and Planning,20246,Planning Applications,A1107,Pension contributions on salaries,"-100,560.85",,Pension contributions on salaries,1004263,201904
Rother District Council,10/05/2019,071STRAT,Strategy and Planning,20247,Service Manager Strategy and Planning,A1107,Pension contributions on salaries,"-11,339.82",,Pension contributions on salaries,1004263,201904
Rother District Council,10/05/2019,041ENVIRON,Environmental Services,20187,Pollution,A1107,Pension contributions on salaries,"-70,468.11",,Pension contributions on salaries,1004263,201904
Rother District Council,10/05/2019,081ACQUISIT,"Acquisitions, Transformation and Regeneration",20263,"Head of Service Acquisitions, Transformation and Regeneration",A1107,Pension contributions on salaries,"-7,422.74",,Pension contributions on salaries,1004263,201904
Rother District Council,10/05/2019,081ACQUISIT,"Acquisitions, Transformation and Regeneration",20243,Business Improvement,A1107,Pension contributions on salaries,"-33,853.52",,Pension contributions on salaries,1004263,201904
Rother District Council,10/05/2019,081ACQUISIT,"Acquisitions, Transformation and Regeneration",20121,Programme and Policy Office,A1107,Pension contributions on salaries,"-32,448.41",,Pension contributions on salaries,1004263,201904
Rother District Council,10/05/2019,081ACQUISIT,"Acquisitions, Transformation and Regeneration",20122,Economic Development,A1109,IAS 19 current service cost adjustment,"-80,963.34",,IAS 19 current service cost adjustment,1004260,201904
Rother District Council,10/05/2019,041ENVIRON,Environmental Services,20187,Pollution,A1109,IAS 19 current service cost adjustment,"-159,922.31",,IAS 19 current service cost adjustment,1004260,201904
Rother District Council,10/05/2019,071STRAT,Strategy and Planning,20247,Service Manager Strategy and Planning,A1109,IAS 19 current service cost adjustment,"-25,734.91",,IAS 19 current service cost adjustment,1004260,201904
Rother District Council,10/05/2019,071STRAT,Strategy and Planning,20246,Planning Applications,A1109,IAS 19 current service cost adjustment,"-228,215.63",,IAS 19 current service cost adjustment,1004260,201904
Rother District Council,10/05/2019,071STRAT,Strategy and Planning,20245,Planning Business Support,A1109,IAS 19 current service cost adjustment,"-60,832.60",,IAS 19 current service cost adjustment,1004260,201904
Rother District Council,10/05/2019,071STRAT,Strategy and Planning,20250,Planning Policy,A1109,IAS 19 current service cost adjustment,"-62,398.29",,IAS 19 current service cost adjustment,1004260,201904
Rother District Council,10/05/2019,071STRAT,Strategy and Planning,20248,"Complaints,Compliance,Enforce",A1109,IAS 19 current service cost adjustment,"-26,098.16",,IAS 19 current service cost adjustment,1004260,201904
Rother District Council,10/05/2019,081ACQUISIT,"Acquisitions, Transformation and Regeneration",20263,"Head of Service Acquisitions, Transformation and Regeneration",A1109,IAS 19 current service cost adjustment,"-16,845.37",,IAS 19 current service cost adjustment,1004260,201904
Rother District Council,10/05/2019,081ACQUISIT,"Acquisitions, Transformation and Regeneration",20243,Business Improvement,A1109,IAS 19 current service cost adjustment,"-76,828.12",,IAS 19 current service cost adjustment,1004260,201904
Rother District Council,10/05/2019,081ACQUISIT,"Acquisitions, Transformation and Regeneration",20122,Economic Development,A1107,Pension contributions on salaries,"35,675.66",,Pension contributions on salaries,1004260,201904
Rother District Council,10/05/2019,071STRAT,Strategy and Planning,20248,"Complaints,Compliance,Enforce",A1107,Pension contributions on salaries,"11,499.88",,Pension contributions on salaries,1004260,201904
Rother District Council,10/05/2019,071STRAT,Strategy and Planning,20250,Planning Policy,A1107,Pension contributions on salaries,"27,495.16",,Pension contributions on salaries,1004260,201904
Rother District Council,10/05/2019,071STRAT,Strategy and Planning,20245,Planning Business Support,A1107,Pension contributions on salaries,"26,805.26",,Pension contributions on salaries,1004260,201904
Rother District Council,10/05/2019,071STRAT,Strategy and Planning,20246,Planning Applications,A1107,Pension contributions on salaries,"100,560.85",,Pension contributions on salaries,1004260,201904
Rother District Council,10/05/2019,041ENVIRON,Environmental Services,20187,Pollution,A1107,Pension contributions on salaries,"70,468.11",,Pension contributions on salaries,1004260,201904
Rother District Council,10/05/2019,071STRAT,Strategy and Planning,20247,Service Manager Strategy and Planning,A1107,Pension contributions on salaries,"11,339.82",,Pension contributions on salaries,1004260,201904
Rother District Council,10/05/2019,081ACQUISIT,"Acquisitions, Transformation and Regeneration",20263,"Head of Service Acquisitions, Transformation and Regeneration",A1107,Pension contributions on salaries,"7,422.74",,Pension contributions on salaries,1004260,201904
Rother District Council,10/05/2019,081ACQUISIT,"Acquisitions, Transformation and Regeneration",20243,Business Improvement,A1107,Pension contributions on salaries,"33,853.52",,Pension contributions on salaries,1004260,201904
Rother District Council,10/05/2019,081ACQUISIT,"Acquisitions, Transformation and Regeneration",20121,Programme and Policy Office,A1107,Pension contributions on salaries,"32,448.41",,Pension contributions on salaries,1004260,201904
Rother District Council,10/05/2019,081ACQUISIT,"Acquisitions, Transformation and Regeneration",20122,Economic Development,A1109,IAS 19 current service cost adjustment,"80,963.34",,IAS 19 current service cost adjustment,1004263,201904
Rother District Council,10/05/2019,041ENVIRON,Environmental Services,20187,Pollution,A1109,IAS 19 current service cost adjustment,"159,922.31",,IAS 19 current service cost adjustment,1004263,201904
Rother District Council,10/05/2019,081ACQUISIT,"Acquisitions, Transformation and Regeneration",20263,"Head of Service Acquisitions, Transformation and Regeneration",A1109,IAS 19 current service cost adjustment,"16,845.37",,IAS 19 current service cost adjustment,1004263,201904
Rother District Council,10/05/2019,081ACQUISIT,"Acquisitions, Transformation and Regeneration",20243,Business Improvement,A1109,IAS 19 current service cost adjustment,"76,828.12",,IAS 19 current service cost adjustment,1004263,201904
Rother District Council,10/05/2019,091HOUSING,Housing and Community Services,20133,Refuse Collection,A1109,IAS 19 current service cost adjustment,"47,547.96",,IAS 19 current service cost adjustment,1004263,201904
Rother District Council,10/05/2019,091HOUSING,Housing and Community Services,20109,Sports Development,A1107,Pension contributions on salaries,"-2,242.57",,Pension contributions on salaries,1004263,201904
Rother District Council,10/05/2019,091HOUSING,Housing and Community Services,20120,Neighbourhood Services,A1107,Pension contributions on salaries,"-93,886.37",,Pension contributions on salaries,1004263,201904
Rother District Council,10/05/2019,091HOUSING,Housing and Community Services,20133,Refuse Collection,A1107,Pension contributions on salaries,"-20,951.52",,Pension contributions on salaries,1004263,201904
Rother District Council,10/05/2019,091HOUSING,Housing and Community Services,20137,Car Parks,A1107,Pension contributions on salaries,"-3,703.95",,Pension contributions on salaries,1004263,201904
Rother District Council,10/05/2019,091HOUSING,Housing and Community Services,20109,Sports Development,A1109,IAS 19 current service cost adjustment,"-5,089.36",,IAS 19 current service cost adjustment,1004260,201904
Rother District Council,10/05/2019,081ACQUISIT,"Acquisitions, Transformation and Regeneration",20121,Programme and Policy Office,A1109,IAS 19 current service cost adjustment,"-73,639.29",,IAS 19 current service cost adjustment,1004260,201904
Rother District Council,10/05/2019,091HOUSING,Housing and Community Services,20133,Refuse Collection,A1109,IAS 19 current service cost adjustment,"-47,547.96",,IAS 19 current service cost adjustment,1004260,201904
Rother District Council,10/05/2019,091HOUSING,Housing and Community Services,20137,Car Parks,A1109,IAS 19 current service cost adjustment,"-8,405.84",,IAS 19 current service cost adjustment,1004260,201904
Rother District Council,10/05/2019,091HOUSING,Housing and Community Services,20137,Car Parks,A1107,Pension contributions on salaries,"3,703.95",,Pension contributions on salaries,1004260,201904
Rother District Council,10/05/2019,091HOUSING,Housing and Community Services,20133,Refuse Collection,A1107,Pension contributions on salaries,"20,951.52",,Pension contributions on salaries,1004260,201904
Rother District Council,10/05/2019,091HOUSING,Housing and Community Services,20109,Sports Development,A1107,Pension contributions on salaries,"2,242.57",,Pension contributions on salaries,1004260,201904
Rother District Council,10/05/2019,091HOUSING,Housing and Community Services,20120,Neighbourhood Services,A1107,Pension contributions on salaries,"93,886.37",,Pension contributions on salaries,1004260,201904
Rother District Council,10/05/2019,091HOUSING,Housing and Community Services,20120,Neighbourhood Services,A1109,IAS 19 current service cost adjustment,"213,068.36",,IAS 19 current service cost adjustment,1004262,201904
Rother District Council,10/05/2019,091HOUSING,Housing and Community Services,20120,Neighbourhood Services,A1109,IAS 19 current service cost adjustment,"-213,068.36",,IAS 19 current service cost adjustment,1004261,201904
Rother District Council,10/05/2019,091HOUSING,Housing and Community Services,20109,Sports Development,A1109,IAS 19 current service cost adjustment,"5,089.36",,IAS 19 current service cost adjustment,1004263,201904
Rother District Council,10/05/2019,081ACQUISIT,"Acquisitions, Transformation and Regeneration",20121,Programme and Policy Office,A1109,IAS 19 current service cost adjustment,"73,639.29",,IAS 19 current service cost adjustment,1004263,201904
Rother District Council,10/05/2019,091HOUSING,Housing and Community Services,20137,Car Parks,A1109,IAS 19 current service cost adjustment,"8,405.84",,IAS 19 current service cost adjustment,1004263,201904
Rother District Council,10/05/2019,235PENSINT,Pensions Interest Cost,42209,FRS17 Items (Pensions),G1209,Pensions interest cost,"2,744,000.00",,Pensions interest cost,1004263,201904
Rother District Council,10/05/2019,235PENSINT,Pensions Interest Cost,42209,FRS17 Items (Pensions),G1209,Pensions interest cost,"-2,171,000.00",,Pensions interest cost,1004263,201904
Rother District Council,10/05/2019,911ACCFUND,Accounting - funding reversals,54505,IAS 19 Insert Actual Charges,K1114,IAS 19 adjustment,"1,814,000.00",,IAS 19 adjustment,1004263,201904
Rother District Council,10/05/2019,911ACCFUND,Accounting - funding reversals,54505,IAS 19 Insert Actual Charges,K1114,IAS 19 adjustment,"-3,183,000.00",,IAS 19 adjustment,1004263,201904
Rother District Council,10/05/2019,101RESOURCES,Resources,20239,Computer Services,A1107,Pension contributions on salaries,"-34,866.52",,Pension contributions on salaries,1004263,201904
Rother District Council,10/05/2019,101RESOURCES,Resources,20240,Printing Services,A1107,Pension contributions on salaries,"-12,079.29",,Pension contributions on salaries,1004263,201904
Rother District Council,10/05/2019,101RESOURCES,Resources,20215,Revenue and Benefits,A1107,Pension contributions on salaries,"-137,051.34",,Pension contributions on salaries,1004263,201904
Rother District Council,10/05/2019,999NOREPORT,Resources,90000,Balance sheet all accounts,P1015,Pension liability,"827,000.00",,Pension liability,1004263,201904
Rother District Council,10/05/2019,999NOREPORT,Resources,90000,Balance sheet all accounts,P1015,Pension liability,"-1,369,000.00",,Pension liability,1004263,201904
Rother District Council,10/05/2019,999NOREPORT,Resources,90000,Balance sheet all accounts,P1005,Pension Reserve,"1,369,000.00",,Pension Reserve,1004263,201904
Rother District Council,10/05/2019,999NOREPORT,Resources,90000,Balance sheet all accounts,P1005,Pension Reserve,"5,772,000.00",,Pension Reserve,1004263,201904
Rother District Council,10/05/2019,999NOREPORT,Resources,90000,Balance sheet all accounts,P1005,Pension Reserve,"103,000.00",,Pension Reserve,1004263,201904
Rother District Council,10/05/2019,999NOREPORT,Resources,90000,Balance sheet all accounts,P1005,Pension Reserve,"-6,702,000.00",,Pension Reserve,1004263,201904
Rother District Council,10/05/2019,101RESOURCES,Resources,20215,Revenue and Benefits,A1109,IAS 19 current service cost adjustment,"-311,028.17",,IAS 19 current service cost adjustment,1004260,201904
Rother District Council,10/05/2019,101RESOURCES,Resources,20240,Printing Services,A1109,IAS 19 current service cost adjustment,"-27,413.07",,IAS 19 current service cost adjustment,1004260,201904
Rother District Council,10/05/2019,101RESOURCES,Resources,20239,Computer Services,A1109,IAS 19 current service cost adjustment,"-79,127.06",,IAS 19 current service cost adjustment,1004260,201904
Rother District Council,10/05/2019,235PENSINT,Pensions Interest Cost,42209,FRS17 Items (Pensions),G1209,Pensions interest cost,"-2,744,000.00",,Pensions interest cost,1004260,201904
Rother District Council,10/05/2019,235PENSINT,Pensions Interest Cost,42209,FRS17 Items (Pensions),G1209,Pensions interest cost,"2,171,000.00",,Pensions interest cost,1004260,201904
Rother District Council,10/05/2019,911ACCFUND,Accounting - funding reversals,54505,IAS 19 Insert Actual Charges,K1114,IAS 19 adjustment,"-1,814,000.00",,IAS 19 adjustment,1004260,201904
Rother District Council,10/05/2019,911ACCFUND,Accounting - funding reversals,54505,IAS 19 Insert Actual Charges,K1114,IAS 19 adjustment,"3,183,000.00",,IAS 19 adjustment,1004260,201904
Rother District Council,10/05/2019,101RESOURCES,Resources,20239,Computer Services,A1107,Pension contributions on salaries,"34,866.52",,Pension contributions on salaries,1004260,201904
Rother District Council,10/05/2019,101RESOURCES,Resources,20240,Printing Services,A1107,Pension contributions on salaries,"12,079.29",,Pension contributions on salaries,1004260,201904
Rother District Council,10/05/2019,101RESOURCES,Resources,20215,Revenue and Benefits,A1107,Pension contributions on salaries,"137,051.34",,Pension contributions on salaries,1004260,201904
Rother District Council,10/05/2019,999NOREPORT,Resources,90000,Balance sheet all accounts,P1005,Pension Reserve,"-1,369,000.00",,Pension Reserve,1004260,201904
Rother District Council,10/05/2019,999NOREPORT,Resources,90000,Balance sheet all accounts,P1005,Pension Reserve,"-5,772,000.00",,Pension Reserve,1004260,201904
Rother District Council,10/05/2019,999NOREPORT,Resources,90000,Balance sheet all accounts,P1005,Pension Reserve,"-103,000.00",,Pension Reserve,1004260,201904
Rother District Council,10/05/2019,999NOREPORT,Resources,90000,Balance sheet all accounts,P1005,Pension Reserve,"6,702,000.00",,Pension Reserve,1004260,201904
Rother District Council,10/05/2019,999NOREPORT,Resources,90000,Balance sheet all accounts,P1015,Pension liability,"-827,000.00",,Pension liability,1004260,201904
Rother District Council,10/05/2019,999NOREPORT,Resources,90000,Balance sheet all accounts,P1015,Pension liability,"1,369,000.00",,Pension liability,1004260,201904
Rother District Council,10/05/2019,101RESOURCES,Resources,20215,Revenue and Benefits,A1109,IAS 19 current service cost adjustment,"311,028.17",,IAS 19 current service cost adjustment,1004263,201904
Rother District Council,10/05/2019,101RESOURCES,Resources,20240,Printing Services,A1109,IAS 19 current service cost adjustment,"27,413.07",,IAS 19 current service cost adjustment,1004263,201904
Rother District Council,10/05/2019,101RESOURCES,Resources,20239,Computer Services,A1109,IAS 19 current service cost adjustment,"79,127.06",,IAS 19 current service cost adjustment,1004263,201904
Rother District Council,10/05/2019,091HOUSING,Housing and Community Services,20204,Housing Administration Account,A1107,Pension contributions on salaries,"-53,712.95",,Pension contributions on salaries,1004263,201904
Rother District Council,10/05/2019,091HOUSING,Housing and Community Services,20264,Property Maintenance Team,A1107,Pension contributions on salaries,"-26,947.97",,Pension contributions on salaries,1004263,201904
Rother District Council,10/05/2019,091HOUSING,Housing and Community Services,20236,Customer Services and Development,A1107,Pension contributions on salaries,"-49,800.33",,Pension contributions on salaries,1004263,201904
Rother District Council,10/05/2019,101RESOURCES,Resources,20226,Service Manager Finance and Welfare,A1107,Pension contributions on salaries,"-13,086.52",,Pension contributions on salaries,1004263,201904
Rother District Council,10/05/2019,091HOUSING,Housing and Community Services,20262,Head of Service Housing and Community Services,A1107,Pension contributions on salaries,"-8,034.82",,Pension contributions on salaries,1004263,201904
Rother District Council,10/05/2019,101RESOURCES,Resources,20214,Unapportion Central Overheads,D2513,Hired and Contracted services,"-663,930.53",,Hired and Contracted services,1004263,201904
Rother District Council,10/05/2019,101RESOURCES,Resources,20222,Accountancy,A1107,Pension contributions on salaries,"-49,025.87",,Pension contributions on salaries,1004263,201904
Rother District Council,10/05/2019,091HOUSING,Housing and Community Services,20204,Housing Administration Account,A1109,IAS 19 current service cost adjustment,"-121,897.68",,IAS 19 current service cost adjustment,1004260,201904
Rother District Council,10/05/2019,091HOUSING,Housing and Community Services,20264,Property Maintenance Team,A1109,IAS 19 current service cost adjustment,"-61,156.48",,IAS 19 current service cost adjustment,1004260,201904
Rother District Council,10/05/2019,101RESOURCES,Resources,20226,Service Manager Finance and Welfare,A1109,IAS 19 current service cost adjustment,"-29,698.92",,IAS 19 current service cost adjustment,1004260,201904
Rother District Council,10/05/2019,091HOUSING,Housing and Community Services,20236,Customer Services and Development,A1109,IAS 19 current service cost adjustment,"-113,018.27",,IAS 19 current service cost adjustment,1004260,201904
Rother District Council,10/05/2019,091HOUSING,Housing and Community Services,20262,Head of Service Housing and Community Services,A1109,IAS 19 current service cost adjustment,"-18,234.45",,IAS 19 current service cost adjustment,1004260,201904
Rother District Council,10/05/2019,101RESOURCES,Resources,20222,Accountancy,A1109,IAS 19 current service cost adjustment,"-111,260.68",,IAS 19 current service cost adjustment,1004260,201904
Rother District Council,10/05/2019,091HOUSING,Housing and Community Services,20204,Housing Administration Account,A1107,Pension contributions on salaries,"53,712.95",,Pension contributions on salaries,1004260,201904
Rother District Council,10/05/2019,091HOUSING,Housing and Community Services,20236,Customer Services and Development,A1107,Pension contributions on salaries,"49,800.33",,Pension contributions on salaries,1004260,201904
Rother District Council,10/05/2019,101RESOURCES,Resources,20226,Service Manager Finance and Welfare,A1107,Pension contributions on salaries,"13,086.52",,Pension contributions on salaries,1004260,201904
Rother District Council,10/05/2019,091HOUSING,Housing and Community Services,20264,Property Maintenance Team,A1107,Pension contributions on salaries,"26,947.97",,Pension contributions on salaries,1004260,201904
Rother District Council,10/05/2019,091HOUSING,Housing and Community Services,20262,Head of Service Housing and Community Services,A1107,Pension contributions on salaries,"8,034.82",,Pension contributions on salaries,1004260,201904
Rother District Council,10/05/2019,101RESOURCES,Resources,20222,Accountancy,A1107,Pension contributions on salaries,"49,025.87",,Pension contributions on salaries,1004260,201904
Rother District Council,10/05/2019,101RESOURCES,Resources,20214,Unapportion Central Overheads,D2513,Hired and Contracted services,"663,930.53",,Hired and Contracted services,1004260,201904
Rother District Council,10/05/2019,101RESOURCES,Resources,20222,Accountancy,A1109,IAS 19 current service cost adjustment,"111,260.68",,IAS 19 current service cost adjustment,1004263,201904
Rother District Council,10/05/2019,091HOUSING,Housing and Community Services,20262,Head of Service Housing and Community Services,A1109,IAS 19 current service cost adjustment,"18,234.45",,IAS 19 current service cost adjustment,1004263,201904
Rother District Council,10/05/2019,091HOUSING,Housing and Community Services,20264,Property Maintenance Team,A1109,IAS 19 current service cost adjustment,"61,156.48",,IAS 19 current service cost adjustment,1004263,201904
Rother District Council,10/05/2019,101RESOURCES,Resources,20226,Service Manager Finance and Welfare,A1109,IAS 19 current service cost adjustment,"29,698.92",,IAS 19 current service cost adjustment,1004263,201904
Rother District Council,10/05/2019,091HOUSING,Housing and Community Services,20236,Customer Services and Development,A1109,IAS 19 current service cost adjustment,"113,018.27",,IAS 19 current service cost adjustment,1004263,201904
Rother District Council,10/05/2019,091HOUSING,Housing and Community Services,20204,Housing Administration Account,A1109,IAS 19 current service cost adjustment,"121,897.68",,IAS 19 current service cost adjustment,1004263,201904
Rother District Council,14/05/2019,081ACQUISIT,"Acquisitions, Transformation and Regeneration",20146,West Trading Estate,B2202,Gas,71.40,Gazprom Marketing & Trading Retail Ltd,Gas - Gas Charges,2010986,201904
Rother District Council,14/05/2019,081ACQUISIT,"Acquisitions, Transformation and Regeneration",20267,Property Investment Strategy - 18-40 Beeching Road ( Land and Buildings),B2202,Gas,71.40,Gazprom Marketing & Trading Retail Ltd,Gas - Gas Charges,2010985,201904
Rother District Council,15/05/2019,091HOUSING,Housing and Community Services,20107,Camber Beach & Foreshore,C1104,Derv,3.80,Allstar Business Solutions,Derv - Fuel Service fee payable on fuel cards,2010910,201904
Rother District Council,15/05/2019,081ACQUISIT,"Acquisitions, Transformation and Regeneration",20118,Tourism,D2513,Hired and Contracted services,"1,500.00",Little Gate Farm,Hired and contracted services - Rye Marketing Campaign,2012274,201906
Rother District Council,15/05/2019,091HOUSING,Housing and Community Services,20107,Camber Beach & Foreshore,C1104,Derv,36.11,Allstar Business Solutions,Derv,2010910,201904
Rother District Council,15/05/2019,091HOUSING,Housing and Community Services,20107,Camber Beach & Foreshore,C1104,Derv,30.76,Allstar Business Solutions,Derv,2010910,201904
Rother District Council,15/05/2019,091HOUSING,Housing and Community Services,20107,Camber Beach & Foreshore,C1103,Petrol,15.00,Allstar Business Solutions,Petrol,2010910,201904
Rother District Council,15/05/2019,091HOUSING,Housing and Community Services,20137,Car Parks,C1103,Petrol,22.51,Allstar Business Solutions,Petrol,2010910,201904
Rother District Council,15/05/2019,091HOUSING,Housing and Community Services,20145,Maintenance Services,C1104,Derv,41.67,Allstar Business Solutions,Derv,2010910,201904
Rother District Council,15/05/2019,091HOUSING,Housing and Community Services,20145,Maintenance Services,C1104,Derv,56.67,Allstar Business Solutions,Derv,2010910,201904
Rother District Council,17/05/2019,071STRAT,Strategy and Planning,20246,Planning Applications,E1101,Third party payment other LAs,979.02,Wealden District Council,Hired and contracted services - Legal Advice,2011496,201905
Rother District Council,23/05/2019,081ACQUISIT,"Acquisitions, Transformation and Regeneration",20153,"Elva Business Centre, Bexhill",B2201,Electricity,815.69,Laser Energy Buying Group (Kent County Council Commercial Services),Electricity - Electricity Charges,2010911,201904
Rother District Council,23/05/2019,091HOUSING,Housing and Community Services,20108,Bexhill Promenade & Foreshore,B2201,Electricity,29.10,Laser Energy Buying Group (Kent County Council Commercial Services),Electricity - Electricity Charges,2010911,201904
Rother District Council,23/05/2019,091HOUSING,Housing and Community Services,20114,Bexhill Parks & Open Spaces,B2201,Electricity,43.59,Laser Energy Buying Group (Kent County Council Commercial Services),Electricity - Electricity Charges,2010911,201904
Rother District Council,23/05/2019,091HOUSING,Housing and Community Services,20125,Coast Protection,B2201,Electricity,679.87,Laser Energy Buying Group (Kent County Council Commercial Services),Electricity - Electricity Charges,2010911,201904
Rother District Council,23/05/2019,091HOUSING,Housing and Community Services,20128,Public Conveniences,B2201,Electricity,25.14,Laser Energy Buying Group (Kent County Council Commercial Services),Electricity - Electricity Charges,2010911,201904
Rother District Council,23/05/2019,091HOUSING,Housing and Community Services,20128,Public Conveniences,B2201,Electricity,130.78,Laser Energy Buying Group (Kent County Council Commercial Services),Electricity - Electricity Charges,2010911,201904
Rother District Council,23/05/2019,091HOUSING,Housing and Community Services,20102,Rother Museum Services,B2201,Electricity,"1,278.78",Laser Energy Buying Group (Kent County Council Commercial Services),Electricity - Electricity Charges,2010911,201904
Rother District Council,23/05/2019,081ACQUISIT,"Acquisitions, Transformation and Regeneration",20154,Committee Property Account,B2202,Gas,9.00,Laser Energy Buying Group (Kent County Council Commercial Services),Gas - Gas Charges,2010912,201904
Rother District Council,23/05/2019,081ACQUISIT,"Acquisitions, Transformation and Regeneration",20154,Committee Property Account,B2202,Gas,20.33,Laser Energy Buying Group (Kent County Council Commercial Services),Gas - Gas Charges,2010912,201904
Rother District Council,23/05/2019,031RESOURCES,Executive Directors & Corporate Core,20173,Administrative Offices - Town Hall,B2202,Gas,648.37,Laser Energy Buying Group (Kent County Council Commercial Services),Gas - Gas Charges,2010912,201904
Rother District Council,23/05/2019,031RESOURCES,Executive Directors & Corporate Core,20176,Administrative Offices - Print Room,B2202,Gas,64.75,Laser Energy Buying Group (Kent County Council Commercial Services),Gas - Gas Charges,2010912,201904
Rother District Council,23/05/2019,031RESOURCES,Executive Directors & Corporate Core,20175,Administrative Offices - T.H. Annex (NOT CHP),B2202,Gas,269.61,Laser Energy Buying Group (Kent County Council Commercial Services),Gas - Gas Charges,2010912,201904
Rother District Council,23/05/2019,021CORP,Corporate Services & Human Resources,20167,European Elections,B2312,Hire of premises (RDC),80.00,Guestling Village Hall,Hire of Premises (RDC) Hire of Premises (RDC),2011414,201905
Rother District Council,23/05/2019,021CORP,Corporate Services & Human Resources,20167,European Elections,B2312,Hire of premises (RDC),70.00,Icklesham Memorial Hall Trust,Hire of Premises (RDC) Hire of Premises (RDC),2011216,201904
Rother District Council,23/05/2019,021CORP,Corporate Services & Human Resources,20167,European Elections,B2312,Hire of premises (RDC),200.00,Whatlington Village Hall,Hire of Premises (RDC) Hire of Premises (RDC),2010727,201904
Rother District Council,23/05/2019,021CORP,Corporate Services & Human Resources,20167,European Elections,B2312,Hire of premises (RDC),208.00,Winchelsea New Hall Management Committee,Hire of Premises (RDC) Hire of Premises (RDC),2010728,201904
Rother District Council,23/05/2019,021CORP,Corporate Services & Human Resources,20167,European Elections,B2312,Hire of premises (RDC),125.00,Winchelsea Beach Community Association,Hire of Premises (RDC) Hire of Premises (RDC),2010729,201904
Rother District Council,23/05/2019,021CORP,Corporate Services & Human Resources,20167,European Elections,B2312,Hire of premises (RDC),128.00,Westfield Church Hall,Hire of Premises (RDC) Hire of Premises (RDC),2010730,201904
Rother District Council,23/05/2019,021CORP,Corporate Services & Human Resources,20167,European Elections,B2312,Hire of premises (RDC),300.00,Cooden Beach Sports and Social Club,Hire of Premises (RDC) Hire of Premises (RDC),2010731,201904
Rother District Council,23/05/2019,021CORP,Corporate Services & Human Resources,20167,European Elections,B2312,Hire of premises (RDC),192.00,Burwash Common Playing Fields,Hire of Premises (RDC) Hire of Premises (RDC),2010943,201904
Rother District Council,23/05/2019,021CORP,Corporate Services & Human Resources,20167,European Elections,B2312,Hire of premises (RDC),168.00,Stonegate Village Hall,Hire of Premises (RDC) Hire of Premises (RDC),2010852,201904
Rother District Council,23/05/2019,021CORP,Corporate Services & Human Resources,20167,European Elections,B2312,Hire of premises (RDC),400.00,Salts Farm Shop,Hire of Premises (RDC) Hire of Premises (RDC),2010853,201904
Rother District Council,23/05/2019,021CORP,Corporate Services & Human Resources,20167,European Elections,B2312,Hire of premises (RDC),280.00,Beckley Village Hall,Hire of Premises (RDC) Hire of Premises (RDC),2010682,201904
Rother District Council,23/05/2019,021CORP,Corporate Services & Human Resources,20167,European Elections,B2312,Hire of premises (RDC),300.00,Beulah Baptist Church,Hire of Premises (RDC) Hire of Premises (RDC),2010683,201904
Rother District Council,23/05/2019,021CORP,Corporate Services & Human Resources,20167,European Elections,B2312,Hire of premises (RDC),155.00,Sackville Road Methodist Church,Hire of Premises (RDC) Hire of Premises (RDC),2010684,201904
Rother District Council,23/05/2019,021CORP,Corporate Services & Human Resources,20167,European Elections,B2312,Hire of premises (RDC),265.00,St Augustines Hall,Hire of Premises (RDC) Hire of Premises (RDC),2010685,201904
Rother District Council,23/05/2019,021CORP,Corporate Services & Human Resources,20167,European Elections,B2312,Hire of premises (RDC),400.00,Bexhill Amateur Athletic Community Association,Hire of Premises (RDC) Hire of Premises (RDC),2010686,201904
Rother District Council,23/05/2019,021CORP,Corporate Services & Human Resources,20167,European Elections,B2312,Hire of premises (RDC),304.00,St Peter's Community Association,Hire of Premises (RDC) Hire of Premises (RDC),2010687,201904
Rother District Council,23/05/2019,021CORP,Corporate Services & Human Resources,20167,European Elections,B2312,Hire of premises (RDC),150.00,Christchurch Methodist Church,Hire of Premises (RDC) Hire of Premises (RDC),2010688,201904
Rother District Council,23/05/2019,021CORP,Corporate Services & Human Resources,20167,European Elections,B2312,Hire of premises (RDC),220.00,St Mary Magdalene�s Church,Hire of Premises (RDC) Hire of Premises (RDC),2010689,201904
Rother District Council,23/05/2019,021CORP,Corporate Services & Human Resources,20167,European Elections,B2312,Hire of premises (RDC),180.00,L.C.C.A. (Little Common Community Association),Hire of Premises (RDC) Hire of Premises (RDC),2010690,201904
Rother District Council,23/05/2019,021CORP,Corporate Services & Human Resources,20167,European Elections,B2312,Hire of premises (RDC),240.00,St Michael�s Community Centre,Hire of Premises (RDC) Hire of Premises (RDC),2010691,201904
Rother District Council,23/05/2019,021CORP,Corporate Services & Human Resources,20167,European Elections,B2312,Hire of premises (RDC),350.00,Pebsham Community Association,Hire of Premises (RDC) Hire of Premises (RDC),2010692,201904
Rother District Council,23/05/2019,021CORP,Corporate Services & Human Resources,20167,European Elections,B2312,Hire of premises (RDC),162.50,All Saints Church Sidley,Hire of Premises (RDC) Hire of Premises (RDC),2010693,201904
Rother District Council,23/05/2019,021CORP,Corporate Services & Human Resources,20167,European Elections,B2312,Hire of premises (RDC),375.00,Sidley Baptist Church,Hire of Premises (RDC) Hire of Premises (RDC),2010694,201904
Rother District Council,23/05/2019,021CORP,Corporate Services & Human Resources,20167,European Elections,B2312,Hire of premises (RDC),225.00,St Mary Magdalenes Church,Hire of Premises (RDC) Hire of Premises (RDC),2010695,201904
Rother District Council,23/05/2019,021CORP,Corporate Services & Human Resources,20167,European Elections,B2312,Hire of premises (RDC),175.00,Parker and  Ashcombe Almshouse Trust,Hire of Premises (RDC) Hire of Premises (RDC),2010696,201904
Rother District Council,23/05/2019,021CORP,Corporate Services & Human Resources,20167,European Elections,B2312,Hire of premises (RDC),165.00,Brede Village Hall,Hire of Premises (RDC) Hire of Premises (RDC),2010697,201904
Rother District Council,23/05/2019,021CORP,Corporate Services & Human Resources,20167,European Elections,B2312,Hire of premises (RDC),150.00,Ashburnham and Penhurst Village Hall,Hire of Premises (RDC) Hire of Premises (RDC),2010681,201904
Rother District Council,23/05/2019,021CORP,Corporate Services & Human Resources,20167,European Elections,B2312,Hire of premises (RDC),240.00,Brightling Village Hall Committee,Hire of Premises (RDC) Hire of Premises (RDC),2010698,201904
Rother District Council,23/05/2019,021CORP,Corporate Services & Human Resources,20167,European Elections,B2312,Hire of premises (RDC),272.50,Burwash Village Hall,Hire of Premises (RDC) Hire of Premises (RDC),2010699,201904
Rother District Council,23/05/2019,021CORP,Corporate Services & Human Resources,20167,European Elections,B2312,Hire of premises (RDC),200.00,Camber Memorial Hall,Hire of Premises (RDC) Hire of Premises (RDC),2010700,201904
Rother District Council,23/05/2019,021CORP,Corporate Services & Human Resources,20167,European Elections,B2312,Hire of premises (RDC),150.00,Catsfield Village Hall,Hire of Premises (RDC) Hire of Premises (RDC),2010701,201904
Rother District Council,23/05/2019,021CORP,Corporate Services & Human Resources,20167,European Elections,B2312,Hire of premises (RDC),200.00,Parochial Church Council of Crowhurst,Hire of Premises (RDC) Hire of Premises (RDC),2010702,201904
Rother District Council,23/05/2019,021CORP,Corporate Services & Human Resources,20167,European Elections,B2312,Hire of premises (RDC),250.00,Dallington Village Hall,Hire of Premises (RDC) Hire of Premises (RDC),2010703,201904
Rother District Council,23/05/2019,021CORP,Corporate Services & Human Resources,20167,European Elections,B2312,Hire of premises (RDC),200.00,Etchingham Trust For Sports and Recreation,Hire of Premises (RDC) Hire of Premises (RDC),2010704,201904
Rother District Council,23/05/2019,021CORP,Corporate Services & Human Resources,20167,European Elections,B2312,Hire of premises (RDC),160.00,The Herdman Association,Hire of Premises (RDC) Hire of Premises (RDC),2010705,201904
Rother District Council,23/05/2019,021CORP,Corporate Services & Human Resources,20167,European Elections,B2312,Hire of premises (RDC),100.00,Fairlight Village Hall,Hire of Premises (RDC) Hire of Premises (RDC),2010706,201904
Rother District Council,23/05/2019,021CORP,Corporate Services & Human Resources,20167,European Elections,B2312,Hire of premises (RDC),70.00,Flimwell Playing Field Association,Hire of Premises (RDC) Hire of Premises (RDC),2010707,201904
Rother District Council,23/05/2019,021CORP,Corporate Services & Human Resources,20167,European Elections,B2312,Hire of premises (RDC),150.00,Hurst Green Village Hall,Hire of Premises (RDC) Hire of Premises (RDC),2010708,201904
Rother District Council,23/05/2019,021CORP,Corporate Services & Human Resources,20167,European Elections,B2312,Hire of premises (RDC),150.00,Icklesham Memorial Hall Trust,Hire of Premises (RDC) Hire of Premises (RDC),2010709,201904
Rother District Council,23/05/2019,021CORP,Corporate Services & Human Resources,20167,European Elections,B2312,Hire of premises (RDC),232.50,Iden Village Hall,Hire of Premises (RDC) Hire of Premises (RDC),2010710,201904
Rother District Council,23/05/2019,021CORP,Corporate Services & Human Resources,20167,European Elections,B2312,Hire of premises (RDC),157.50,Mountfield Village Hall,Hire of Premises (RDC) Hire of Premises (RDC),2010711,201904
Rother District Council,23/05/2019,021CORP,Corporate Services & Human Resources,20167,European Elections,B2312,Hire of premises (RDC),150.00,Netherfield C E Primary School,Hire of Premises (RDC) Hire of Premises (RDC),2010712,201904
Rother District Council,23/05/2019,021CORP,Corporate Services & Human Resources,20167,European Elections,B2312,Hire of premises (RDC),250.00,Northiam Village Hall Trust,Hire of Premises (RDC) Hire of Premises (RDC),2010713,201904
Rother District Council,23/05/2019,021CORP,Corporate Services & Human Resources,20167,European Elections,B2312,Hire of premises (RDC),400.00,Peasmarsh Memorial Hall,Hire of Premises (RDC) Hire of Premises (RDC),2010714,201904
Rother District Council,23/05/2019,021CORP,Corporate Services & Human Resources,20167,European Elections,B2312,Hire of premises (RDC),250.00,Pett Village Hall,Hire of Premises (RDC) Hire of Premises (RDC),2010715,201904
Rother District Council,23/05/2019,021CORP,Corporate Services & Human Resources,20167,European Elections,B2312,Hire of premises (RDC),108.50,Playden Women�s Institute Hall,Hire of Premises (RDC) Hire of Premises (RDC),2010716,201904
Rother District Council,23/05/2019,021CORP,Corporate Services & Human Resources,20167,European Elections,B2312,Hire of premises (RDC),170.00,Robertsbridge Community Association,Hire of Premises (RDC) Hire of Premises (RDC),2010717,201904
Rother District Council,23/05/2019,021CORP,Corporate Services & Human Resources,20167,European Elections,B2312,Hire of premises (RDC),250.00,Optivo,Hire of Premises (RDC) Hire of Premises (RDC),2010718,201904
Rother District Council,23/05/2019,021CORP,Corporate Services & Human Resources,20167,European Elections,B2312,Hire of premises (RDC),240.09,Rye Community Centre Association,Hire of Premises (RDC) Hire of Premises (RDC),2010719,201904
Rother District Council,23/05/2019,021CORP,Corporate Services & Human Resources,20167,European Elections,B2312,Hire of premises (RDC),269.00,Sedlescombe Village Hall,Hire of Premises (RDC) Hire of Premises (RDC),2010720,201904
Rother District Council,23/05/2019,021CORP,Corporate Services & Human Resources,20167,European Elections,B2312,Hire of premises (RDC),200.00,Ewhurst and  Staplecross Village Hall,Hire of Premises (RDC) Hire of Premises (RDC),2010721,201904
Rother District Council,23/05/2019,021CORP,Corporate Services & Human Resources,20167,European Elections,B2312,Hire of premises (RDC),375.00,Wilmoths Citroen,Hire of Premises (RDC) Hire of Premises (RDC),2010722,201904
Rother District Council,23/05/2019,021CORP,Corporate Services & Human Resources,20167,European Elections,B2312,Hire of premises (RDC),85.00,Three Oaks Village Hall,Hire of Premises (RDC) Hire of Premises (RDC),2010723,201904
Rother District Council,23/05/2019,021CORP,Corporate Services & Human Resources,20167,European Elections,B2312,Hire of premises (RDC),225.00,Beatrice Drewe Trust,Hire of Premises (RDC) Hire of Premises (RDC),2010724,201904
Rother District Council,23/05/2019,021CORP,Corporate Services & Human Resources,20167,European Elections,B2312,Hire of premises (RDC),290.00,St Mary�s Community Hall Management Committee,Hire of Premises (RDC) Hire of Premises (RDC),2010725,201904
Rother District Council,23/05/2019,021CORP,Corporate Services & Human Resources,20167,European Elections,B2312,Hire of premises (RDC),250.00,Life with Hope Trust/ Battle Baptist Church,Hire of Premises (RDC) Hire of Premises (RDC),2010726,201904
Rother District Council,23/05/2019,021CORP,Corporate Services & Human Resources,20167,European Elections,B2312,Hire of premises (RDC),312.00,Battle Methodist Church,Hire of Premises (RDC) Hire of Premises (RDC),2010802,201904
Rother District Council,23/05/2019,021CORP,Corporate Services & Human Resources,20167,European Elections,B2312,Hire of premises (RDC),160.00,Rye Harbour Village Hall,Hire of Premises (RDC) Hire of Premises (RDC),2010809,201904
Rother District Council,23/05/2019,091HOUSING,Housing and Community Services,20107,Camber Beach & Foreshore,D2513,Hired and Contracted services,320.00,Haven Security Ltd,Hired and contracted services - CCTV System Maintenance,2009973,201904
Rother District Council,23/05/2019,999NOREPORT,Resources,90000,Balance sheet all accounts,P1099,Owed by - Colonnade Bexhill Ltd,59.85,HMRC Shipley (Corporation Tax),Owed by - Colonnade Bexhill Ltd,2010733,201904
Rother District Council,23/05/2019,071STRAT,Strategy and Planning,20246,Planning Applications,A1100,Salaries,"1,800.00",Mr R Wilson,Salaries,2010841,201904
Rother District Council,24/05/2019,101RESOURCES,Resources,20239,Computer Services,D2633,Computer Equipment,-379.21,Apple Retail UK Ltd,Computer Equipment New - Computer Hardware,2010011,201904
Rother District Council,28/05/2019,091HOUSING,Housing and Community Services,20200,Housing Needs - HB (Housing Benefit),D2514,Accommodation Costs,142.80,South Down Residential Ltd,Accommodation Costs,2011193,201904
Rother District Council,28/05/2019,091HOUSING,Housing and Community Services,20200,Housing Needs - HB (Housing Benefit),D2514,Accommodation Costs,35.70,South Down Residential Ltd,Accommodation Costs,2011193,201904
Rother District Council,28/05/2019,091HOUSING,Housing and Community Services,20200,Housing Needs - HB (Housing Benefit),D2514,Accommodation Costs,330.40,South Down Residential Ltd,Accommodation Costs,2011193,201904
Rother District Council,28/05/2019,091HOUSING,Housing and Community Services,20200,Housing Needs - HB (Housing Benefit),D2514,Accommodation Costs,82.60,South Down Residential Ltd,Accommodation Costs,2011193,201904
Rother District Council,28/05/2019,091HOUSING,Housing and Community Services,20200,Housing Needs - HB (Housing Benefit),D2514,Accommodation Costs,142.80,South Down Residential Ltd,Accommodation Costs,2011193,201904
Rother District Council,28/05/2019,091HOUSING,Housing and Community Services,20200,Housing Needs - HB (Housing Benefit),D2514,Accommodation Costs,35.70,South Down Residential Ltd,Accommodation Costs,2011193,201904
Rother District Council,28/05/2019,091HOUSING,Housing and Community Services,20200,Housing Needs - HB (Housing Benefit),D2514,Accommodation Costs,364.00,South Down Residential Ltd,Accommodation Costs,2011193,201904
Rother District Council,28/05/2019,091HOUSING,Housing and Community Services,20200,Housing Needs - HB (Housing Benefit),D2514,Accommodation Costs,91.00,South Down Residential Ltd,Accommodation Costs,2011193,201904
Rother District Council,28/05/2019,091HOUSING,Housing and Community Services,20200,Housing Needs - HB (Housing Benefit),D2514,Accommodation Costs,268.80,South Down Residential Ltd,Accommodation Costs,2011193,201904
Rother District Council,28/05/2019,091HOUSING,Housing and Community Services,20200,Housing Needs - HB (Housing Benefit),D2514,Accommodation Costs,67.20,South Down Residential Ltd,Accommodation Costs,2011193,201904
Rother District Council,28/05/2019,091HOUSING,Housing and Community Services,20200,Housing Needs - HB (Housing Benefit),D2514,Accommodation Costs,37.20,South Down Residential Ltd,Accommodation Costs,2011193,201904
Rother District Council,28/05/2019,091HOUSING,Housing and Community Services,20200,Housing Needs - HB (Housing Benefit),D2514,Accommodation Costs,336.00,South Down Residential Ltd,Accommodation Costs,2011193,201904
Rother District Council,28/05/2019,091HOUSING,Housing and Community Services,20200,Housing Needs - HB (Housing Benefit),D2514,Accommodation Costs,336.00,South Down Residential Ltd,Accommodation Costs,2011193,201904
Rother District Council,28/05/2019,091HOUSING,Housing and Community Services,20200,Housing Needs - HB (Housing Benefit),D2514,Accommodation Costs,455.00,South Down Residential Ltd,Accommodation Costs,2011193,201904
Rother District Council,28/05/2019,091HOUSING,Housing and Community Services,20200,Housing Needs - HB (Housing Benefit),D2514,Accommodation Costs,336.00,South Down Residential Ltd,Accommodation Costs,2011193,201904
Rother District Council,28/05/2019,091HOUSING,Housing and Community Services,20200,Housing Needs - HB (Housing Benefit),D2514,Accommodation Costs,25.50,South Down Residential Ltd,Accommodation Costs,2011193,201904
Rother District Council,28/05/2019,091HOUSING,Housing and Community Services,20200,Housing Needs - HB (Housing Benefit),D2514,Accommodation Costs,142.80,South Down Residential Ltd,Accommodation Costs,2011193,201904
Rother District Council,28/05/2019,091HOUSING,Housing and Community Services,20200,Housing Needs - HB (Housing Benefit),D2514,Accommodation Costs,35.70,South Down Residential Ltd,Accommodation Costs,2011193,201904
Rother District Council,28/05/2019,091HOUSING,Housing and Community Services,20200,Housing Needs - HB (Housing Benefit),D2514,Accommodation Costs,347.20,South Down Residential Ltd,Accommodation Costs,2011193,201904
Rother District Council,28/05/2019,091HOUSING,Housing and Community Services,20200,Housing Needs - HB (Housing Benefit),D2514,Accommodation Costs,86.80,South Down Residential Ltd,Accommodation Costs,2011193,201904
Rother District Council,28/05/2019,091HOUSING,Housing and Community Services,20200,Housing Needs - HB (Housing Benefit),D2514,Accommodation Costs,248.00,South Down Residential Ltd,Accommodation Costs,2011193,201904
Rother District Council,28/05/2019,091HOUSING,Housing and Community Services,20200,Housing Needs - HB (Housing Benefit),D2514,Accommodation Costs,148.80,South Down Residential Ltd,Accommodation Costs,2011193,201904
Rother District Council,29/05/2019,101RESOURCES,Resources,20209,Corporate management,D2513,Hired and Contracted services,35.00,The Information Commissioner,Hired and contracted services - Data Protection Act,2011178,201904
Rother District Council,30/05/2019,041ENVIRON,Environmental Services,32143,EH Licenses and Registration R + W Partnership,D2513,Hired and Contracted services,368.28,Fairfield House Veterinary Surgery,Hired and contracted services - EnvH-Veterinary Services for Licens,2011404,201905
Rother District Council,30/05/2019,031RESOURCES,Executive Directors & Corporate Core,20173,Administrative Offices - Town Hall,B1100,Repairs to Premises,698.66,Alfa Electric Ltd,Repairs to Premises - Repairs Refurbishment of premises,2011335,201905
Rother District Council,30/05/2019,091HOUSING,Housing and Community Services,20236,Customer Services and Development,A2203,Training,322.15,Government Events,Training,2011219,201904
Rother District Council,31/05/2019,101RESOURCES,Resources,20217,Reliefs & Benefits-Council Tax Benefit,D2509,Consultants and Other Services,108.15,Wilson's Express Hastings Ltd,Consultants and other services - Consultants Fees,2011638,201905
Rother District Council,31/05/2019,091HOUSING,Housing and Community Services,20107,Camber Beach & Foreshore,C1104,Derv,1.90,Allstar Business Solutions,Derv - Fuel Service fee payable on fuel cards,2011171,201904
Rother District Council,31/05/2019,101RESOURCES,Resources,20216,Cost Of Collection,D2513,Hired and Contracted services,"1,478.10",allpay.net Ltd,Hired and contracted services - Allpay Card/Rep/Let Chrg - Vatable,2010915,201904
Rother District Council,31/05/2019,101RESOURCES,Resources,20216,Cost Of Collection,D2513,Hired and Contracted services,18.30,allpay.net Ltd,Hired and contracted services - Allpay Card/Rep/Let Chrg - Vatable,2010916,201904
Rother District Council,31/05/2019,101RESOURCES,Resources,20216,Cost Of Collection,D2513,Hired and Contracted services,31.21,allpay.net Ltd,Hired and contracted services - Allpay Card/Rep/Let Chrg - Vatable,2010917,201904
Rother District Council,31/05/2019,101RESOURCES,Resources,20216,Cost Of Collection,D2513,Hired and Contracted services,34.80,allpay.net Ltd,Hired and contracted services - Allpay Card/Rep/Let Chrg - Vatable,2010918,201904
Rother District Council,31/05/2019,101RESOURCES,Resources,20222,Accountancy,D2513,Hired and Contracted services,"14,200.00",Embridge Consulting (UK) Ltd,Hired and contracted services - Consultancy Service per Contract,2010992,201904
Rother District Council,31/05/2019,071STRAT,Strategy and Planning,20255,Local Development Framework,D2509,Consultants and Other Services,"8,834.40",Peter Davidson Consultancy Ltd,Hired and contracted services - LDF Consultancy,2010870,201905
Rother District Council,31/05/2019,081ACQUISIT,"Acquisitions, Transformation and Regeneration",20267,Property Investment Strategy - 18-40 Beeching Road ( Land and Buildings),D2513,Hired and Contracted services,556.00,Clearway Environmental Services (UK) Ltd,Hired and contracted services - Service fee paid,2011899,201905
Rother District Council,31/05/2019,081ACQUISIT,"Acquisitions, Transformation and Regeneration",20146,West Trading Estate,D2513,Hired and Contracted services,"1,589.00",Clearway Environmental Services (UK) Ltd,Hired and contracted services - Service fee paid,2011900,201905
Rother District Council,31/05/2019,031RESOURCES,Executive Directors & Corporate Core,32131,Sussex Training Partnership,D2513,Hired and Contracted services,60.75,Astutis Limited,Hired and contracted services - STC-Travel and subsistence,2011898,201905
Rother District Council,31/05/2019,031RESOURCES,Executive Directors & Corporate Core,32131,Sussex Training Partnership,D2513,Hired and Contracted services,936.00,Astutis Limited,Hired and contracted services - Training Sussex Train Consor-Training Course,2011898,201905
Rother District Council,31/05/2019,031RESOURCES,Executive Directors & Corporate Core,20173,Administrative Offices - Town Hall,B1100,Repairs to Premises,251.34,Alfa Electric Ltd,Repairs to Premises - Repairs Refurbishment of premises,2011336,201905
Rother District Council,31/05/2019,091HOUSING,Housing and Community Services,20114,Bexhill Parks & Open Spaces,B1100,Repairs to Premises,375.00,CountyClean Environmental Services Ltd,Repairs to Premises - Sewage Treatment Plant Maintenance,2011192,201904
Rother District Council,31/05/2019,091HOUSING,Housing and Community Services,20137,Car Parks,B1100,Repairs to Premises,439.00,Rye Hire Ltd,Repairs to Premises - White Lining in Car Parks,2011612,201905
Rother District Council,31/05/2019,091HOUSING,Housing and Community Services,20137,Car Parks,B1100,Repairs to Premises,554.20,Rye Hire Ltd,Repairs to Premises - White Lining in Car Parks,2011613,201905
Rother District Council,31/05/2019,091HOUSING,Housing and Community Services,20114,Bexhill Parks & Open Spaces,B2422,Sewerage,305.00,CountyClean Environmental Services Ltd,Sewerage Parks- Emptying of Cesspit,2011192,201904
Rother District Council,31/05/2019,091HOUSING,Housing and Community Services,20107,Camber Beach & Foreshore,C1104,Derv,25.02,Allstar Business Solutions,Derv,2011171,201904
Rother District Council,31/05/2019,091HOUSING,Housing and Community Services,20137,Car Parks,D2513,Hired and Contracted services,-114.00,Jade Security Services Ltd,Hired and Contracted services,2010535,201904
Rother District Council,31/05/2019,999NOREPORT,Housing and Community Services,70704,Capital - Bexhill Leisure Centre,N1005,Other fees,"1,743.00",Bevan Brittan LLP,Other fees,2010554,201904
Rother District Council,31/05/2019,091HOUSING,Housing and Community Services,20145,Maintenance Services,C1104,Derv,44.11,Allstar Business Solutions,Derv,2011171,201904
Rother District Council,31/05/2019,091HOUSING,Housing and Community Services,20145,Maintenance Services,C1104,Derv,75.00,Allstar Business Solutions,Derv,2011171,201904
Rother District Council,31/05/2019,091HOUSING,Housing and Community Services,20145,Maintenance Services,C1104,Derv,58.33,Allstar Business Solutions,Derv,2011171,201904
Rother District Council,31/05/2019,101RESOURCES,Resources,20221,Financial Services,D2513,Hired and Contracted services,-35.00,Jade Security Services Ltd,Hired and Contracted services,2010535,201904
Rother District Council,01/06/2019,101RESOURCES,Resources,20209,Corporate management,D2513,Hired and Contracted services,"1,052.06",Lloyds Bank,Bank Charges,2010890,201904
Rother District Council,01/06/2019,101RESOURCES,Resources,20209,Corporate management,D2513,Hired and Contracted services,40.00,Lloyds Bank,Bank Charges,2010891,201904
Rother District Council,01/06/2019,101RESOURCES,Resources,20209,Corporate management,D2513,Hired and Contracted services,40.00,Lloyds Bank,Bank Charges,2010893,201904
Rother District Council,01/06/2019,101RESOURCES,Resources,20209,Corporate management,D2513,Hired and Contracted services,"1,705.76",Lloyds Bank,Bank Charges,2010895,201904
Rother District Council,01/06/2019,101RESOURCES,Resources,20209,Corporate management,D2513,Hired and Contracted services,40.00,Lloyds Bank,Bank Charges,2010892,201904
Rother District Council,01/06/2019,101RESOURCES,Resources,20209,Corporate management,D2513,Hired and Contracted services,20.41,Lloyds Bank,Bank Charges,2010896,201904
Rother District Council,01/06/2019,101RESOURCES,Resources,20209,Corporate management,D2513,Hired and Contracted services,492.67,Lloyds Bank,Bank Charges,2010897,201904
Rother District Council,01/06/2019,101RESOURCES,Resources,20209,Corporate management,D2513,Hired and Contracted services,20.06,Lloyds Bank,Bank Charges,2010898,201904
Rother District Council,01/06/2019,101RESOURCES,Resources,20209,Corporate management,D2513,Hired and Contracted services,20.02,Lloyds Bank,Bank Charges,2010899,201904
Rother District Council,01/06/2019,101RESOURCES,Resources,20209,Corporate management,D2513,Hired and Contracted services,40.00,Lloyds Bank,Bank Charges,2010900,201904
Rother District Council,01/06/2019,091HOUSING,Housing and Community Services,20128,Public Conveniences,B2611,Contract cleaning,558.13,Specialist Hygiene Services Ltd,Contract cleaning - Public Conveniences Cleaning Servic,2011054,201904
Rother District Council,01/06/2019,091HOUSING,Housing and Community Services,20128,Public Conveniences,B2611,Contract cleaning,826.03,Specialist Hygiene Services Ltd,Contract cleaning - Public Conveniences Cleaning Servic,2011054,201904
Rother District Council,01/06/2019,091HOUSING,Housing and Community Services,20128,Public Conveniences,B2611,Contract cleaning,730.66,Specialist Hygiene Services Ltd,Contract cleaning - Public Conveniences Cleaning Servic,2011054,201904
Rother District Council,01/06/2019,091HOUSING,Housing and Community Services,20128,Public Conveniences,B2611,Contract cleaning,192.78,Specialist Hygiene Services Ltd,Contract cleaning - Public Conveniences Cleaning Servic,2011054,201904
Rother District Council,01/06/2019,091HOUSING,Housing and Community Services,20128,Public Conveniences,B2611,Contract cleaning,688.31,Specialist Hygiene Services Ltd,Contract cleaning - Public Conveniences Cleaning Servic,2011054,201904
Rother District Council,01/06/2019,091HOUSING,Housing and Community Services,20128,Public Conveniences,B2611,Contract cleaning,495.62,Specialist Hygiene Services Ltd,Contract cleaning - Public Conveniences Cleaning Servic,2011054,201904
Rother District Council,01/06/2019,091HOUSING,Housing and Community Services,20128,Public Conveniences,B2611,Contract cleaning,826.03,Specialist Hygiene Services Ltd,Contract cleaning - Public Conveniences Cleaning Servic,2011054,201904
Rother District Council,01/06/2019,091HOUSING,Housing and Community Services,20128,Public Conveniences,B2611,Contract cleaning,495.62,Specialist Hygiene Services Ltd,Contract cleaning - Public Conveniences Cleaning Servic,2011054,201904
Rother District Council,01/06/2019,091HOUSING,Housing and Community Services,20128,Public Conveniences,B2611,Contract cleaning,605.67,Specialist Hygiene Services Ltd,Contract cleaning - Public Conveniences Cleaning Servic,2011054,201904
Rother District Council,01/06/2019,091HOUSING,Housing and Community Services,20128,Public Conveniences,B2611,Contract cleaning,275.34,Specialist Hygiene Services Ltd,Contract cleaning - Public Conveniences Cleaning Servic,2011054,201904
Rother District Council,01/06/2019,091HOUSING,Housing and Community Services,20128,Public Conveniences,B2611,Contract cleaning,330.41,Specialist Hygiene Services Ltd,Contract cleaning - Public Conveniences Cleaning Servic,2011054,201904
Rother District Council,01/06/2019,091HOUSING,Housing and Community Services,20128,Public Conveniences,B2611,Contract cleaning,578.18,Specialist Hygiene Services Ltd,Contract cleaning - Public Conveniences Cleaning Servic,2011054,201904
Rother District Council,01/06/2019,091HOUSING,Housing and Community Services,20128,Public Conveniences,B2611,Contract cleaning,523.11,Specialist Hygiene Services Ltd,Contract cleaning - Public Conveniences Cleaning Servic,2011054,201904
Rother District Council,01/06/2019,091HOUSING,Housing and Community Services,20128,Public Conveniences,B2611,Contract cleaning,247.77,Specialist Hygiene Services Ltd,Contract cleaning - Public Conveniences Cleaning Servic,2011054,201904
Rother District Council,01/06/2019,091HOUSING,Housing and Community Services,20128,Public Conveniences,B2611,Contract cleaning,550.60,Specialist Hygiene Services Ltd,Contract cleaning - Public Conveniences Cleaning Servic,2011054,201904
Rother District Council,01/06/2019,091HOUSING,Housing and Community Services,20128,Public Conveniences,B2611,Contract cleaning,302.83,Specialist Hygiene Services Ltd,Contract cleaning - Public Conveniences Cleaning Servic,2011054,201904
Rother District Council,01/06/2019,091HOUSING,Housing and Community Services,20128,Public Conveniences,B2611,Contract cleaning,495.62,Specialist Hygiene Services Ltd,Contract cleaning - Public Conveniences Cleaning Servic,2011054,201904
Rother District Council,01/06/2019,091HOUSING,Housing and Community Services,20128,Public Conveniences,B2611,Contract cleaning,730.15,Specialist Hygiene Services Ltd,Contract cleaning - Public Conveniences Cleaning Servic,2011054,201904
Rother District Council,01/06/2019,091HOUSING,Housing and Community Services,20128,Public Conveniences,B2611,Contract cleaning,"1,195.20",Specialist Hygiene Services Ltd,Contract cleaning - Public Conveniences Cleaning Servic,2011054,201904
Rother District Council,01/06/2019,091HOUSING,Housing and Community Services,20128,Public Conveniences,B2611,Contract cleaning,464.97,Specialist Hygiene Services Ltd,Contract cleaning - Public Conveniences Cleaning Servic,2011054,201904
Rother District Council,01/06/2019,091HOUSING,Housing and Community Services,20128,Public Conveniences,B2611,Contract cleaning,912.60,Specialist Hygiene Services Ltd,Contract cleaning - Public Conveniences Cleaning Servic,2011054,201904
Rother District Council,01/06/2019,091HOUSING,Housing and Community Services,20128,Public Conveniences,B2611,Contract cleaning,"1,211.08",Specialist Hygiene Services Ltd,Contract cleaning - Public Conveniences Cleaning Servic,2011054,201904
Rother District Council,01/06/2019,091HOUSING,Housing and Community Services,20128,Public Conveniences,B2611,Contract cleaning,"1,211.08",Specialist Hygiene Services Ltd,Contract cleaning - Public Conveniences Cleaning Servic,2011054,201904
Rother District Council,01/06/2019,091HOUSING,Housing and Community Services,20128,Public Conveniences,B2611,Contract cleaning,"1,721.81",Specialist Hygiene Services Ltd,Contract cleaning - Public Conveniences Cleaning Servic,2011054,201904
Rother District Council,01/06/2019,091HOUSING,Housing and Community Services,20128,Public Conveniences,B2611,Contract cleaning,285.84,Specialist Hygiene Services Ltd,Contract cleaning - Public Conveniences Cleaning Servic,2011054,201904
Rother District Council,01/06/2019,091HOUSING,Housing and Community Services,20128,Public Conveniences,B2611,Contract cleaning,381.21,Specialist Hygiene Services Ltd,Contract cleaning - Public Conveniences Cleaning Servic,2011054,201904
Rother District Council,01/06/2019,091HOUSING,Housing and Community Services,20128,Public Conveniences,B2611,Contract cleaning,317.69,Specialist Hygiene Services Ltd,Contract cleaning - Public Conveniences Cleaning Servic,2011054,201904
Rother District Council,01/06/2019,091HOUSING,Housing and Community Services,20128,Public Conveniences,B2611,Contract cleaning,349.45,Specialist Hygiene Services Ltd,Contract cleaning - Public Conveniences Cleaning Servic,2011054,201904
Rother District Council,01/06/2019,091HOUSING,Housing and Community Services,20128,Public Conveniences,B2611,Contract cleaning,381.21,Specialist Hygiene Services Ltd,Contract cleaning - Public Conveniences Cleaning Servic,2011054,201904
Rother District Council,01/06/2019,091HOUSING,Housing and Community Services,20128,Public Conveniences,B2611,Contract cleaning,285.80,Specialist Hygiene Services Ltd,Contract cleaning - Public Conveniences Cleaning Servic,2011054,201904
Rother District Council,01/06/2019,091HOUSING,Housing and Community Services,20109,Sports Development,D2923,Grants made,112.50,What's On Media,Grants made - Sports Development-Active Rother,2010545,201904
Rother District Council,01/06/2019,101RESOURCES,Resources,20216,Cost Of Collection,D2513,Hired and Contracted services,160.00,Her Majestys Court Service,Hired and contracted services - Court Costs/Fees,2010901,201904
Rother District Council,02/06/2019,101RESOURCES,Resources,20222,Accountancy,D2635,Computer Licences,170.25,Integra Associates Ltd,Computer Licences - Cont to Agresso Joint Working,2010562,201904
Rother District Council,02/06/2019,101RESOURCES,Resources,20222,Accountancy,D2635,Computer Licences,"1,133.21",Integra Associates Ltd,Computer Licences - New Computer Software,2010563,201904
Rother District Council,02/06/2019,101RESOURCES,Resources,20242,Communications-Phones,D2621,Telephones,47.34,TalkTalk Communications Ltd T/A TalkTalk Business,Telephones - Telephone Call Costs+Line Rental,2010902,201904
Rother District Council,03/06/2019,091HOUSING,Housing and Community Services,20205,Housing Loans Account,D2514,Accommodation Costs,265.39,T Cook T/A HAS Property Management,Accommodation Costs - Homelessness services Rent in Advance for Homeless,2010894,201904
Rother District Council,04/06/2019,091HOUSING,Housing and Community Services,20107,Camber Beach & Foreshore,D2513,Hired and Contracted services,"58,319.00",RNLI Royal National Lifeboat Institution,Hired and contracted services - Service fee paid,2010734,201904
Rother District Council,04/06/2019,091HOUSING,Housing and Community Services,20200,Housing Needs - HB (Housing Benefit),D2514,Accommodation Costs,"7,500.00",Paramount Independent Property Services LLP,Accommodation Costs,2010607,201904
Rother District Council,05/06/2019,091HOUSING,Housing and Community Services,20205,Housing Loans Account,D2514,Accommodation Costs,915.00,Lera Groves,Accommodation Costs - Homelessness services Deposit for Landlords,2010968,201904
Rother District Council,05/06/2019,091HOUSING,Housing and Community Services,20205,Housing Loans Account,D2514,Accommodation Costs,915.00,Lera Groves,Accommodation Costs - Homelessness services Rent in Advance for Homeless,2010968,201904
Rother District Council,05/06/2019,101RESOURCES,Resources,20209,Corporate management,D2513,Hired and Contracted services,100.61,Lloyds Bank,Bank Charges,2010904,201904
Rother District Council,05/06/2019,101RESOURCES,Resources,20209,Corporate management,D2513,Hired and Contracted services,124.00,Lloyds Bank,Bank Charges,2010903,201904
Rother District Council,05/06/2019,091HOUSING,Housing and Community Services,20110,Battle Sports Centre,B1100,Repairs to Premises,"6,000.00",East Sussex County Council,Repairs to Premises - Repairs/Maintenance - various,2010623,201904
Rother District Council,05/06/2019,091HOUSING,Housing and Community Services,20110,Battle Sports Centre,B1100,Repairs to Premises,"-5,000.00",East Sussex County Council,Repairs to Premises - Repairs/Maintenance - various,2010597,201904
Rother District Council,06/06/2019,091HOUSING,Housing and Community Services,20107,Camber Beach & Foreshore,D1201,Equipment & Materials,378.00,LEDsynergy (Displays) Ltd,Equipment & Materials - Electrical Equipment,2010602,201904
Rother District Council,06/06/2019,101RESOURCES,Resources,20216,Cost Of Collection,D2513,Hired and Contracted services,60.00,H M Land Registry,Hired and contracted services - Council Tax-Land Registry Enquiries,2010905,201904
Rother District Council,06/06/2019,071STRAT,Strategy and Planning,20258,BC Dangerous Structures H+R Partnership,D2513,Hired and Contracted services,3.00,H M Land Registry,Hired and contracted services - Env H-Land Registry,2010905,201904
Rother District Council,06/06/2019,041ENVIRON,Environmental Services,32144,EH Environmental Services Admin R + W Partnership,D2513,Hired and Contracted services,3.00,H M Land Registry,Hired and contracted services - Env H-Land Registry,2010905,201904
Rother District Council,06/06/2019,101RESOURCES,Resources,20239,Computer Services,D2637,Operational Leases,127.34,Ricoh UK Limited,Operational Leases - Copier Rental and Service,2010847,201904
Rother District Council,06/06/2019,091HOUSING,Housing and Community Services,20114,Bexhill Parks & Open Spaces,B1100,Repairs to Premises,625.00,Foxhills Tree Services Ltd,Repairs to Premises Parks - Tree Works,2011588,201905
Rother District Council,06/06/2019,101RESOURCES,Resources,20222,Accountancy,A2203,Training,175.00,Link Treasury Services Ltd T/A Link Asset Services,Training,2011150,201905
Rother District Council,07/06/2019,101RESOURCES,Resources,20216,Cost Of Collection,D2513,Hired and Contracted services,18.00,H M Land Registry,Hired and contracted services - Council Tax-Land Registry Enquiries,2010920,201904
Rother District Council,07/06/2019,041ENVIRON,Environmental Services,32144,EH Environmental Services Admin R + W Partnership,D2513,Hired and Contracted services,6.00,H M Land Registry,Hired and contracted services - Env H-Land Registry,2010920,201904
Rother District Council,07/06/2019,071STRAT,Strategy and Planning,20258,BC Dangerous Structures H+R Partnership,D2513,Hired and Contracted services,3.00,H M Land Registry,Hired and contracted services - Env H-Land Registry,2010920,201904
Rother District Council,07/06/2019,081ACQUISIT,"Acquisitions, Transformation and Regeneration",20154,Committee Property Account,D2513,Hired and Contracted services,"6,445.80",Hasbridge Construction Ltd,Hired and contracted services - Service fee paid,2010732,201904
Rother District Council,07/06/2019,031RESOURCES,Executive Directors & Corporate Core,20185,Joint Waste procurement,D2513,Hired and Contracted services,"8,102.00",Bevan Brittan LLP,Hired and Contracted services,2010566,201904
Rother District Council,07/06/2019,091HOUSING,Housing and Community Services,20200,Housing Needs - HB (Housing Benefit),D2514,Accommodation Costs,582.86,MB Hotels Ltd,Accommodation Costs,2012284,201906
Rother District Council,07/06/2019,091HOUSING,Housing and Community Services,20200,Housing Needs - HB (Housing Benefit),D2514,Accommodation Costs,820.00,MB Hotels Ltd,Accommodation Costs,2012146,201906
Rother District Council,09/06/2019,101RESOURCES,Resources,20239,Computer Services,D2621,Telephones,67.50,TalkTalk Communications Ltd T/A TalkTalk Business,Telephones - Broadband Connection,2011104,201904
Rother District Council,10/06/2019,999NOREPORT,Housing and Community Services,70718,Capital - Sidley Recreation Ground,N1004,Architects & Consultant Fees,138.67,Lloyds Bank,Architects & Consultant Fees Capital-Architect and Conslt Fees,2011096,201904
Rother District Council,10/06/2019,101RESOURCES,Resources,20209,Corporate management,D2513,Hired and Contracted services,266.10,Lloyds Bank,Bank Charges,2010913,201904
Rother District Council,10/06/2019,101RESOURCES,Resources,20239,Computer Services,D2635,Computer Licences,9.99,Lloyds Bank,Computer Licences - Domain Name Renewal,2011098,201904
Rother District Council,10/06/2019,081ACQUISIT,"Acquisitions, Transformation and Regeneration",20153,"Elva Business Centre, Bexhill",D1201,Equipment & Materials,35.00,Thompson Advertising,Equipment & Materials - Purchase of Signs,2011922,201906
Rother District Council,10/06/2019,091HOUSING,Housing and Community Services,20137,Car Parks,D1201,Equipment & Materials,7.49,Lloyds Bank,Equipment & Materials - Purchase of Tools,2011098,201904
Rother District Council,10/06/2019,091HOUSING,Housing and Community Services,20206,Syrians,D2513,Hired and Contracted services,112.99,Lloyds Bank,Hired and contracted services - Syrian Misc,2011097,201904
Rother District Council,10/06/2019,091HOUSING,Housing and Community Services,20206,Syrians,D2513,Hired and Contracted services,185.00,Lloyds Bank,Hired and contracted services - Syrian Resettlement Programme-Travel,2011097,201904
Rother District Council,10/06/2019,091HOUSING,Housing and Community Services,20206,Syrians,D2513,Hired and Contracted services,186.00,Lloyds Bank,Hires and contracted services - Syrian-Bus Pass,2011095,201904
Rother District Council,10/06/2019,031RESOURCES,Executive Directors & Corporate Core,20156,Representing Local Interest,D2734,Members Training and Seminars,951.70,Hoey Ainscough Associates Ltd,Members Training and Seminars - Expenses Fees,2011340,201904
Rother District Council,10/06/2019,031RESOURCES,Executive Directors & Corporate Core,20163,District Council Elections,D2312,Refreshments,264.00,Lloyds Bank,Refreshments - Catering/Refreshments for Meetings,2011096,201904
Rother District Council,10/06/2019,031RESOURCES,Executive Directors & Corporate Core,20156,Representing Local Interest,D2312,Refreshments,110.00,Lloyds Bank,Refreshments - Catering/Refreshments for Meetings,2011096,201904
Rother District Council,10/06/2019,091HOUSING,Housing and Community Services,20108,Bexhill Promenade & Foreshore,B1100,Repairs to Premises,58.88,Jewson Limited,Repairs to Premises - Purchase of Materials - Build Maint,2010509,201904
Rother District Council,10/06/2019,091HOUSING,Housing and Community Services,20107,Camber Beach & Foreshore,B1100,Repairs to Premises,"1,465.00",CountyClean Environmental Services Ltd,Repairs to Premises - Sand Clearance at Camber,2010825,201904
Rother District Council,10/06/2019,031RESOURCES,Executive Directors & Corporate Core,20159,Corporate Policy Making,D2922,Subscriptions,300.00,Hoey Ainscough Associates Ltd,Subscriptions - Subscription to Organisations,2011340,201904
Rother District Council,10/06/2019,031RESOURCES,Executive Directors & Corporate Core,20162,Electoral Registration,A2203,Training,163.33,Lloyds Bank,Training,2011096,201904
Rother District Council,10/06/2019,091HOUSING,Housing and Community Services,20145,Maintenance Services,C1101,Vehicle Repairs & Servicing,27.53,Lloyds Bank,Vehicle Repairs & Servicing,2011098,201904
Rother District Council,11/06/2019,101RESOURCES,Resources,20209,Corporate management,D2513,Hired and Contracted services,319.41,Capita Business Services Ltd,Bank Charges,2010919,201904
Rother District Council,11/06/2019,101RESOURCES,Resources,20216,Cost Of Collection,D2513,Hired and Contracted services,51.00,H M Land Registry,Hired and contracted services - Council Tax-Land Registry Enquiries,2010906,201904
Rother District Council,11/06/2019,071STRAT,Strategy and Planning,20258,BC Dangerous Structures H+R Partnership,D2513,Hired and Contracted services,12.00,H M Land Registry,Hired and contracted services - Env H-Land Registry,2010906,201904
Rother District Council,11/06/2019,071STRAT,Strategy and Planning,20246,Planning Applications,D2513,Hired and Contracted services,12.00,H M Land Registry,Hired and contracted services - Land Registry-Planning,2010906,201904
Rother District Council,11/06/2019,101RESOURCES,Resources,20240,Printing Services,D2417,Photocopy Paper by external suppliers,82.00,Canon (UK) Ltd,Photocopy Paper by external supplier - Wide Format Consumables,2010846,201904
Rother District Council,11/06/2019,091HOUSING,Housing and Community Services,20114,Bexhill Parks & Open Spaces,B1100,Repairs to Premises,10.69,Autolec Motor Factors,Repairs to Premises - Purchase of Materials - Build Maint,2011147,201904
Rother District Council,12/06/2019,091HOUSING,Housing and Community Services,20108,Bexhill Promenade & Foreshore,B1100,Repairs to Premises,27.40,Jewson Limited,Repairs to Premises - Purchase of Materials - Build Maint,2010511,201904
Rother District Council,13/06/2019,031RESOURCES,Executive Directors & Corporate Core,20171,Human Resources,D2513,Hired and Contracted services,470.00,Steve Clifford & Associates Ltd,Hired and contracted services - Occupational Health,2012297,201906
Rother District Council,13/06/2019,081ACQUISIT,"Acquisitions, Transformation and Regeneration",20142,Performance Management,E1101,Third party payment other LAs,"5,475.00",East Sussex County Council,Third party payment other LAs - Health Overview Scrutiny Com Cont,2010549,201904
Rother District Council,13/06/2019,081ACQUISIT,"Acquisitions, Transformation and Regeneration",20122,Economic Development,D2622,Mobile Phones,10.00,O2 (UK) Ltd,Mobile Phones,2011107,201904
Rother District Council,13/06/2019,041ENVIRON,Environmental Services,20265,Pollution Team,D2622,Mobile Phones,10.00,O2 (UK) Ltd,Mobile Phones,2011108,201904
Rother District Council,13/06/2019,041ENVIRON,Environmental Services,20265,Pollution Team,D2622,Mobile Phones,10.00,O2 (UK) Ltd,Mobile Phones,2011108,201904
Rother District Council,13/06/2019,041ENVIRON,Environmental Services,20265,Pollution Team,D2622,Mobile Phones,10.00,O2 (UK) Ltd,Mobile Phones,2011108,201904
Rother District Council,13/06/2019,041ENVIRON,Environmental Services,20265,Pollution Team,D2622,Mobile Phones,10.00,O2 (UK) Ltd,Mobile Phones,2011108,201904
Rother District Council,13/06/2019,041ENVIRON,Environmental Services,20265,Pollution Team,D2622,Mobile Phones,10.00,O2 (UK) Ltd,Mobile Phones,2011108,201904
Rother District Council,13/06/2019,041ENVIRON,Environmental Services,20265,Pollution Team,D2622,Mobile Phones,10.00,O2 (UK) Ltd,Mobile Phones,2011108,201904
Rother District Council,13/06/2019,071STRAT,Strategy and Planning,20247,Service Manager Strategy and Planning,D2622,Mobile Phones,10.00,O2 (UK) Ltd,Mobile Phones,2011105,201904
Rother District Council,13/06/2019,071STRAT,Strategy and Planning,20246,Planning Applications,D2622,Mobile Phones,10.00,O2 (UK) Ltd,Mobile Phones,2011105,201904
Rother District Council,13/06/2019,071STRAT,Strategy and Planning,20246,Planning Applications,D2622,Mobile Phones,10.00,O2 (UK) Ltd,Mobile Phones,2011105,201904
Rother District Council,13/06/2019,071STRAT,Strategy and Planning,20248,"Complaints,Compliance,Enforce",D2622,Mobile Phones,10.00,O2 (UK) Ltd,Mobile Phones,2011105,201904
Rother District Council,13/06/2019,071STRAT,Strategy and Planning,20248,"Complaints,Compliance,Enforce",D2622,Mobile Phones,10.00,O2 (UK) Ltd,Mobile Phones,2011105,201904
Rother District Council,13/06/2019,071STRAT,Strategy and Planning,20248,"Complaints,Compliance,Enforce",D2622,Mobile Phones,10.00,O2 (UK) Ltd,Mobile Phones,2011105,201904
Rother District Council,13/06/2019,041ENVIRON,Environmental Services,20199,Food and Safety Team,D2622,Mobile Phones,10.00,O2 (UK) Ltd,Mobile Phones,2011108,201904
Rother District Council,13/06/2019,041ENVIRON,Environmental Services,20199,Food and Safety Team,D2622,Mobile Phones,10.36,O2 (UK) Ltd,Mobile Phones,2011108,201904
Rother District Council,13/06/2019,041ENVIRON,Environmental Services,20199,Food and Safety Team,D2622,Mobile Phones,10.00,O2 (UK) Ltd,Mobile Phones,2011108,201904
Rother District Council,13/06/2019,081ACQUISIT,"Acquisitions, Transformation and Regeneration",20263,"Head of Service Acquisitions, Transformation and Regeneration",D2622,Mobile Phones,10.00,O2 (UK) Ltd,Mobile Phones,2011110,201904
Rother District Council,13/06/2019,081ACQUISIT,"Acquisitions, Transformation and Regeneration",20243,Business Improvement,D2622,Mobile Phones,10.00,O2 (UK) Ltd,Mobile Phones,2011110,201904
Rother District Council,13/06/2019,081ACQUISIT,"Acquisitions, Transformation and Regeneration",20122,Economic Development,D2622,Mobile Phones,10.00,O2 (UK) Ltd,Mobile Phones,2011110,201904
Rother District Council,13/06/2019,081ACQUISIT,"Acquisitions, Transformation and Regeneration",20122,Economic Development,D2622,Mobile Phones,10.00,O2 (UK) Ltd,Mobile Phones,2011110,201904
Rother District Council,13/06/2019,081ACQUISIT,"Acquisitions, Transformation and Regeneration",20122,Economic Development,D2622,Mobile Phones,10.00,O2 (UK) Ltd,Mobile Phones,2011110,201904
Rother District Council,13/06/2019,081ACQUISIT,"Acquisitions, Transformation and Regeneration",20122,Economic Development,D2622,Mobile Phones,10.00,O2 (UK) Ltd,Mobile Phones,2011110,201904
Rother District Council,13/06/2019,081ACQUISIT,"Acquisitions, Transformation and Regeneration",20122,Economic Development,D2622,Mobile Phones,10.00,O2 (UK) Ltd,Mobile Phones,2011110,201904
Rother District Council,13/06/2019,081ACQUISIT,"Acquisitions, Transformation and Regeneration",20122,Economic Development,D2622,Mobile Phones,10.00,O2 (UK) Ltd,Mobile Phones,2011110,201904
Rother District Council,13/06/2019,081ACQUISIT,"Acquisitions, Transformation and Regeneration",20243,Business Improvement,D2622,Mobile Phones,10.00,O2 (UK) Ltd,Mobile Phones,2011110,201904
Rother District Council,13/06/2019,041ENVIRON,Environmental Services,20199,Food and Safety Team,D2622,Mobile Phones,10.00,O2 (UK) Ltd,Mobile Phones,2011108,201904
Rother District Council,13/06/2019,041ENVIRON,Environmental Services,20199,Food and Safety Team,D2622,Mobile Phones,10.00,O2 (UK) Ltd,Mobile Phones,2011108,201904
Rother District Council,13/06/2019,041ENVIRON,Environmental Services,20199,Food and Safety Team,D2622,Mobile Phones,10.00,O2 (UK) Ltd,Mobile Phones,2011108,201904
Rother District Council,13/06/2019,041ENVIRON,Environmental Services,20199,Food and Safety Team,D2622,Mobile Phones,10.00,O2 (UK) Ltd,Mobile Phones,2011108,201904
Rother District Council,13/06/2019,041ENVIRON,Environmental Services,20199,Food and Safety Team,D2622,Mobile Phones,10.00,O2 (UK) Ltd,Mobile Phones,2011108,201904
Rother District Council,13/06/2019,041ENVIRON,Environmental Services,20199,Food and Safety Team,D2622,Mobile Phones,10.00,O2 (UK) Ltd,Mobile Phones,2011108,201904
Rother District Council,13/06/2019,041ENVIRON,Environmental Services,20199,Food and Safety Team,D2622,Mobile Phones,10.00,O2 (UK) Ltd,Mobile Phones,2011108,201904
Rother District Council,13/06/2019,041ENVIRON,Environmental Services,20199,Food and Safety Team,D2622,Mobile Phones,10.00,O2 (UK) Ltd,Mobile Phones,2011108,201904
Rother District Council,13/06/2019,041ENVIRON,Environmental Services,20199,Food and Safety Team,D2622,Mobile Phones,10.00,O2 (UK) Ltd,Mobile Phones,2011108,201904
Rother District Council,13/06/2019,041ENVIRON,Environmental Services,20199,Food and Safety Team,D2622,Mobile Phones,10.00,O2 (UK) Ltd,Mobile Phones,2011108,201904
Rother District Council,13/06/2019,041ENVIRON,Environmental Services,20265,Pollution Team,D2622,Mobile Phones,10.00,O2 (UK) Ltd,Mobile Phones,2011108,201904
Rother District Council,13/06/2019,041ENVIRON,Environmental Services,20265,Pollution Team,D2622,Mobile Phones,10.00,O2 (UK) Ltd,Mobile Phones,2011108,201904
Rother District Council,13/06/2019,041ENVIRON,Environmental Services,20265,Pollution Team,D2622,Mobile Phones,10.00,O2 (UK) Ltd,Mobile Phones,2011108,201904
Rother District Council,13/06/2019,041ENVIRON,Environmental Services,20265,Pollution Team,D2622,Mobile Phones,10.00,O2 (UK) Ltd,Mobile Phones,2011108,201904
Rother District Council,13/06/2019,041ENVIRON,Environmental Services,20265,Pollution Team,D2622,Mobile Phones,10.00,O2 (UK) Ltd,Mobile Phones,2011108,201904
Rother District Council,13/06/2019,041ENVIRON,Environmental Services,20265,Pollution Team,D2622,Mobile Phones,10.00,O2 (UK) Ltd,Mobile Phones,2011108,201904
Rother District Council,13/06/2019,041ENVIRON,Environmental Services,20265,Pollution Team,D2622,Mobile Phones,10.00,O2 (UK) Ltd,Mobile Phones,2011108,201904
Rother District Council,13/06/2019,041ENVIRON,Environmental Services,20197,Service Manager Env Serv,D2622,Mobile Phones,10.00,O2 (UK) Ltd,Mobile Phones,2011108,201904
Rother District Council,13/06/2019,041ENVIRON,Environmental Services,20198,Licensing Team,D2622,Mobile Phones,10.00,O2 (UK) Ltd,Mobile Phones,2011108,201904
Rother District Council,13/06/2019,041ENVIRON,Environmental Services,20198,Licensing Team,D2622,Mobile Phones,10.00,O2 (UK) Ltd,Mobile Phones,2011108,201904
Rother District Council,13/06/2019,041ENVIRON,Environmental Services,20198,Licensing Team,D2622,Mobile Phones,10.00,O2 (UK) Ltd,Mobile Phones,2011108,201904
Rother District Council,13/06/2019,041ENVIRON,Environmental Services,20198,Licensing Team,D2622,Mobile Phones,10.00,O2 (UK) Ltd,Mobile Phones,2011108,201904
Rother District Council,13/06/2019,041ENVIRON,Environmental Services,20198,Licensing Team,D2622,Mobile Phones,10.00,O2 (UK) Ltd,Mobile Phones,2011108,201904
Rother District Council,13/06/2019,041ENVIRON,Environmental Services,20198,Licensing Team,D2622,Mobile Phones,10.00,O2 (UK) Ltd,Mobile Phones,2011108,201904
Rother District Council,13/06/2019,041ENVIRON,Environmental Services,20198,Licensing Team,D2622,Mobile Phones,10.00,O2 (UK) Ltd,Mobile Phones,2011108,201904
Rother District Council,13/06/2019,031RESOURCES,Executive Directors & Corporate Core,20179,Communications,D2622,Mobile Phones,10.00,O2 (UK) Ltd,Mobile Phones,2011109,201904
Rother District Council,13/06/2019,031RESOURCES,Executive Directors & Corporate Core,20183,Executive Directors,D2622,Mobile Phones,10.72,O2 (UK) Ltd,Mobile Phones,2011109,201904
Rother District Council,13/06/2019,031RESOURCES,Executive Directors & Corporate Core,20183,Executive Directors,D2622,Mobile Phones,30.00,O2 (UK) Ltd,Mobile Phones,2011109,201904
Rother District Council,13/06/2019,031RESOURCES,Executive Directors & Corporate Core,20180,Emergency Planning,D2622,Mobile Phones,10.00,O2 (UK) Ltd,Mobile Phones,2011109,201904
Rother District Council,13/06/2019,031RESOURCES,Executive Directors & Corporate Core,20180,Emergency Planning,D2622,Mobile Phones,10.00,O2 (UK) Ltd,Mobile Phones,2011109,201904
Rother District Council,13/06/2019,031RESOURCES,Executive Directors & Corporate Core,20180,Emergency Planning,D2622,Mobile Phones,4.50,O2 (UK) Ltd,Mobile Phones,2011109,201904
Rother District Council,13/06/2019,031RESOURCES,Executive Directors & Corporate Core,20162,Electoral Registration,D2622,Mobile Phones,10.00,O2 (UK) Ltd,Mobile Phones,2011109,201904
Rother District Council,13/06/2019,031RESOURCES,Executive Directors & Corporate Core,20185,Joint Waste procurement,D2622,Mobile Phones,10.00,O2 (UK) Ltd,Mobile Phones,2011109,201904
Rother District Council,13/06/2019,031RESOURCES,Executive Directors & Corporate Core,20183,Executive Directors,D2622,Mobile Phones,10.00,O2 (UK) Ltd,Mobile Phones,2011109,201904
Rother District Council,13/06/2019,031RESOURCES,Executive Directors & Corporate Core,32132,Joint Waste Contract Client Unit,D2622,Mobile Phones,10.00,O2 (UK) Ltd,Mobile Phones,2011109,201904
Rother District Council,13/06/2019,031RESOURCES,Executive Directors & Corporate Core,32132,Joint Waste Contract Client Unit,D2622,Mobile Phones,10.00,O2 (UK) Ltd,Mobile Phones,2011109,201904
Rother District Council,13/06/2019,031RESOURCES,Executive Directors & Corporate Core,32132,Joint Waste Contract Client Unit,D2622,Mobile Phones,10.00,O2 (UK) Ltd,Mobile Phones,2011109,201904
Rother District Council,13/06/2019,031RESOURCES,Executive Directors & Corporate Core,32132,Joint Waste Contract Client Unit,D2622,Mobile Phones,10.00,O2 (UK) Ltd,Mobile Phones,2011109,201904
Rother District Council,13/06/2019,031RESOURCES,Executive Directors & Corporate Core,20158,Committee Service General Exp,D2622,Mobile Phones,10.00,O2 (UK) Ltd,Mobile Phones,2011109,201904
Rother District Council,13/06/2019,031RESOURCES,Executive Directors & Corporate Core,20171,Human Resources,D2622,Mobile Phones,10.00,O2 (UK) Ltd,Mobile Phones,2011109,201904
Rother District Council,13/06/2019,031RESOURCES,Executive Directors & Corporate Core,20171,Human Resources,D2622,Mobile Phones,75.82,O2 (UK) Ltd,Mobile Phones,2011109,201904
Rother District Council,13/06/2019,081ACQUISIT,"Acquisitions, Transformation and Regeneration",20121,Programme and Policy Office,D2622,Mobile Phones,10.00,O2 (UK) Ltd,Mobile Phones,2011110,201904
Rother District Council,13/06/2019,091HOUSING,Housing and Community Services,20109,Sports Development,D2622,Mobile Phones,10.00,O2 (UK) Ltd,Mobile Phones,2011107,201904
Rother District Council,13/06/2019,091HOUSING,Housing and Community Services,20120,Neighbourhood Services,D2622,Mobile Phones,10.00,O2 (UK) Ltd,Mobile Phones,2011107,201904
Rother District Council,13/06/2019,091HOUSING,Housing and Community Services,20120,Neighbourhood Services,D2622,Mobile Phones,10.00,O2 (UK) Ltd,Mobile Phones,2011107,201904
Rother District Council,13/06/2019,091HOUSING,Housing and Community Services,20120,Neighbourhood Services,D2622,Mobile Phones,10.00,O2 (UK) Ltd,Mobile Phones,2011107,201904
Rother District Council,13/06/2019,091HOUSING,Housing and Community Services,20120,Neighbourhood Services,D2622,Mobile Phones,10.00,O2 (UK) Ltd,Mobile Phones,2011107,201904
Rother District Council,13/06/2019,091HOUSING,Housing and Community Services,20120,Neighbourhood Services,D2622,Mobile Phones,10.00,O2 (UK) Ltd,Mobile Phones,2011107,201904
Rother District Council,13/06/2019,091HOUSING,Housing and Community Services,20120,Neighbourhood Services,D2622,Mobile Phones,10.00,O2 (UK) Ltd,Mobile Phones,2011107,201904
Rother District Council,13/06/2019,091HOUSING,Housing and Community Services,20120,Neighbourhood Services,D2622,Mobile Phones,10.00,O2 (UK) Ltd,Mobile Phones,2011107,201904
Rother District Council,13/06/2019,091HOUSING,Housing and Community Services,20120,Neighbourhood Services,D2622,Mobile Phones,10.00,O2 (UK) Ltd,Mobile Phones,2011107,201904
Rother District Council,13/06/2019,091HOUSING,Housing and Community Services,20120,Neighbourhood Services,D2622,Mobile Phones,10.00,O2 (UK) Ltd,Mobile Phones,2011107,201904
Rother District Council,13/06/2019,091HOUSING,Housing and Community Services,20120,Neighbourhood Services,D2622,Mobile Phones,10.00,O2 (UK) Ltd,Mobile Phones,2011107,201904
Rother District Council,13/06/2019,091HOUSING,Housing and Community Services,20120,Neighbourhood Services,D2622,Mobile Phones,13.75,O2 (UK) Ltd,Mobile Phones,2011107,201904
Rother District Council,13/06/2019,091HOUSING,Housing and Community Services,20120,Neighbourhood Services,D2622,Mobile Phones,10.00,O2 (UK) Ltd,Mobile Phones,2011107,201904
Rother District Council,13/06/2019,091HOUSING,Housing and Community Services,20120,Neighbourhood Services,D2622,Mobile Phones,10.00,O2 (UK) Ltd,Mobile Phones,2011107,201904
Rother District Council,13/06/2019,091HOUSING,Housing and Community Services,20120,Neighbourhood Services,D2622,Mobile Phones,41.08,O2 (UK) Ltd,Mobile Phones,2011107,201904
Rother District Council,13/06/2019,091HOUSING,Housing and Community Services,20120,Neighbourhood Services,D2622,Mobile Phones,10.00,O2 (UK) Ltd,Mobile Phones,2011107,201904
Rother District Council,13/06/2019,091HOUSING,Housing and Community Services,20120,Neighbourhood Services,D2622,Mobile Phones,10.00,O2 (UK) Ltd,Mobile Phones,2011107,201904
Rother District Council,13/06/2019,091HOUSING,Housing and Community Services,20120,Neighbourhood Services,D2622,Mobile Phones,10.00,O2 (UK) Ltd,Mobile Phones,2011107,201904
Rother District Council,13/06/2019,091HOUSING,Housing and Community Services,20120,Neighbourhood Services,D2622,Mobile Phones,10.00,O2 (UK) Ltd,Mobile Phones,2011107,201904
Rother District Council,13/06/2019,091HOUSING,Housing and Community Services,20120,Neighbourhood Services,D2622,Mobile Phones,10.00,O2 (UK) Ltd,Mobile Phones,2011107,201904
Rother District Council,13/06/2019,091HOUSING,Housing and Community Services,20120,Neighbourhood Services,D2622,Mobile Phones,10.00,O2 (UK) Ltd,Mobile Phones,2011107,201904
Rother District Council,13/06/2019,091HOUSING,Housing and Community Services,20120,Neighbourhood Services,D2622,Mobile Phones,10.00,O2 (UK) Ltd,Mobile Phones,2011107,201904
Rother District Council,13/06/2019,091HOUSING,Housing and Community Services,20120,Neighbourhood Services,D2622,Mobile Phones,10.00,O2 (UK) Ltd,Mobile Phones,2011107,201904
Rother District Council,13/06/2019,091HOUSING,Housing and Community Services,20120,Neighbourhood Services,D2622,Mobile Phones,10.00,O2 (UK) Ltd,Mobile Phones,2011107,201904
Rother District Council,13/06/2019,091HOUSING,Housing and Community Services,20120,Neighbourhood Services,D2622,Mobile Phones,10.00,O2 (UK) Ltd,Mobile Phones,2011107,201904
Rother District Council,13/06/2019,091HOUSING,Housing and Community Services,20120,Neighbourhood Services,D2622,Mobile Phones,10.00,O2 (UK) Ltd,Mobile Phones,2011107,201904
Rother District Council,13/06/2019,091HOUSING,Housing and Community Services,20120,Neighbourhood Services,D2622,Mobile Phones,10.00,O2 (UK) Ltd,Mobile Phones,2011107,201904
Rother District Council,13/06/2019,091HOUSING,Housing and Community Services,20120,Neighbourhood Services,D2622,Mobile Phones,10.00,O2 (UK) Ltd,Mobile Phones,2011107,201904
Rother District Council,13/06/2019,091HOUSING,Housing and Community Services,20120,Neighbourhood Services,D2622,Mobile Phones,10.00,O2 (UK) Ltd,Mobile Phones,2011107,201904
Rother District Council,13/06/2019,091HOUSING,Housing and Community Services,20120,Neighbourhood Services,D2622,Mobile Phones,10.00,O2 (UK) Ltd,Mobile Phones,2011107,201904
Rother District Council,13/06/2019,091HOUSING,Housing and Community Services,20120,Neighbourhood Services,D2622,Mobile Phones,10.00,O2 (UK) Ltd,Mobile Phones,2011107,201904
Rother District Council,13/06/2019,101RESOURCES,Resources,20215,Revenue and Benefits,D2622,Mobile Phones,10.00,O2 (UK) Ltd,Mobile Phones,2011106,201904
Rother District Council,13/06/2019,101RESOURCES,Resources,20215,Revenue and Benefits,D2622,Mobile Phones,10.00,O2 (UK) Ltd,Mobile Phones,2011106,201904
Rother District Council,13/06/2019,101RESOURCES,Resources,20215,Revenue and Benefits,D2622,Mobile Phones,10.00,O2 (UK) Ltd,Mobile Phones,2011106,201904
Rother District Council,13/06/2019,101RESOURCES,Resources,20215,Revenue and Benefits,D2622,Mobile Phones,10.00,O2 (UK) Ltd,Mobile Phones,2011106,201904
Rother District Council,13/06/2019,101RESOURCES,Resources,20215,Revenue and Benefits,D2622,Mobile Phones,10.00,O2 (UK) Ltd,Mobile Phones,2011106,201904
Rother District Council,13/06/2019,101RESOURCES,Resources,20239,Computer Services,D2622,Mobile Phones,10.00,O2 (UK) Ltd,Mobile Phones,2011106,201904
Rother District Council,13/06/2019,101RESOURCES,Resources,20239,Computer Services,D2622,Mobile Phones,20.37,O2 (UK) Ltd,Mobile Phones,2011106,201904
Rother District Council,13/06/2019,101RESOURCES,Resources,20239,Computer Services,D2622,Mobile Phones,10.00,O2 (UK) Ltd,Mobile Phones,2011106,201904
Rother District Council,13/06/2019,101RESOURCES,Resources,20239,Computer Services,D2622,Mobile Phones,10.00,O2 (UK) Ltd,Mobile Phones,2011106,201904
Rother District Council,13/06/2019,101RESOURCES,Resources,20239,Computer Services,D2622,Mobile Phones,10.00,O2 (UK) Ltd,Mobile Phones,2011106,201904
Rother District Council,13/06/2019,101RESOURCES,Resources,20239,Computer Services,D2622,Mobile Phones,10.00,O2 (UK) Ltd,Mobile Phones,2011106,201904
Rother District Council,13/06/2019,101RESOURCES,Resources,20215,Revenue and Benefits,D2622,Mobile Phones,10.00,O2 (UK) Ltd,Mobile Phones,2011106,201904
Rother District Council,13/06/2019,101RESOURCES,Resources,20215,Revenue and Benefits,D2622,Mobile Phones,10.00,O2 (UK) Ltd,Mobile Phones,2011106,201904
Rother District Council,13/06/2019,101RESOURCES,Resources,20226,Service Manager Finance and Welfare,D2622,Mobile Phones,10.00,O2 (UK) Ltd,Mobile Phones,2011109,201904
Rother District Council,13/06/2019,101RESOURCES,Resources,20222,Accountancy,D2622,Mobile Phones,10.00,O2 (UK) Ltd,Mobile Phones,2011106,201904
Rother District Council,13/06/2019,101RESOURCES,Resources,20222,Accountancy,D2622,Mobile Phones,10.00,O2 (UK) Ltd,Mobile Phones,2011106,201904
Rother District Council,13/06/2019,091HOUSING,Housing and Community Services,20204,Housing Administration Account,D2622,Mobile Phones,10.00,O2 (UK) Ltd,Mobile Phones,2011107,201904
Rother District Council,13/06/2019,091HOUSING,Housing and Community Services,20204,Housing Administration Account,D2622,Mobile Phones,10.00,O2 (UK) Ltd,Mobile Phones,2011107,201904
Rother District Council,13/06/2019,091HOUSING,Housing and Community Services,20204,Housing Administration Account,D2622,Mobile Phones,10.00,O2 (UK) Ltd,Mobile Phones,2011107,201904
Rother District Council,13/06/2019,091HOUSING,Housing and Community Services,20204,Housing Administration Account,D2622,Mobile Phones,10.00,O2 (UK) Ltd,Mobile Phones,2011107,201904
Rother District Council,13/06/2019,091HOUSING,Housing and Community Services,20204,Housing Administration Account,D2622,Mobile Phones,10.00,O2 (UK) Ltd,Mobile Phones,2011107,201904
Rother District Council,13/06/2019,091HOUSING,Housing and Community Services,20204,Housing Administration Account,D2622,Mobile Phones,10.00,O2 (UK) Ltd,Mobile Phones,2011107,201904
Rother District Council,13/06/2019,091HOUSING,Housing and Community Services,20204,Housing Administration Account,D2622,Mobile Phones,10.00,O2 (UK) Ltd,Mobile Phones,2011107,201904
Rother District Council,13/06/2019,091HOUSING,Housing and Community Services,20204,Housing Administration Account,D2622,Mobile Phones,10.32,O2 (UK) Ltd,Mobile Phones,2011107,201904
Rother District Council,13/06/2019,091HOUSING,Housing and Community Services,20204,Housing Administration Account,D2622,Mobile Phones,10.00,O2 (UK) Ltd,Mobile Phones,2011107,201904
Rother District Council,13/06/2019,091HOUSING,Housing and Community Services,20204,Housing Administration Account,D2622,Mobile Phones,10.00,O2 (UK) Ltd,Mobile Phones,2011107,201904
Rother District Council,13/06/2019,091HOUSING,Housing and Community Services,20204,Housing Administration Account,D2622,Mobile Phones,10.00,O2 (UK) Ltd,Mobile Phones,2011107,201904
Rother District Council,13/06/2019,091HOUSING,Housing and Community Services,20264,Property Maintenance Team,D2622,Mobile Phones,10.00,O2 (UK) Ltd,Mobile Phones,2011107,201904
Rother District Council,13/06/2019,091HOUSING,Housing and Community Services,20264,Property Maintenance Team,D2622,Mobile Phones,10.00,O2 (UK) Ltd,Mobile Phones,2011107,201904
Rother District Council,13/06/2019,091HOUSING,Housing and Community Services,20264,Property Maintenance Team,D2622,Mobile Phones,11.02,O2 (UK) Ltd,Mobile Phones,2011107,201904
Rother District Council,13/06/2019,091HOUSING,Housing and Community Services,20264,Property Maintenance Team,D2622,Mobile Phones,10.00,O2 (UK) Ltd,Mobile Phones,2011107,201904
Rother District Council,13/06/2019,091HOUSING,Housing and Community Services,20264,Property Maintenance Team,D2622,Mobile Phones,10.00,O2 (UK) Ltd,Mobile Phones,2011107,201904
Rother District Council,13/06/2019,091HOUSING,Housing and Community Services,20264,Property Maintenance Team,D2622,Mobile Phones,10.00,O2 (UK) Ltd,Mobile Phones,2011107,201904
Rother District Council,13/06/2019,091HOUSING,Housing and Community Services,20264,Property Maintenance Team,D2622,Mobile Phones,10.00,O2 (UK) Ltd,Mobile Phones,2011107,201904
Rother District Council,13/06/2019,091HOUSING,Housing and Community Services,20236,Customer Services and Development,D2622,Mobile Phones,15.00,O2 (UK) Ltd,Mobile Phones,2011107,201904
Rother District Council,13/06/2019,091HOUSING,Housing and Community Services,20262,Head of Service Housing and Community Services,D2622,Mobile Phones,10.00,O2 (UK) Ltd,Mobile Phones,2011107,201904
Rother District Council,14/06/2019,081ACQUISIT,"Acquisitions, Transformation and Regeneration",20267,Property Investment Strategy - 18-40 Beeching Road ( Land and Buildings),B2202,Gas,71.40,Gazprom Marketing & Trading Retail Ltd,Gas - Gas Charges,2010987,201904
Rother District Council,14/06/2019,101RESOURCES,Resources,20216,Cost Of Collection,D2513,Hired and Contracted services,51.00,H M Land Registry,Hired and contracted services - Council Tax-Land Registry Enquiries,2010907,201904
Rother District Council,14/06/2019,071STRAT,Strategy and Planning,20258,BC Dangerous Structures H+R Partnership,D2513,Hired and Contracted services,3.00,H M Land Registry,Hired and contracted services - Env H-Land Registry,2010907,201904
Rother District Council,14/06/2019,041ENVIRON,Environmental Services,32144,EH Environmental Services Admin R + W Partnership,D2513,Hired and Contracted services,6.00,H M Land Registry,Hired and contracted services - Env H-Land Registry,2010907,201904
Rother District Council,14/06/2019,071STRAT,Strategy and Planning,20246,Planning Applications,D2513,Hired and Contracted services,12.00,H M Land Registry,Hired and contracted services - Land Registry-Planning,2010907,201904
Rother District Council,15/06/2019,091HOUSING,Housing and Community Services,20107,Camber Beach & Foreshore,C1104,Derv,3.80,Allstar Business Solutions,Derv - Fuel Service fee payable on fuel cards,2011103,201904
Rother District Council,15/06/2019,091HOUSING,Housing and Community Services,20145,Maintenance Services,C1104,Derv,1.90,Allstar Business Solutions,Derv - Fuel Service fee payable on fuel cards,2011103,201904
Rother District Council,15/06/2019,031RESOURCES,Executive Directors & Corporate Core,20171,Human Resources,D2922,Subscriptions,778.38,Croner-I,Subscriptions - Subscription to Organisations,2010414,201904
Rother District Council,15/06/2019,091HOUSING,Housing and Community Services,20107,Camber Beach & Foreshore,C1104,Derv,45.88,Allstar Business Solutions,Derv,2011103,201904
Rother District Council,15/06/2019,091HOUSING,Housing and Community Services,20107,Camber Beach & Foreshore,C1104,Derv,21.18,Allstar Business Solutions,Derv,2011103,201904
Rother District Council,15/06/2019,091HOUSING,Housing and Community Services,20145,Maintenance Services,C1104,Derv,39.62,Allstar Business Solutions,Derv,2011103,201904
Rother District Council,15/06/2019,091HOUSING,Housing and Community Services,20145,Maintenance Services,C1104,Derv,64.17,Allstar Business Solutions,Derv,2011103,201904
Rother District Council,15/06/2019,091HOUSING,Housing and Community Services,20145,Maintenance Services,C1104,Derv,76.24,Allstar Business Solutions,Derv,2011103,201904
Rother District Council,17/06/2019,031RESOURCES,Executive Directors & Corporate Core,20171,Human Resources,D1201,Equipment & Materials,111.15,Office Furniture Online,Equipment & Materials - Health and Safety Act Equipment,2010743,201904
Rother District Council,17/06/2019,091HOUSING,Housing and Community Services,20137,Car Parks,B1100,Repairs to Premises,380.00,B and G Environmental Services Limited,Repairs to Premises - Drainage Clearance,2010780,201904
Rother District Council,17/06/2019,091HOUSING,Housing and Community Services,20128,Public Conveniences,B1100,Repairs to Premises,195.00,B and G Environmental Services Limited,Repairs to Premises - Drainage Clearance,2010950,201904
Rother District Council,17/06/2019,091HOUSING,Housing and Community Services,20108,Bexhill Promenade & Foreshore,B1100,Repairs to Premises,90.05,Jewson Limited,Repairs to Premises - Purchase of Materials - Build Maint,2010757,201904
Rother District Council,17/06/2019,031RESOURCES,Executive Directors & Corporate Core,20173,Administrative Offices - Town Hall,B1100,Repairs to Premises,67.50,Alfa Electric Ltd,Repairs to Premises Repairs - Electrical Works,2010770,201904
Rother District Council,18/06/2019,091HOUSING,Housing and Community Services,20205,Housing Loans Account,D2514,Accommodation Costs,695.00,Burgess & Co Lettings and Management,Accommodation Costs - Homelessness services Deposit for Landlords,2010735,201904
Rother District Council,18/06/2019,091HOUSING,Housing and Community Services,20205,Housing Loans Account,D2514,Accommodation Costs,695.00,Burgess & Co Lettings and Management,Accommodation Costs - Homelessness services Rent in Advance for Homeless,2010735,201904
Rother District Council,18/06/2019,101RESOURCES,Resources,20216,Cost Of Collection,D2513,Hired and Contracted services,48.00,H M Land Registry,Hired and contracted services - Council Tax-Land Registry Enquiries,2010908,201904
Rother District Council,18/06/2019,071STRAT,Strategy and Planning,20258,BC Dangerous Structures H+R Partnership,D2513,Hired and Contracted services,6.00,H M Land Registry,Hired and contracted services - Env H-Land Registry,2010908,201904
Rother District Council,18/06/2019,071STRAT,Strategy and Planning,20246,Planning Applications,D2513,Hired and Contracted services,18.00,H M Land Registry,Hired and contracted services - Land Registry-Planning,2010908,201904
Rother District Council,18/06/2019,101RESOURCES,Resources,20215,Revenue and Benefits,D2513,Hired and Contracted services,"2,002.08",Capita Business Services Ltd,Hired and contracted services - Off-site resilience processing,2010817,201904
Rother District Council,18/06/2019,041ENVIRON,Environmental Services,32135,EH Dog Control R + W Partnership,D2513,Hired and Contracted services,"2,950.00",Animal Wardens Ltd,Hired and contracted services - Rother Collection of Dogs EnvH,2010544,201904
Rother District Council,18/06/2019,091HOUSING,Housing and Community Services,20137,Car Parks,B1100,Repairs to Premises,420.00,B and G Environmental Services Limited,Repairs to Premises - Drainage Clearance,2010949,201904
Rother District Council,18/06/2019,091HOUSING,Housing and Community Services,20108,Bexhill Promenade & Foreshore,B1100,Repairs to Premises,34.61,Parker Building Supplies Ltd,Repairs to Premises - Purchase of Materials - Build Maint,2010550,201904
Rother District Council,18/06/2019,091HOUSING,Housing and Community Services,20128,Public Conveniences,D2513,Hired and Contracted services,102.00,Besure Security Systems,Hired and Contracted services,2010489,201905
Rother District Council,18/06/2019,091HOUSING,Housing and Community Services,20200,Housing Needs - HB (Housing Benefit),D2514,Accommodation Costs,82.60,South Down Residential Ltd,Accommodation Costs,2010603,201904
Rother District Council,18/06/2019,091HOUSING,Housing and Community Services,20200,Housing Needs - HB (Housing Benefit),D2514,Accommodation Costs,142.80,South Down Residential Ltd,Accommodation Costs,2010603,201904
Rother District Council,18/06/2019,091HOUSING,Housing and Community Services,20200,Housing Needs - HB (Housing Benefit),D2514,Accommodation Costs,35.70,South Down Residential Ltd,Accommodation Costs,2010603,201904
Rother District Council,18/06/2019,091HOUSING,Housing and Community Services,20200,Housing Needs - HB (Housing Benefit),D2514,Accommodation Costs,268.80,South Down Residential Ltd,Accommodation Costs,2010603,201904
Rother District Council,18/06/2019,091HOUSING,Housing and Community Services,20200,Housing Needs - HB (Housing Benefit),D2514,Accommodation Costs,67.20,South Down Residential Ltd,Accommodation Costs,2010603,201904
Rother District Council,18/06/2019,091HOUSING,Housing and Community Services,20200,Housing Needs - HB (Housing Benefit),D2514,Accommodation Costs,260.00,South Down Residential Ltd,Accommodation Costs,2010603,201904
Rother District Council,18/06/2019,091HOUSING,Housing and Community Services,20200,Housing Needs - HB (Housing Benefit),D2514,Accommodation Costs,65.00,South Down Residential Ltd,Accommodation Costs,2010603,201904
Rother District Council,18/06/2019,091HOUSING,Housing and Community Services,20200,Housing Needs - HB (Housing Benefit),D2514,Accommodation Costs,65.00,South Down Residential Ltd,Accommodation Costs,2010603,201904
Rother District Council,18/06/2019,091HOUSING,Housing and Community Services,20200,Housing Needs - HB (Housing Benefit),D2514,Accommodation Costs,371.00,South Down Residential Ltd,Accommodation Costs,2010603,201904
Rother District Council,18/06/2019,091HOUSING,Housing and Community Services,20200,Housing Needs - HB (Housing Benefit),D2514,Accommodation Costs,130.00,South Down Residential Ltd,Accommodation Costs,2010603,201904
Rother District Council,18/06/2019,091HOUSING,Housing and Community Services,20200,Housing Needs - HB (Housing Benefit),D2514,Accommodation Costs,268.80,South Down Residential Ltd,Accommodation Costs,2010603,201904
Rother District Council,18/06/2019,091HOUSING,Housing and Community Services,20200,Housing Needs - HB (Housing Benefit),D2514,Accommodation Costs,67.20,South Down Residential Ltd,Accommodation Costs,2010603,201904
Rother District Council,18/06/2019,091HOUSING,Housing and Community Services,20200,Housing Needs - HB (Housing Benefit),D2514,Accommodation Costs,268.80,South Down Residential Ltd,Accommodation Costs,2010603,201904
Rother District Council,18/06/2019,091HOUSING,Housing and Community Services,20200,Housing Needs - HB (Housing Benefit),D2514,Accommodation Costs,67.20,South Down Residential Ltd,Accommodation Costs,2010603,201904
Rother District Council,18/06/2019,091HOUSING,Housing and Community Services,20200,Housing Needs - HB (Housing Benefit),D2514,Accommodation Costs,260.00,South Down Residential Ltd,Accommodation Costs,2010603,201904
Rother District Council,18/06/2019,091HOUSING,Housing and Community Services,20200,Housing Needs - HB (Housing Benefit),D2514,Accommodation Costs,65.00,South Down Residential Ltd,Accommodation Costs,2010603,201904
Rother District Council,18/06/2019,091HOUSING,Housing and Community Services,20200,Housing Needs - HB (Housing Benefit),D2514,Accommodation Costs,142.80,South Down Residential Ltd,Accommodation Costs,2010603,201904
Rother District Council,18/06/2019,091HOUSING,Housing and Community Services,20200,Housing Needs - HB (Housing Benefit),D2514,Accommodation Costs,35.70,South Down Residential Ltd,Accommodation Costs,2010603,201904
Rother District Council,18/06/2019,091HOUSING,Housing and Community Services,20200,Housing Needs - HB (Housing Benefit),D2514,Accommodation Costs,347.20,South Down Residential Ltd,Accommodation Costs,2010603,201904
Rother District Council,18/06/2019,091HOUSING,Housing and Community Services,20200,Housing Needs - HB (Housing Benefit),D2514,Accommodation Costs,86.80,South Down Residential Ltd,Accommodation Costs,2010603,201904
Rother District Council,18/06/2019,091HOUSING,Housing and Community Services,20200,Housing Needs - HB (Housing Benefit),D2514,Accommodation Costs,347.20,South Down Residential Ltd,Accommodation Costs,2010603,201904
Rother District Council,18/06/2019,091HOUSING,Housing and Community Services,20200,Housing Needs - HB (Housing Benefit),D2514,Accommodation Costs,86.80,South Down Residential Ltd,Accommodation Costs,2010603,201904
Rother District Council,18/06/2019,091HOUSING,Housing and Community Services,20200,Housing Needs - HB (Housing Benefit),D2514,Accommodation Costs,330.40,South Down Residential Ltd,Accommodation Costs,2010603,201904
Rother District Council,19/06/2019,091HOUSING,Housing and Community Services,20137,Car Parks,D1201,Equipment & Materials,48.00,Modal Innovation Ltd t/a The Parking Shop,Equipment & Materials - Car Parks Tickets,2010871,201904
Rother District Council,19/06/2019,091HOUSING,Housing and Community Services,20132,Street & Beach Cleansing,D1201,Equipment & Materials,105.00,John Parker & Son Ltd,Equipment & Materials - Supply of Litter Bins,2010762,201905
Rother District Council,19/06/2019,091HOUSING,Housing and Community Services,20137,Car Parks,D2626,Postages,15.00,Modal Innovation Ltd t/a The Parking Shop,Postages - Carriage of Supplies,2010871,201904
Rother District Council,19/06/2019,091HOUSING,Housing and Community Services,20114,Bexhill Parks & Open Spaces,B1100,Repairs to Premises,7.92,Jewson Limited,Repairs to Premises - Purchase of Materials - Build Maint,2010759,201904
Rother District Council,19/06/2019,091HOUSING,Housing and Community Services,20108,Bexhill Promenade & Foreshore,B1100,Repairs to Premises,56.70,Jewson Limited,Repairs to Premises - Purchase of Materials - Build Maint,2010674,201904
Rother District Council,19/06/2019,091HOUSING,Housing and Community Services,20108,Bexhill Promenade & Foreshore,B1100,Repairs to Premises,45.42,Jewson Limited,Repairs to Premises - Purchase of Materials - Build Maint,2010758,201904
Rother District Council,19/06/2019,091HOUSING,Housing and Community Services,20108,Bexhill Promenade & Foreshore,B1100,Repairs to Premises,40.57,Trade UK Account (Screwfix),Repairs to Premises - Purchase of Materials - Build Maint,2010569,201904
Rother District Council,19/06/2019,081ACQUISIT,"Acquisitions, Transformation and Regeneration",20148,Misc Land & Buildings,B2422,Sewerage,141.00,Cleansing Service Group Ltd,Sewerage Parks- Emptying of Cesspit,2010552,201904
Rother District Council,20/06/2019,999NOREPORT,Housing and Community Services,70737,Capital � Barnhorn Green,N1004,Architects & Consultant Fees,"1,182.00",Southern Testing Laboratories Limited,Architects & Consultant Fees Capital-Architect and Conslt Fees,2010855,201904
Rother District Council,20/06/2019,091HOUSING,Housing and Community Services,20114,Bexhill Parks & Open Spaces,D1201,Equipment & Materials,49.54,Alfa Electric Ltd,Equipment & Materials - Maintenance of Seats/Plaques from Donations,2010578,201904
Rother District Council,20/06/2019,041ENVIRON,Environmental Services,32142,EH Taxi and Private Hire Licenses R + W Partnership,D2513,Hired and Contracted services,176.00,uCheck,Hired and contracted services - Service fee paid,2010925,201904
Rother District Council,20/06/2019,041ENVIRON,Environmental Services,32142,EH Taxi and Private Hire Licenses R + W Partnership,D2513,Hired and Contracted services,34.68,uCheck,Hired and contracted services - Service fee paid,2010925,201904
Rother District Council,20/06/2019,081ACQUISIT,"Acquisitions, Transformation and Regeneration",20148,Misc Land & Buildings,B2422,Sewerage,141.00,Cleansing Service Group Ltd,Sewerage Parks- Emptying of Cesspit,2010571,201904
Rother District Council,21/06/2019,101RESOURCES,Resources,20239,Computer Services,D2635,Computer Licences,"10,800.00",Chess Cybersecurity,Computer Licences - Maintenance/Upgrading of Software,2011646,201905
Rother District Council,21/06/2019,101RESOURCES,Resources,20239,Computer Services,D2509,Consultants and Other Services,"5,400.00",Chess Cybersecurity,Consultants and other services - Consultants Fees,2011646,201905
Rother District Council,21/06/2019,101RESOURCES,Resources,20216,Cost Of Collection,D2513,Hired and Contracted services,36.00,H M Land Registry,Hired and contracted services - Council Tax-Land Registry Enquiries,2010909,201904
Rother District Council,21/06/2019,041ENVIRON,Environmental Services,32144,EH Environmental Services Admin R + W Partnership,D2513,Hired and Contracted services,3.00,H M Land Registry,Hired and contracted services - Env H-Land Registry,2010909,201904
Rother District Council,21/06/2019,071STRAT,Strategy and Planning,20258,BC Dangerous Structures H+R Partnership,D2513,Hired and Contracted services,12.00,H M Land Registry,Hired and contracted services - Env H-Land Registry,2010909,201904
Rother District Council,21/06/2019,091HOUSING,Housing and Community Services,20200,Housing Needs - HB (Housing Benefit),D2513,Hired and Contracted services,3.00,H M Land Registry,Hired and contracted services - Housing-Land Registry,2010909,201904
Rother District Council,21/06/2019,071STRAT,Strategy and Planning,20246,Planning Applications,D2513,Hired and Contracted services,6.00,H M Land Registry,Hired and contracted services - Land Registry-Planning,2010909,201904
Rother District Council,21/06/2019,071STRAT,Strategy and Planning,20245,Planning Business Support,A2202,Recruitment expenses,619.75,JPIMedia Publishing Ltd,Recruitment expenses Advertising Vacant Post,2010647,201904
Rother District Council,21/06/2019,091HOUSING,Housing and Community Services,20128,Public Conveniences,B2422,Sewerage,208.42,Scottish Water Business Stream Limited,Sewerage - Sewerage Charges,2010763,201904
Rother District Council,21/06/2019,071STRAT,Strategy and Planning,20246,Planning Applications,D2519,Statutory Advertising,777.75,JPIMedia Publishing Ltd,Statutory Advertising Planadv - Rye+Battle Observer,2010646,201904
Rother District Council,21/06/2019,091HOUSING,Housing and Community Services,20128,Public Conveniences,B2421,Water,120.72,Scottish Water Business Stream Limited,Water - Water Charges,2010763,201904
Rother District Council,23/06/2019,071STRAT,Strategy and Planning,20246,Planning Applications,D2519,Statutory Advertising,292.86,Reach Publishing Services Ltd,Statutory Advertising - Planadv-Kent+East Sussex Courier,2010632,201904
Rother District Council,23/06/2019,031RESOURCES,Executive Directors & Corporate Core,20179,Communications,E1101,Third party payment other LAs,"3,600.00",East Sussex County Council,Third party payment other LAs - Communications-Officer costs,2010622,201904
Rother District Council,23/06/2019,091HOUSING,Housing and Community Services,20200,Housing Needs - HB (Housing Benefit),D2514,Accommodation Costs,262.50,Specialist Care UK Group Ltd,Accommodation Costs,2010587,201904
Rother District Council,23/06/2019,091HOUSING,Housing and Community Services,20200,Housing Needs - HB (Housing Benefit),D2514,Accommodation Costs,262.50,Specialist Care UK Group Ltd,Accommodation Costs,2010588,201904
Rother District Council,23/06/2019,091HOUSING,Housing and Community Services,20200,Housing Needs - HB (Housing Benefit),D2514,Accommodation Costs,375.00,Specialist Care UK Group Ltd,Accommodation Costs,2010589,201904
Rother District Council,23/06/2019,091HOUSING,Housing and Community Services,20200,Housing Needs - HB (Housing Benefit),D2514,Accommodation Costs,175.00,Specialist Care UK Group Ltd,Accommodation Costs,2010586,201904
Rother District Council,23/06/2019,091HOUSING,Housing and Community Services,20200,Housing Needs - HB (Housing Benefit),D2514,Accommodation Costs,912.50,Specialist Care UK Group Ltd,Accommodation Costs,2010590,201904
Rother District Council,24/06/2019,081ACQUISIT,"Acquisitions, Transformation and Regeneration",20153,"Elva Business Centre, Bexhill",B2201,Electricity,744.94,Laser Energy Buying Group (Kent County Council Commercial Services),Electricity - Electricity Charges,2011152,201904
Rother District Council,24/06/2019,081ACQUISIT,"Acquisitions, Transformation and Regeneration",20154,Committee Property Account,B2201,Electricity,48.00,Laser Energy Buying Group (Kent County Council Commercial Services),Electricity - Electricity Charges,2011152,201904
Rother District Council,24/06/2019,081ACQUISIT,"Acquisitions, Transformation and Regeneration",20154,Committee Property Account,B2201,Electricity,56.89,Laser Energy Buying Group (Kent County Council Commercial Services),Electricity - Electricity Charges,2011152,201904
Rother District Council,24/06/2019,081ACQUISIT,"Acquisitions, Transformation and Regeneration",20154,Committee Property Account,B2201,Electricity,56.88,Laser Energy Buying Group (Kent County Council Commercial Services),Electricity - Electricity Charges,2011152,201904
Rother District Council,24/06/2019,081ACQUISIT,"Acquisitions, Transformation and Regeneration",20154,Committee Property Account,B2201,Electricity,56.89,Laser Energy Buying Group (Kent County Council Commercial Services),Electricity - Electricity Charges,2011152,201904
Rother District Council,24/06/2019,031RESOURCES,Executive Directors & Corporate Core,20176,Administrative Offices - Print Room,B2201,Electricity,570.50,Laser Energy Buying Group (Kent County Council Commercial Services),Electricity - Electricity Charges,2011152,201904
Rother District Council,24/06/2019,031RESOURCES,Executive Directors & Corporate Core,20173,Administrative Offices - Town Hall,B2201,Electricity,"3,531.34",Laser Energy Buying Group (Kent County Council Commercial Services),Electricity - Electricity Charges,2011152,201904
Rother District Council,24/06/2019,031RESOURCES,Executive Directors & Corporate Core,20173,Administrative Offices - Town Hall,B2201,Electricity,"3,466.44",Laser Energy Buying Group (Kent County Council Commercial Services),Electricity - Electricity Charges,2011152,201904
Rother District Council,24/06/2019,031RESOURCES,Executive Directors & Corporate Core,20175,Administrative Offices - T.H. Annex (NOT CHP),B2201,Electricity,886.09,Laser Energy Buying Group (Kent County Council Commercial Services),Electricity - Electricity Charges,2011152,201904
Rother District Council,24/06/2019,031RESOURCES,Executive Directors & Corporate Core,20175,Administrative Offices - T.H. Annex (NOT CHP),B2201,Electricity,838.36,Laser Energy Buying Group (Kent County Council Commercial Services),Electricity - Electricity Charges,2011152,201904
Rother District Council,24/06/2019,091HOUSING,Housing and Community Services,20115,Rye Area Parks & Gardens,B2201,Electricity,30.05,Laser Energy Buying Group (Kent County Council Commercial Services),Electricity - Electricity Charges,2011152,201904
Rother District Council,24/06/2019,091HOUSING,Housing and Community Services,20128,Public Conveniences,B2201,Electricity,31.42,Laser Energy Buying Group (Kent County Council Commercial Services),Electricity - Electricity Charges,2011152,201904
Rother District Council,24/06/2019,091HOUSING,Housing and Community Services,20128,Public Conveniences,B2201,Electricity,129.27,Laser Energy Buying Group (Kent County Council Commercial Services),Electricity - Electricity Charges,2011152,201904
Rother District Council,24/06/2019,091HOUSING,Housing and Community Services,20108,Bexhill Promenade & Foreshore,B2201,Electricity,56.89,Laser Energy Buying Group (Kent County Council Commercial Services),Electricity - Electricity Charges,2011152,201904
Rother District Council,24/06/2019,091HOUSING,Housing and Community Services,20125,Coast Protection,B2201,Electricity,541.66,Laser Energy Buying Group (Kent County Council Commercial Services),Electricity - Electricity Charges,2011152,201904
Rother District Council,24/06/2019,081ACQUISIT,"Acquisitions, Transformation and Regeneration",20154,Committee Property Account,B2202,Gas,9.30,Laser Energy Buying Group (Kent County Council Commercial Services),Gas - Gas Charges,2011121,201904
Rother District Council,24/06/2019,081ACQUISIT,"Acquisitions, Transformation and Regeneration",20154,Committee Property Account,B2202,Gas,9.61,Laser Energy Buying Group (Kent County Council Commercial Services),Gas - Gas Charges,2011121,201904
Rother District Council,24/06/2019,031RESOURCES,Executive Directors & Corporate Core,20173,Administrative Offices - Town Hall,B2202,Gas,361.21,Laser Energy Buying Group (Kent County Council Commercial Services),Gas - Gas Charges,2011121,201904
Rother District Council,24/06/2019,031RESOURCES,Executive Directors & Corporate Core,20176,Administrative Offices - Print Room,B2202,Gas,58.49,Laser Energy Buying Group (Kent County Council Commercial Services),Gas - Gas Charges,2011121,201904
Rother District Council,24/06/2019,031RESOURCES,Executive Directors & Corporate Core,20175,Administrative Offices - T.H. Annex (NOT CHP),B2202,Gas,307.23,Laser Energy Buying Group (Kent County Council Commercial Services),Gas - Gas Charges,2011121,201904
Rother District Council,24/06/2019,091HOUSING,Housing and Community Services,20109,Sports Development,D2626,Postages,10.83,Coachwise Ltd,Postages - Carriage of Supplies,2010776,201904
Rother District Council,24/06/2019,091HOUSING,Housing and Community Services,20102,Rother Museum Services,B1100,Repairs to Premises,224.00,ADT Fire and  Security Plc,Repairs to Premises - Fire Alarm System Maintenance,2010621,201904
Rother District Council,24/06/2019,081ACQUISIT,"Acquisitions, Transformation and Regeneration",20148,Misc Land & Buildings,B1100,Repairs to Premises,800.00,MC Glass (East Sussex) Ltd,Repairs to Premises - Repairs Doors,2010529,201904
Rother District Council,24/06/2019,091HOUSING,Housing and Community Services,20108,Bexhill Promenade & Foreshore,B1100,Repairs to Premises,"7,744.39",Alfa Electric Ltd,Repairs to Premises - Specified Repairs and Works listed,2010629,201904
Rother District Council,24/06/2019,091HOUSING,Housing and Community Services,20109,Sports Development,D2927,Services Facilitated by External Grants,49.90,Coachwise Ltd,Services Facilitated by External - Grants-Active Sussex Project workforce dev.,2010776,201904
Rother District Council,24/06/2019,091HOUSING,Housing and Community Services,20109,Sports Development,D2927,Services Facilitated by External Grants,275.00,Coachwise Ltd,Services Facilitated by External - Grants-Active Sussex Project workforce dev.,2010776,201904
Rother District Council,24/06/2019,081ACQUISIT,"Acquisitions, Transformation and Regeneration",20148,Misc Land & Buildings,B2422,Sewerage,141.00,Cleansing Service Group Ltd,Sewerage Parks- Emptying of Cesspit,2010595,201904
Rother District Council,24/06/2019,041ENVIRON,Environmental Services,32140,EN Wealden Training (WEALDEN ONLY) R + W Partnership,A2203,Training,80.25,Uckfield Town Council,Training,2010572,201904
Rother District Council,24/06/2019,091HOUSING,Housing and Community Services,20200,Housing Needs - HB (Housing Benefit),D2514,Accommodation Costs,252.00,Savoy Court Ltd,Accommodation Costs,2010593,201904
Rother District Council,24/06/2019,091HOUSING,Housing and Community Services,20200,Housing Needs - HB (Housing Benefit),D2514,Accommodation Costs,63.00,Savoy Court Ltd,Accommodation Costs,2010593,201904
Rother District Council,24/06/2019,091HOUSING,Housing and Community Services,20200,Housing Needs - HB (Housing Benefit),D2514,Accommodation Costs,285.60,Savoy Court Ltd,Accommodation Costs,2010594,201904
Rother District Council,24/06/2019,091HOUSING,Housing and Community Services,20200,Housing Needs - HB (Housing Benefit),D2514,Accommodation Costs,71.40,Savoy Court Ltd,Accommodation Costs,2010594,201904
Rother District Council,24/06/2019,091HOUSING,Housing and Community Services,20200,Housing Needs - HB (Housing Benefit),D2514,Accommodation Costs,300.00,Specialist Care UK Group Ltd,Accommodation Costs,2010789,201904
Rother District Council,24/06/2019,091HOUSING,Housing and Community Services,20200,Housing Needs - HB (Housing Benefit),D2514,Accommodation Costs,262.50,Specialist Care UK Group Ltd,Accommodation Costs,2010790,201904
Rother District Council,24/06/2019,091HOUSING,Housing and Community Services,20200,Housing Needs - HB (Housing Benefit),D2514,Accommodation Costs,175.00,Specialist Care UK Group Ltd,Accommodation Costs,2010791,201904
Rother District Council,24/06/2019,091HOUSING,Housing and Community Services,20200,Housing Needs - HB (Housing Benefit),D2514,Accommodation Costs,262.50,Specialist Care UK Group Ltd,Accommodation Costs,2010794,201904
Rother District Council,24/06/2019,091HOUSING,Housing and Community Services,20200,Housing Needs - HB (Housing Benefit),D2514,Accommodation Costs,150.00,Specialist Care UK Group Ltd,Accommodation Costs,2010793,201904
Rother District Council,24/06/2019,091HOUSING,Housing and Community Services,20200,Housing Needs - HB (Housing Benefit),D2514,Accommodation Costs,350.00,Specialist Care UK Group Ltd,Accommodation Costs,2010792,201904
Rother District Council,24/06/2019,091HOUSING,Housing and Community Services,20200,Housing Needs - HB (Housing Benefit),D2514,Accommodation Costs,262.50,Specialist Care UK Group Ltd,Accommodation Costs,2010797,201904
Rother District Council,24/06/2019,091HOUSING,Housing and Community Services,20200,Housing Needs - HB (Housing Benefit),D2514,Accommodation Costs,350.00,Specialist Care UK Group Ltd,Accommodation Costs,2010795,201904
Rother District Council,24/06/2019,091HOUSING,Housing and Community Services,20200,Housing Needs - HB (Housing Benefit),D2514,Accommodation Costs,187.50,Specialist Care UK Group Ltd,Accommodation Costs,2010800,201904
Rother District Council,24/06/2019,091HOUSING,Housing and Community Services,20200,Housing Needs - HB (Housing Benefit),D2514,Accommodation Costs,112.50,Specialist Care UK Group Ltd,Accommodation Costs,2010801,201904
Rother District Council,24/06/2019,091HOUSING,Housing and Community Services,20200,Housing Needs - HB (Housing Benefit),D2514,Accommodation Costs,75.00,Specialist Care UK Group Ltd,Accommodation Costs,2010801,201904
Rother District Council,24/06/2019,091HOUSING,Housing and Community Services,20200,Housing Needs - HB (Housing Benefit),D2514,Accommodation Costs,175.00,Specialist Care UK Group Ltd,Accommodation Costs,2010796,201904
Rother District Council,24/06/2019,091HOUSING,Housing and Community Services,20200,Housing Needs - HB (Housing Benefit),D2514,Accommodation Costs,262.50,Specialist Care UK Group Ltd,Accommodation Costs,2010798,201904
Rother District Council,24/06/2019,091HOUSING,Housing and Community Services,20200,Housing Needs - HB (Housing Benefit),D2514,Accommodation Costs,375.00,Specialist Care UK Group Ltd,Accommodation Costs,2010799,201904
Rother District Council,24/06/2019,091HOUSING,Housing and Community Services,20200,Housing Needs - HB (Housing Benefit),D2514,Accommodation Costs,268.80,South Down Residential Ltd,Accommodation Costs,2011037,201904
Rother District Council,24/06/2019,091HOUSING,Housing and Community Services,20200,Housing Needs - HB (Housing Benefit),D2514,Accommodation Costs,67.20,South Down Residential Ltd,Accommodation Costs,2011037,201904
Rother District Council,24/06/2019,091HOUSING,Housing and Community Services,20200,Housing Needs - HB (Housing Benefit),D2514,Accommodation Costs,142.80,South Down Residential Ltd,Accommodation Costs,2011037,201904
Rother District Council,24/06/2019,091HOUSING,Housing and Community Services,20200,Housing Needs - HB (Housing Benefit),D2514,Accommodation Costs,35.70,South Down Residential Ltd,Accommodation Costs,2011037,201904
Rother District Council,24/06/2019,091HOUSING,Housing and Community Services,20200,Housing Needs - HB (Housing Benefit),D2514,Accommodation Costs,330.40,South Down Residential Ltd,Accommodation Costs,2011037,201904
Rother District Council,24/06/2019,091HOUSING,Housing and Community Services,20200,Housing Needs - HB (Housing Benefit),D2514,Accommodation Costs,82.60,South Down Residential Ltd,Accommodation Costs,2011037,201904
Rother District Council,24/06/2019,091HOUSING,Housing and Community Services,20200,Housing Needs - HB (Housing Benefit),D2514,Accommodation Costs,142.80,South Down Residential Ltd,Accommodation Costs,2011037,201904
Rother District Council,24/06/2019,091HOUSING,Housing and Community Services,20200,Housing Needs - HB (Housing Benefit),D2514,Accommodation Costs,35.70,South Down Residential Ltd,Accommodation Costs,2011037,201904
Rother District Council,24/06/2019,091HOUSING,Housing and Community Services,20200,Housing Needs - HB (Housing Benefit),D2514,Accommodation Costs,347.20,South Down Residential Ltd,Accommodation Costs,2011037,201904
Rother District Council,24/06/2019,091HOUSING,Housing and Community Services,20200,Housing Needs - HB (Housing Benefit),D2514,Accommodation Costs,86.80,South Down Residential Ltd,Accommodation Costs,2011037,201904
Rother District Council,24/06/2019,091HOUSING,Housing and Community Services,20200,Housing Needs - HB (Housing Benefit),D2514,Accommodation Costs,347.20,South Down Residential Ltd,Accommodation Costs,2011037,201904
Rother District Council,24/06/2019,091HOUSING,Housing and Community Services,20200,Housing Needs - HB (Housing Benefit),D2514,Accommodation Costs,86.80,South Down Residential Ltd,Accommodation Costs,2011037,201904
Rother District Council,24/06/2019,091HOUSING,Housing and Community Services,20200,Housing Needs - HB (Housing Benefit),D2514,Accommodation Costs,268.80,South Down Residential Ltd,Accommodation Costs,2011037,201904
Rother District Council,24/06/2019,091HOUSING,Housing and Community Services,20200,Housing Needs - HB (Housing Benefit),D2514,Accommodation Costs,67.20,South Down Residential Ltd,Accommodation Costs,2011037,201904
Rother District Council,24/06/2019,091HOUSING,Housing and Community Services,20200,Housing Needs - HB (Housing Benefit),D2514,Accommodation Costs,268.80,South Down Residential Ltd,Accommodation Costs,2011037,201904
Rother District Council,24/06/2019,091HOUSING,Housing and Community Services,20200,Housing Needs - HB (Housing Benefit),D2514,Accommodation Costs,67.20,South Down Residential Ltd,Accommodation Costs,2011037,201904
Rother District Council,24/06/2019,091HOUSING,Housing and Community Services,20200,Housing Needs - HB (Housing Benefit),D2514,Accommodation Costs,364.00,South Down Residential Ltd,Accommodation Costs,2011037,201904
Rother District Council,24/06/2019,091HOUSING,Housing and Community Services,20200,Housing Needs - HB (Housing Benefit),D2514,Accommodation Costs,91.00,South Down Residential Ltd,Accommodation Costs,2011037,201904
Rother District Council,24/06/2019,091HOUSING,Housing and Community Services,20200,Housing Needs - HB (Housing Benefit),D2514,Accommodation Costs,106.00,South Down Residential Ltd,Accommodation Costs,2011037,201904
Rother District Council,25/06/2019,091HOUSING,Housing and Community Services,20128,Public Conveniences,B2611,Contract cleaning,437.50,Specialist Hygiene Services Ltd,Contract cleaning - Public Conveniences Cleaning Servic,2011253,201904
Rother District Council,25/06/2019,031RESOURCES,Executive Directors & Corporate Core,20162,Electoral Registration,D1201,Equipment & Materials,380.31,Pitney Bowes Ltd,Equipment & Materials - Machinery - Maintenance,2010641,201904
Rother District Council,25/06/2019,031RESOURCES,Executive Directors & Corporate Core,20180,Emergency Planning,D2513,Hired and Contracted services,120.00,Camber Memorial Hall,Hired and contracted services - Service fee paid,2010805,201904
Rother District Council,25/06/2019,101RESOURCES,Resources,20207,Reliefs & Benefits-Housing Benefit,D2513,Hired and Contracted services,"13,800.00",Branch and Lee,Hired and contracted services - Subsidy Consultancy,2010993,201904
Rother District Council,25/06/2019,081ACQUISIT,"Acquisitions, Transformation and Regeneration",20150,Peasmarsh Workshops,B1100,Repairs to Premises,170.00,Dean Mortimer,Repairs to Premises - Energy Performance Certificate,2010742,201904
Rother District Council,25/06/2019,091HOUSING,Housing and Community Services,20235,Rye Community Help Point,J1234,RDC Support charge Rye Community Help Point,"2,300.00",East Sussex County Council,RDC Support charge Rye Community Help Point,2010644,201904
Rother District Council,26/06/2019,999NOREPORT,Environmental Services,70706,Capital - Disable Facilities Grant,N1012,Capital Advances,600.00,Peabody South East Ltd,Capital Advances Disabled Facilities Grant,2010807,201904
Rother District Council,26/06/2019,999NOREPORT,Environmental Services,70706,Capital - Disable Facilities Grant,N1012,Capital Advances,"4,950.00",Prestige Stairlifts Ltd,Capital Advances Disabled Facilities Grant,2010808,201904
Rother District Council,26/06/2019,091HOUSING,Housing and Community Services,20128,Public Conveniences,B2611,Contract cleaning,"1,026.00",Specialist Hygiene Services Ltd,Contract cleaning - Public Conveniences Cleaning Servic,2011451,201905
Rother District Council,26/06/2019,091HOUSING,Housing and Community Services,20128,Public Conveniences,B2611,Contract cleaning,168.00,Specialist Hygiene Services Ltd,Contract cleaning - Public Conveniences Cleaning Servic,2010736,201904
Rother District Council,26/06/2019,091HOUSING,Housing and Community Services,20128,Public Conveniences,B2611,Contract cleaning,346.00,Specialist Hygiene Services Ltd,Contract cleaning - Public Conveniences Cleaning Servic,2010737,201904
Rother District Council,26/06/2019,091HOUSING,Housing and Community Services,20128,Public Conveniences,B2611,Contract cleaning,680.00,Specialist Hygiene Services Ltd,Contract cleaning - Public Conveniences Cleaning Servic,2010739,201904
Rother District Council,26/06/2019,091HOUSING,Housing and Community Services,20138,Residual Highway Services,D1201,Equipment & Materials,132.32,Midland Signs (Leicester) Ltd T/A G+G Signs,Equipment & Materials - Purchase of Street Name Plates/Numb,2010820,201904
Rother District Council,26/06/2019,101RESOURCES,Resources,20241,Stationery,D2420,General office supplies (Stationery purchased from ext suppliers),12.42,Office Depot UK Ltd,General office supplies - Stationery (Stationery Services to buy ONLY),2010676,201904
Rother District Council,26/06/2019,091HOUSING,Housing and Community Services,20132,Street & Beach Cleansing,D2513,Hired and Contracted services,60.00,East Sussex and Romney Marsh Hunt,Hired and contracted services - Incineration of dead animals,2010738,201904
Rother District Council,26/06/2019,021CORP,Corporate Services & Human Resources,20167,European Elections,D2415,Printing by external suppliers,"23,025.34",Electoral Reform Services Ltd,Printing by external suppliers - Printing (Not from RDC Print Room),2011012,201904
Rother District Council,26/06/2019,091HOUSING,Housing and Community Services,20102,Rother Museum Services,B1100,Repairs to Premises,282.00,Gilgen Doors Systems UK Ltd,Repairs to Premises - Access System Service,2010740,201904
Rother District Council,26/06/2019,091HOUSING,Housing and Community Services,20108,Bexhill Promenade & Foreshore,B1100,Repairs to Premises,66.84,Parker Building Supplies Ltd,Repairs to Premises - Purchase of Materials - Build Maint,2010638,201904
Rother District Council,26/06/2019,091HOUSING,Housing and Community Services,20114,Bexhill Parks & Open Spaces,B2422,Sewerage,245.77,Scottish Water Business Stream Limited,Sewerage - Sewerage Charges,2010812,201904
Rother District Council,26/06/2019,091HOUSING,Housing and Community Services,20128,Public Conveniences,B2422,Sewerage,"2,211.90",Scottish Water Business Stream Limited,Sewerage - Sewerage Charges,2010812,201904
Rother District Council,26/06/2019,091HOUSING,Housing and Community Services,20128,Public Conveniences,B2422,Sewerage,129.34,Scottish Water Business Stream Limited,Sewerage - Sewerage Charges,2010764,201904
Rother District Council,26/06/2019,091HOUSING,Housing and Community Services,20107,Camber Beach & Foreshore,A2203,Training,475.00,ADM Training Ltd,Training,2010755,201904
Rother District Council,26/06/2019,091HOUSING,Housing and Community Services,20108,Bexhill Promenade & Foreshore,A2203,Training,475.00,ADM Training Ltd,Training,2010755,201904
Rother District Council,26/06/2019,091HOUSING,Housing and Community Services,20108,Bexhill Promenade & Foreshore,A2203,Training,255.00,East Sussex County Council,Training,2010760,201904
Rother District Council,26/06/2019,091HOUSING,Housing and Community Services,20128,Public Conveniences,B2421,Water,92.18,Scottish Water Business Stream Limited,Water - Water Charges,2010764,201904
Rother District Council,26/06/2019,091HOUSING,Housing and Community Services,20200,Housing Needs - HB (Housing Benefit),D2514,Accommodation Costs,385.00,Lets 2 Share Limited,Accommodation Costs,2010633,201904
Rother District Council,26/06/2019,091HOUSING,Housing and Community Services,20200,Housing Needs - HB (Housing Benefit),D2514,Accommodation Costs,385.00,Lets 2 Share Limited,Accommodation Costs,2010633,201904
Rother District Council,26/06/2019,091HOUSING,Housing and Community Services,20200,Housing Needs - HB (Housing Benefit),D2514,Accommodation Costs,385.00,Lets 2 Share Limited,Accommodation Costs,2010633,201904
Rother District Council,26/06/2019,091HOUSING,Housing and Community Services,20200,Housing Needs - HB (Housing Benefit),D2508,Removals and Storage,220.00,Stamford Storage Solutions,Removals and Storage,2010618,201904
Rother District Council,26/06/2019,091HOUSING,Housing and Community Services,20200,Housing Needs - HB (Housing Benefit),D2508,Removals and Storage,130.00,Stamford Storage Solutions,Removals and Storage,2010617,201904
Rother District Council,27/06/2019,101RESOURCES,Resources,20239,Computer Services,D2632,Additional Computer Equipment,"4,603.35",Dell Corporation Ltd,Additional Computer Equipment - New PC/Computer,2010851,201904
Rother District Council,27/06/2019,091HOUSING,Housing and Community Services,20200,Housing Needs - HB (Housing Benefit),D2632,Additional Computer Equipment,903.57,Dell Corporation Ltd,Additional Computer Equipment - New PC/Computer,2010850,201904
Rother District Council,27/06/2019,031RESOURCES,Executive Directors & Corporate Core,20156,Representing Local Interest,D1201,Equipment & Materials,165.70,Ribbonworks Ltd,Equipment & Materials - Access cards and systems,2011265,201904
Rother District Council,27/06/2019,091HOUSING,Housing and Community Services,20109,Sports Development,D2923,Grants made,67.50,Alfa Electric Ltd,Grants made - Sports Development-Active Rother,2011166,201904
Rother District Council,27/06/2019,081ACQUISIT,"Acquisitions, Transformation and Regeneration",20148,Misc Land & Buildings,D2513,Hired and Contracted services,"2,304.50",Bevan Brittan LLP,Hired and contracted services - CORPORATE PLAN blackfriars,2011141,201904
Rother District Council,27/06/2019,101RESOURCES,Resources,20216,Cost Of Collection,D2513,Hired and Contracted services,33.00,H M Land Registry,Hired and contracted services - Council Tax-Land Registry Enquiries,2010922,201904
Rother District Council,27/06/2019,041ENVIRON,Environmental Services,32144,EH Environmental Services Admin R + W Partnership,D2513,Hired and Contracted services,6.00,H M Land Registry,Hired and contracted services - Env H-Land Registry,2010922,201904
Rother District Council,27/06/2019,071STRAT,Strategy and Planning,20258,BC Dangerous Structures H+R Partnership,D2513,Hired and Contracted services,9.00,H M Land Registry,Hired and contracted services - Env H-Land Registry,2010922,201904
Rother District Council,27/06/2019,071STRAT,Strategy and Planning,20255,Local Development Framework,D2513,Hired and Contracted services,225.00,Beatrice Drewe Trust,Hired and contracted services - Hire of Meeting Room,2011308,201905
Rother District Council,27/06/2019,071STRAT,Strategy and Planning,20255,Local Development Framework,D2513,Hired and Contracted services,200.00,Parochial Church Council of Crowhurst,Hired and contracted services - Hire of Meeting Room,2011306,201905
Rother District Council,27/06/2019,071STRAT,Strategy and Planning,20255,Local Development Framework,D2513,Hired and Contracted services,100.00,Stonegate Village Hall,Hired and contracted services - Hire of Meeting Room,2011307,201905
Rother District Council,27/06/2019,071STRAT,Strategy and Planning,20255,Local Development Framework,D2513,Hired and Contracted services,70.00,Flimwell Playing Field Association,Hired and contracted services - Hire of Meeting Room,2011309,201905
Rother District Council,27/06/2019,071STRAT,Strategy and Planning,20255,Local Development Framework,D2513,Hired and Contracted services,210.00,Rye Community Centre Association,Hired and contracted services - Hire of Meeting Room,2011304,201905
Rother District Council,27/06/2019,071STRAT,Strategy and Planning,20255,Local Development Framework,D2513,Hired and Contracted services,450.00,Optivo,Hired and contracted services - Hire of Meeting Room,2011305,201905
Rother District Council,27/06/2019,071STRAT,Strategy and Planning,20246,Planning Applications,D2513,Hired and Contracted services,9.00,H M Land Registry,Hired and contracted services - Land Registry-Planning,2010922,201904
Rother District Council,27/06/2019,091HOUSING,Housing and Community Services,20128,Public Conveniences,B1100,Repairs to Premises,46.27,Graham,Repairs to Premises - Purchase of Materials - Build Maint,2011014,201904
Rother District Council,27/06/2019,091HOUSING,Housing and Community Services,20128,Public Conveniences,B2422,Sewerage,330.00,CountyClean Environmental Services Ltd,Sewerage - Sewage/Cesspool Emptying,2010772,201904
Rother District Council,27/06/2019,071STRAT,Strategy and Planning,20246,Planning Applications,D2519,Statutory Advertising,549.00,JPIMedia Publishing Ltd,Statutory Advertising Planadv - Rye+Battle Observer,2010753,201904
Rother District Council,27/06/2019,101RESOURCES,Resources,20242,Communications-Phones,D2621,Telephones,287.09,BT British Telecommunications plc,Telephones - BT-Rental-General,2010761,201904
Rother District Council,28/06/2019,101RESOURCES,Resources,20217,Reliefs & Benefits-Council Tax Benefit,D2509,Consultants and Other Services,72.30,Northgate Public Services (UK) Ltd,Consultants and other services - Consultants Fees,2010765,201904
Rother District Council,28/06/2019,101RESOURCES,Resources,20216,Cost Of Collection,D2509,Consultants and Other Services,113.02,Northgate Public Services (UK) Ltd,Consultants and other services - Consultants Fees,2010765,201904
Rother District Council,28/06/2019,091HOUSING,Housing and Community Services,20200,Housing Needs - HB (Housing Benefit),D2509,Consultants and Other Services,38.50,Northgate Public Services (UK) Ltd,Consultants and other services - Consultants Fees,2010765,201904
Rother District Council,28/06/2019,081ACQUISIT,"Acquisitions, Transformation and Regeneration",20263,"Head of Service Acquisitions, Transformation and Regeneration",D1201,Equipment & Materials,140.60,Office Furniture Online,Equipment & Materials - Health and Safety Act Equipment,2010980,201904
Rother District Council,28/06/2019,081ACQUISIT,"Acquisitions, Transformation and Regeneration",20263,"Head of Service Acquisitions, Transformation and Regeneration",D1201,Equipment & Materials,84.55,Office Furniture Online,Equipment & Materials - Health and Safety Act Equipment,2010980,201904
Rother District Council,28/06/2019,101RESOURCES,Resources,20241,Stationery,D2420,General office supplies (Stationery purchased from ext suppliers),68.83,SBS Consumables,General office supplies - Stationery (Stationery Services to buy ONLY),2010845,201904
Rother District Council,28/06/2019,031RESOURCES,Executive Directors & Corporate Core,20171,Human Resources,D2513,Hired and Contracted services,999.00,Blue Planet Software Ltd,Hired and contracted services - Consultancy Service per Contract,2010741,201904
Rother District Council,28/06/2019,101RESOURCES,Resources,20216,Cost Of Collection,D2513,Hired and Contracted services,12.00,H M Land Registry,Hired and contracted services - Council Tax-Land Registry Enquiries,2011174,201904
Rother District Council,28/06/2019,091HOUSING,Housing and Community Services,20200,Housing Needs - HB (Housing Benefit),D2513,Hired and Contracted services,3.00,H M Land Registry,Hired and contracted services - Housing-Land Registry,2011174,201904
Rother District Council,28/06/2019,081ACQUISIT,"Acquisitions, Transformation and Regeneration",20144,Property Management,D2513,Hired and Contracted services,18.00,H M Land Registry,Hired and contracted services - Land Registry-Property Management,2011174,201904
Rother District Council,28/06/2019,031RESOURCES,Executive Directors & Corporate Core,32132,Joint Waste Contract Client Unit,D2513,Hired and Contracted services,"16,632.00",WYG Environment Planning Transport Ltd,Hired and contracted services - Service fee paid,2011067,201904
Rother District Council,28/06/2019,071STRAT,Strategy and Planning,20246,Planning Applications,D2417,Photocopy Paper by external suppliers,164.16,Colyer Repropoint Ltd,Photocopy Paper by external suppliers - Planning-A0 Plotter Paper,2010784,201904
Rother District Council,28/06/2019,101RESOURCES,Resources,20216,Cost Of Collection,D2513,Hired and Contracted services,"3,261.79",Virtual Mail Room Ltd,Postages - Virtual Mail Room,2011093,201904
Rother District Council,28/06/2019,021CORP,Corporate Services & Human Resources,20167,European Elections,D2415,Printing by external suppliers,97.72,Electoral Reform Services Ltd,Printing by external suppliers - Printing (Not from RDC Print Room),2010787,201904
Rother District Council,28/06/2019,031RESOURCES,Executive Directors & Corporate Core,20185,Joint Waste procurement,H1005,Recharge of partnership costs external,280.00,Bevan Brittan LLP,Recharge of Joint Waste procurement Costs to external partners,2011142,201905
Rother District Council,28/06/2019,041ENVIRON,Environmental Services,32140,EN Wealden Training (WEALDEN ONLY) R + W Partnership,D2312,Refreshments,15.75,Uckfield Town Council,Refreshments - Catering/Refreshments for Meetings,2010756,201904
Rother District Council,28/06/2019,091HOUSING,Housing and Community Services,20108,Bexhill Promenade & Foreshore,B1100,Repairs to Premises,27.28,Jewson Limited,Repairs to Premises - Purchase of Materials - Build Maint,2010996,201904
Rother District Council,28/06/2019,031RESOURCES,Executive Directors & Corporate Core,20173,Administrative Offices - Town Hall,B1100,Repairs to Premises,549.00,The Roman Group,Repairs to Premises - Repairs Refurbishment of premises,2010767,201904
Rother District Council,28/06/2019,091HOUSING,Housing and Community Services,20128,Public Conveniences,B1100,Repairs to Premises,429.36,Alfa Electric Ltd,Repairs to Premises Repairs - Electrical Works,2011212,201904
Rother District Council,28/06/2019,081ACQUISIT,"Acquisitions, Transformation and Regeneration",20267,Property Investment Strategy - 18-40 Beeching Road ( Land and Buildings),B2422,Sewerage,43.89,Scottish Water Business Stream Limited,Sewerage - Sewerage Charges,2010811,201904
Rother District Council,28/06/2019,031RESOURCES,Executive Directors & Corporate Core,32132,Joint Waste Contract Client Unit,E2302,Third party payment private contractors,"102,514.74",Kier Services - Environmental,Third party payment private contractors - VARIABLE CORE Joint Waste Cost,2010782,201904
Rother District Council,28/06/2019,031RESOURCES,Executive Directors & Corporate Core,20185,Joint Waste procurement,D2513,Hired and Contracted services,"5,433.91",Ricardo-AEA Ltd,Hired and Contracted services,2010774,201905
Rother District Council,28/06/2019,999NOREPORT,Housing and Community Services,70737,Capital � Barnhorn Green,N1001,Land & Property Purchase,"600,000.00",Marchfield (Strategic Land) Ltd C/O Eversheds Sutherland (International) LLP,Land & Property Purchase,2011102,201904
Rother District Council,29/06/2019,091HOUSING,Housing and Community Services,20145,Maintenance Services,D1201,Equipment & Materials,20.80,Thorcraft Ltd,Equipment & Materials - Purchase of Tools,2011828,201906
Rother District Council,29/06/2019,071STRAT,Strategy and Planning,20244,General Planning Expenses,D1204,Newspapers & Periodicals,11.50,Pipers News Ltd,Newspapers & Periodicals - Newspapers,2010821,201904
Rother District Council,29/06/2019,031RESOURCES,Executive Directors & Corporate Core,20159,Corporate Policy Making,D1204,Newspapers & Periodicals,11.50,Pipers News Ltd,Newspapers & Periodicals - Newspapers,2010822,201904
Rother District Council,29/06/2019,031RESOURCES,Executive Directors & Corporate Core,20159,Corporate Policy Making,D1204,Newspapers & Periodicals,11.50,Pipers News Ltd,Newspapers & Periodicals - Newspapers,2010823,201904
Rother District Council,29/06/2019,091HOUSING,Housing and Community Services,20114,Bexhill Parks & Open Spaces,B1100,Repairs to Premises,73.15,Thorcraft Ltd,Repairs to Premises - Purchase of Materials - Build Maint,2011146,201904
Rother District Council,30/06/2019,101RESOURCES,Resources,20216,Cost Of Collection,D2509,Consultants and Other Services,103.00,Wilson's Express Hastings Ltd,Consultants and other services - Consultants Fees,2010750,201904
Rother District Council,30/06/2019,091HOUSING,Housing and Community Services,20108,Bexhill Promenade & Foreshore,B2611,Contract cleaning,126.00,Abacus Main Ltd,Contract cleaning - Office Cleaning,2010748,201904
Rother District Council,30/06/2019,091HOUSING,Housing and Community Services,20107,Camber Beach & Foreshore,C1104,Derv,1.90,Allstar Business Solutions,Derv - Fuel Service fee payable on fuel cards,2011432,201905
Rother District Council,30/06/2019,101RESOURCES,Resources,20241,Stationery,D2420,General office supplies (Stationery purchased from ext suppliers),51.45,Lyreco UK Limited,General office supplies - Stationery (Stationery Services to buy ONLY),2010984,201904
Rother District Council,30/06/2019,101RESOURCES,Resources,20239,Computer Services,D2420,General office supplies (Stationery purchased from ext suppliers),376.75,Global Document Systems Ltd,General office supplies - Stationery Pressure Seal Stationery,2010848,201904
Rother District Council,30/06/2019,091HOUSING,Housing and Community Services,20114,Bexhill Parks & Open Spaces,B2731,Grounds maintenance routine,"61,414.75",Idverde Limited,Grounds maintenance routine - Parks-Grounds Maintenance Contracts,2011004,201904
Rother District Council,30/06/2019,101RESOURCES,Resources,20216,Cost Of Collection,D2513,Hired and Contracted services,"1,425.75",allpay.net Ltd,Hired and contracted services - Allpay Card/Rep/Let Chrg - Vatable,2011439,201905
Rother District Council,30/06/2019,101RESOURCES,Resources,20216,Cost Of Collection,D2513,Hired and Contracted services,36.48,allpay.net Ltd,Hired and contracted services - Allpay Card/Rep/Let Chrg - Vatable,2011440,201905
Rother District Council,30/06/2019,101RESOURCES,Resources,20216,Cost Of Collection,D2513,Hired and Contracted services,17.50,allpay.net Ltd,Hired and contracted services - Allpay Card/Rep/Let Chrg - Vatable,2011441,201905
Rother District Council,30/06/2019,101RESOURCES,Resources,20216,Cost Of Collection,D2513,Hired and Contracted services,43.75,allpay.net Ltd,Hired and contracted services - Allpay Card/Rep/Let Chrg - Vatable,2011442,201905
Rother District Council,30/06/2019,091HOUSING,Housing and Community Services,20137,Car Parks,D2513,Hired and Contracted services,"1,932.19",Jade Security Services Ltd,Hired and contracted services - Cash Security Fees-Car Parks,2010948,201904
Rother District Council,30/06/2019,031RESOURCES,Executive Directors & Corporate Core,20173,Administrative Offices - Town Hall,D2513,Hired and Contracted services,242.90,Data Shredding Services Ltd,Hired and contracted services - Charges-Confidential Office Waste,2011015,201904
Rother District Council,30/06/2019,101RESOURCES,Resources,20222,Accountancy,D2513,Hired and Contracted services,"2,575.00",Embridge Consulting (UK) Ltd,Hired and contracted services - Consultancy Service per Contract,2011606,201905
Rother District Council,30/06/2019,101RESOURCES,Resources,20222,Accountancy,D2513,Hired and Contracted services,"4,525.00",Embridge Consulting (UK) Ltd,Hired and contracted services - Consultancy Service per Contract,2011607,201905
Rother District Council,30/06/2019,041ENVIRON,Environmental Services,32140,EN Wealden Training (WEALDEN ONLY) R + W Partnership,D2513,Hired and Contracted services,130.00,Polegate Town Council,Hired and contracted services - EnvH- Food Safety Contractor,2010856,201904
Rother District Council,30/06/2019,091HOUSING,Housing and Community Services,20108,Bexhill Promenade & Foreshore,B1100,Repairs to Premises,320.00,R French and  Son Ltd,Hired and contracted services - Hire of Skip,2010804,201904
Rother District Council,30/06/2019,071STRAT,Strategy and Planning,20259,Land Charges,D2513,Hired and Contracted services,435.00,Reef Environmental Solutions Ltd,Hired and contracted services - Scanning Services,2010781,201904
Rother District Council,30/06/2019,081ACQUISIT,"Acquisitions, Transformation and Regeneration",20146,West Trading Estate,D2513,Hired and Contracted services,"2,007.50",Clearway Environmental Services (UK) Ltd,Hired and contracted services - Service fee paid,2011919,201906
Rother District Council,30/06/2019,081ACQUISIT,"Acquisitions, Transformation and Regeneration",20146,West Trading Estate,D2513,Hired and Contracted services,"1,140.72",Clearway Environmental Services (UK) Ltd,Hired and contracted services - Service fee paid,2011920,201906
Rother District Council,30/06/2019,041ENVIRON,Environmental Services,32142,EH Taxi and Private Hire Licenses R + W Partnership,D2513,Hired and Contracted services,396.00,DBS The Disclosure and Barring Service,Hired and contracted services - Service fee paid,2011016,201904
Rother District Council,30/06/2019,101RESOURCES,Resources,20209,Corporate management,D2513,Hired and Contracted services,210.00,Jade Security Services Ltd,Hired and contracted services - Service fee paid,2010948,201904
Rother District Council,30/06/2019,091HOUSING,Housing and Community Services,20206,Syrians,D2513,Hired and Contracted services,554.15,247 Transport Solutions Ltd,Hired and contracted services - Syrian Resettlement Programme-Travel,2010786,201904
Rother District Council,30/06/2019,091HOUSING,Housing and Community Services,20206,Syrians,D2513,Hired and Contracted services,495.00,Susanne Evershed,Hired and contracted services - Syrian-Education-Exempt VAT,2011246,201904
Rother District Council,30/06/2019,071STRAT,Strategy and Planning,20247,Service Manager Strategy and Planning,A2202,Recruitment expenses,"1,460.00",Haymarket Media Group Ltd,Recruitment expenses Advertising Vacant Post,2010775,201904
Rother District Council,30/06/2019,091HOUSING,Housing and Community Services,20108,Bexhill Promenade & Foreshore,B1100,Repairs to Premises,"1,902.50",F E Philcox Ltd,Repairs to Premises - Beach maintenance,2011134,201904
Rother District Council,30/06/2019,091HOUSING,Housing and Community Services,20114,Bexhill Parks & Open Spaces,B1100,Repairs to Premises,200.00,F E Philcox Ltd,Repairs to Premises - Pumps Maintenance/ Repairs,2011136,201904
Rother District Council,30/06/2019,081ACQUISIT,"Acquisitions, Transformation and Regeneration",20153,"Elva Business Centre, Bexhill",B1100,Repairs to Premises,65.72,C Brewer and Sons Ltd,Repairs to Premises - Purchase of Materials - Build Maint,2010999,201904
Rother District Council,30/06/2019,081ACQUISIT,"Acquisitions, Transformation and Regeneration",20153,"Elva Business Centre, Bexhill",B1100,Repairs to Premises,22.68,C Brewer and Sons Ltd,Repairs to Premises - Purchase of Materials - Build Maint,2011000,201904
Rother District Council,30/06/2019,091HOUSING,Housing and Community Services,20108,Bexhill Promenade & Foreshore,B1100,Repairs to Premises,50.00,F E Philcox Ltd,Repairs to Premises - Purchase of Materials - Build Maint,2011135,201904
Rother District Council,30/06/2019,091HOUSING,Housing and Community Services,20108,Bexhill Promenade & Foreshore,B1100,Repairs to Premises,86.30,C Brewer and Sons Ltd,Repairs to Premises - Purchase of Materials - Build Maint,2011002,201904
Rother District Council,30/06/2019,091HOUSING,Housing and Community Services,20108,Bexhill Promenade & Foreshore,B1100,Repairs to Premises,71.50,C Brewer and Sons Ltd,Repairs to Premises - Purchase of Materials - Build Maint,2010995,201904
Rother District Council,30/06/2019,091HOUSING,Housing and Community Services,20114,Bexhill Parks & Open Spaces,B1100,Repairs to Premises,13.29,C Brewer and Sons Ltd,Repairs to Premises - Purchase of Materials - Build Maint,2011001,201904
Rother District Council,30/06/2019,091HOUSING,Housing and Community Services,20108,Bexhill Promenade & Foreshore,B1100,Repairs to Premises,13.75,Independent Roofing Supplies Ltd,Repairs to Premises - Purchase of Materials - Build Maint,2010752,201904
Rother District Council,30/06/2019,091HOUSING,Housing and Community Services,20145,Maintenance Services,D1201,Equipment & Materials,19.99,E O Culverwell Ltd,Repairs to Premises - Purchase of Materials - Build Maint,2010969,201904
Rother District Council,30/06/2019,091HOUSING,Housing and Community Services,20114,Bexhill Parks & Open Spaces,B1100,Repairs to Premises,59.98,C Brewer and Sons Ltd,Repairs to Premises Parks - Redecoration Works,2010998,201904
Rother District Council,30/06/2019,081ACQUISIT,"Acquisitions, Transformation and Regeneration",20148,Misc Land & Buildings,B2422,Sewerage,141.00,Cleansing Service Group Ltd,Sewerage Parks- Emptying of Cesspit,2011755,201905
Rother District Council,30/06/2019,071STRAT,Strategy and Planning,20246,Planning Applications,D2519,Statutory Advertising,357.94,Reach Publishing Services Ltd,Statutory Advertising - Planadv-Kent+East Sussex Courier,2010839,201904
Rother District Council,30/06/2019,091HOUSING,Housing and Community Services,20133,Refuse Collection,E2302,Third party payment private contractors,349.91,Biffa Waste Services Ltd,Third party payment private contractors - Commercial Waste Collection Contract,2010868,201904
Rother District Council,30/06/2019,031RESOURCES,Executive Directors & Corporate Core,32132,Joint Waste Contract Client Unit,E2302,Third party payment private contractors,"16,667.00",Kier Services - Environmental,Third party payment private contractors - Joint Waste Exit Costs,2010766,201905
Rother District Council,30/06/2019,091HOUSING,Housing and Community Services,20107,Camber Beach & Foreshore,C1104,Derv,20.30,Allstar Business Solutions,Derv,2011432,201905
Rother District Council,30/06/2019,091HOUSING,Housing and Community Services,20137,Car Parks,D2513,Hired and Contracted services,"2,270.25",Cobalt Telephone Technologies Ltd,Hired and Contracted services,2010826,201904
Rother District Council,30/06/2019,091HOUSING,Housing and Community Services,20200,Housing Needs - HB (Housing Benefit),D2514,Accommodation Costs,"1,500.00",LESSHOMELESS LTD,Accommodation Costs,2010785,201904
Rother District Council,30/06/2019,091HOUSING,Housing and Community Services,20200,Housing Needs - HB (Housing Benefit),D2514,Accommodation Costs,900.00,LESSHOMELESS LTD,Accommodation Costs,2010785,201904
Rother District Council,30/06/2019,091HOUSING,Housing and Community Services,20138,Residual Highway Services,B2611,Contract cleaning,353.10,Abacus Main Ltd,Contract cleaning,2010749,201904
Rother District Council,30/06/2019,091HOUSING,Housing and Community Services,20200,Housing Needs - HB (Housing Benefit),D2514,Accommodation Costs,300.00,Solutions Accommodation Providers Ltd,Accommodation Costs,2010838,201904
Rother District Council,30/06/2019,091HOUSING,Housing and Community Services,20200,Housing Needs - HB (Housing Benefit),D2514,Accommodation Costs,"1,200.00",Solutions Accommodation Providers Ltd,Accommodation Costs,2010838,201904
Rother District Council,30/06/2019,091HOUSING,Housing and Community Services,20200,Housing Needs - HB (Housing Benefit),D2514,Accommodation Costs,420.00,Solutions Accommodation Providers Ltd,Accommodation Costs,2010835,201904
Rother District Council,30/06/2019,091HOUSING,Housing and Community Services,20200,Housing Needs - HB (Housing Benefit),D2514,Accommodation Costs,"1,680.00",Solutions Accommodation Providers Ltd,Accommodation Costs,2010835,201904
Rother District Council,30/06/2019,091HOUSING,Housing and Community Services,20200,Housing Needs - HB (Housing Benefit),D2514,Accommodation Costs,75.40,Solutions Accommodation Providers Ltd,Accommodation Costs,2010837,201904
Rother District Council,30/06/2019,091HOUSING,Housing and Community Services,20200,Housing Needs - HB (Housing Benefit),D2514,Accommodation Costs,301.60,Solutions Accommodation Providers Ltd,Accommodation Costs,2010837,201904
Rother District Council,30/06/2019,091HOUSING,Housing and Community Services,20200,Housing Needs - HB (Housing Benefit),D2514,Accommodation Costs,420.00,Solutions Accommodation Providers Ltd,Accommodation Costs,2010834,201904
Rother District Council,30/06/2019,091HOUSING,Housing and Community Services,20200,Housing Needs - HB (Housing Benefit),D2514,Accommodation Costs,"1,680.00",Solutions Accommodation Providers Ltd,Accommodation Costs,2010834,201904
Rother District Council,30/06/2019,091HOUSING,Housing and Community Services,20200,Housing Needs - HB (Housing Benefit),D2514,Accommodation Costs,420.00,Solutions Accommodation Providers Ltd,Accommodation Costs,2010836,201904
Rother District Council,30/06/2019,091HOUSING,Housing and Community Services,20200,Housing Needs - HB (Housing Benefit),D2514,Accommodation Costs,"1,680.00",Solutions Accommodation Providers Ltd,Accommodation Costs,2010836,201904
Rother District Council,30/06/2019,091HOUSING,Housing and Community Services,20200,Housing Needs - HB (Housing Benefit),D2514,Accommodation Costs,312.00,Solutions Accommodation Providers Ltd,Accommodation Costs,2010832,201904
Rother District Council,30/06/2019,091HOUSING,Housing and Community Services,20200,Housing Needs - HB (Housing Benefit),D2514,Accommodation Costs,"1,248.00",Solutions Accommodation Providers Ltd,Accommodation Costs,2010832,201904
Rother District Council,30/06/2019,091HOUSING,Housing and Community Services,20200,Housing Needs - HB (Housing Benefit),D2514,Accommodation Costs,350.00,Specialist Care UK Group Ltd,Accommodation Costs,2010966,201904
Rother District Council,30/06/2019,091HOUSING,Housing and Community Services,20200,Housing Needs - HB (Housing Benefit),D2513,Hired and Contracted services,105.00,NowMedical,Hired and Contracted services,2010975,201904
Rother District Council,30/06/2019,091HOUSING,Housing and Community Services,20200,Housing Needs - HB (Housing Benefit),D2513,Hired and Contracted services,12.00,NowMedical,Hired and Contracted services,2010974,201904
Rother District Council,30/06/2019,091HOUSING,Housing and Community Services,20204,Housing Administration Account,D2636,Computer Software,"2,625.00",LHS Locata (Housing Services) Ltd,Computer Software,2011350,201905
Rother District Council,30/06/2019,101RESOURCES,Resources,20222,Accountancy,D2513,Hired and Contracted services,"1,021.00",Embridge Consulting (UK) Ltd,Hired and Contracted services,2011007,201904
Rother District Council,30/06/2019,091HOUSING,Housing and Community Services,20145,Maintenance Services,C1104,Derv,43.29,Allstar Business Solutions,Derv,2011432,201905
Rother District Council,30/06/2019,091HOUSING,Housing and Community Services,20145,Maintenance Services,C1104,Derv,70.00,Allstar Business Solutions,Derv,2011432,201905
Rother District Council,01/07/2019,101RESOURCES,Resources,20209,Corporate management,D2513,Hired and Contracted services,"1,289.74",Lloyds Bank,Bank Charges,2011111,201904
Rother District Council,01/07/2019,101RESOURCES,Resources,20209,Corporate management,D2513,Hired and Contracted services,20.03,Lloyds Bank,Bank Charges,2011112,201904
Rother District Council,01/07/2019,101RESOURCES,Resources,20209,Corporate management,D2513,Hired and Contracted services,40.00,Lloyds Bank,Bank Charges,2011113,201904
Rother District Council,01/07/2019,101RESOURCES,Resources,20209,Corporate management,D2513,Hired and Contracted services,737.77,Lloyds Bank,Bank Charges,2011114,201904
Rother District Council,01/07/2019,101RESOURCES,Resources,20209,Corporate management,D2513,Hired and Contracted services,40.00,Lloyds Bank,Bank Charges,2011115,201904
Rother District Council,01/07/2019,101RESOURCES,Resources,20209,Corporate management,D2513,Hired and Contracted services,40.00,Lloyds Bank,Bank Charges,2011116,201904
Rother District Council,01/07/2019,101RESOURCES,Resources,20209,Corporate management,D2513,Hired and Contracted services,40.00,Lloyds Bank,Bank Charges,2011117,201904
Rother District Council,01/07/2019,101RESOURCES,Resources,20209,Corporate management,D2513,Hired and Contracted services,20.61,Lloyds Bank,Bank Charges,2011118,201904
Rother District Council,01/07/2019,101RESOURCES,Resources,20209,Corporate management,D2513,Hired and Contracted services,621.28,Lloyds Bank,Bank Charges,2011119,201904
Rother District Council,01/07/2019,101RESOURCES,Resources,20209,Corporate management,D2513,Hired and Contracted services,20.02,Lloyds Bank,Bank Charges,2011120,201904
Rother District Council,01/07/2019,999NOREPORT,Housing and Community Services,70714,Capital - Grants Halls and Community Projects,N1011,Capital Grants,"1,296.42",Crowhurst Youth Club,Capital Grants Community Grants Scheme,2010858,201904
Rother District Council,01/07/2019,999NOREPORT,Resources,90000,Balance sheet all accounts,P1099,Owed by - Colonnade Bexhill Ltd,89.93,Merchant Rentals Ltd,Colonnade Restaurant Bexhill Ltd - purchases,2010923,201904
Rother District Council,01/07/2019,101RESOURCES,Resources,20239,Computer Services,D2635,Computer Licences,"1,741.69",Ocella Ltd,Computer Licences - Advnce Pay Maint/Upgrading Software,2010751,201904
Rother District Council,01/07/2019,071STRAT,Strategy and Planning,20246,Planning Applications,D2509,Consultants and Other Services,750.00,Rural Planning Ltd,Consultants and other services - Consultants Fees,2010779,201904
Rother District Council,01/07/2019,091HOUSING,Housing and Community Services,20128,Public Conveniences,B2611,Contract cleaning,558.13,Specialist Hygiene Services Ltd,Contract cleaning - Public Conveniences Cleaning Servic,2011053,201904
Rother District Council,01/07/2019,091HOUSING,Housing and Community Services,20128,Public Conveniences,B2611,Contract cleaning,826.03,Specialist Hygiene Services Ltd,Contract cleaning - Public Conveniences Cleaning Servic,2011053,201904
Rother District Council,01/07/2019,091HOUSING,Housing and Community Services,20128,Public Conveniences,B2611,Contract cleaning,730.66,Specialist Hygiene Services Ltd,Contract cleaning - Public Conveniences Cleaning Servic,2011053,201904
Rother District Council,01/07/2019,091HOUSING,Housing and Community Services,20128,Public Conveniences,B2611,Contract cleaning,192.78,Specialist Hygiene Services Ltd,Contract cleaning - Public Conveniences Cleaning Servic,2011053,201904
Rother District Council,01/07/2019,091HOUSING,Housing and Community Services,20128,Public Conveniences,B2611,Contract cleaning,688.31,Specialist Hygiene Services Ltd,Contract cleaning - Public Conveniences Cleaning Servic,2011053,201904
Rother District Council,01/07/2019,091HOUSING,Housing and Community Services,20128,Public Conveniences,B2611,Contract cleaning,495.62,Specialist Hygiene Services Ltd,Contract cleaning - Public Conveniences Cleaning Servic,2011053,201904
Rother District Council,01/07/2019,091HOUSING,Housing and Community Services,20128,Public Conveniences,B2611,Contract cleaning,826.03,Specialist Hygiene Services Ltd,Contract cleaning - Public Conveniences Cleaning Servic,2011053,201904
Rother District Council,01/07/2019,091HOUSING,Housing and Community Services,20128,Public Conveniences,B2611,Contract cleaning,495.62,Specialist Hygiene Services Ltd,Contract cleaning - Public Conveniences Cleaning Servic,2011053,201904
Rother District Council,01/07/2019,091HOUSING,Housing and Community Services,20128,Public Conveniences,B2611,Contract cleaning,605.67,Specialist Hygiene Services Ltd,Contract cleaning - Public Conveniences Cleaning Servic,2011053,201904
Rother District Council,01/07/2019,091HOUSING,Housing and Community Services,20128,Public Conveniences,B2611,Contract cleaning,275.34,Specialist Hygiene Services Ltd,Contract cleaning - Public Conveniences Cleaning Servic,2011053,201904
Rother District Council,01/07/2019,091HOUSING,Housing and Community Services,20128,Public Conveniences,B2611,Contract cleaning,330.41,Specialist Hygiene Services Ltd,Contract cleaning - Public Conveniences Cleaning Servic,2011053,201904
Rother District Council,01/07/2019,091HOUSING,Housing and Community Services,20128,Public Conveniences,B2611,Contract cleaning,578.18,Specialist Hygiene Services Ltd,Contract cleaning - Public Conveniences Cleaning Servic,2011053,201904
Rother District Council,01/07/2019,091HOUSING,Housing and Community Services,20128,Public Conveniences,B2611,Contract cleaning,523.11,Specialist Hygiene Services Ltd,Contract cleaning - Public Conveniences Cleaning Servic,2011053,201904
Rother District Council,01/07/2019,091HOUSING,Housing and Community Services,20128,Public Conveniences,B2611,Contract cleaning,247.77,Specialist Hygiene Services Ltd,Contract cleaning - Public Conveniences Cleaning Servic,2011053,201904
Rother District Council,01/07/2019,091HOUSING,Housing and Community Services,20128,Public Conveniences,B2611,Contract cleaning,550.60,Specialist Hygiene Services Ltd,Contract cleaning - Public Conveniences Cleaning Servic,2011053,201904
Rother District Council,01/07/2019,091HOUSING,Housing and Community Services,20128,Public Conveniences,B2611,Contract cleaning,302.83,Specialist Hygiene Services Ltd,Contract cleaning - Public Conveniences Cleaning Servic,2011053,201904
Rother District Council,01/07/2019,091HOUSING,Housing and Community Services,20128,Public Conveniences,B2611,Contract cleaning,495.62,Specialist Hygiene Services Ltd,Contract cleaning - Public Conveniences Cleaning Servic,2011053,201904
Rother District Council,01/07/2019,091HOUSING,Housing and Community Services,20128,Public Conveniences,B2611,Contract cleaning,730.15,Specialist Hygiene Services Ltd,Contract cleaning - Public Conveniences Cleaning Servic,2011053,201904
Rother District Council,01/07/2019,091HOUSING,Housing and Community Services,20128,Public Conveniences,B2611,Contract cleaning,"1,195.16",Specialist Hygiene Services Ltd,Contract cleaning - Public Conveniences Cleaning Servic,2011053,201904
Rother District Council,01/07/2019,091HOUSING,Housing and Community Services,20128,Public Conveniences,B2611,Contract cleaning,464.97,Specialist Hygiene Services Ltd,Contract cleaning - Public Conveniences Cleaning Servic,2011053,201904
Rother District Council,01/07/2019,091HOUSING,Housing and Community Services,20128,Public Conveniences,B2611,Contract cleaning,912.60,Specialist Hygiene Services Ltd,Contract cleaning - Public Conveniences Cleaning Servic,2011053,201904
Rother District Council,01/07/2019,091HOUSING,Housing and Community Services,20128,Public Conveniences,B2611,Contract cleaning,"1,211.08",Specialist Hygiene Services Ltd,Contract cleaning - Public Conveniences Cleaning Servic,2011053,201904
Rother District Council,01/07/2019,091HOUSING,Housing and Community Services,20128,Public Conveniences,B2611,Contract cleaning,"1,211.08",Specialist Hygiene Services Ltd,Contract cleaning - Public Conveniences Cleaning Servic,2011053,201904
Rother District Council,01/07/2019,091HOUSING,Housing and Community Services,20128,Public Conveniences,B2611,Contract cleaning,"1,721.81",Specialist Hygiene Services Ltd,Contract cleaning - Public Conveniences Cleaning Servic,2011053,201904
Rother District Council,01/07/2019,091HOUSING,Housing and Community Services,20128,Public Conveniences,B2611,Contract cleaning,285.84,Specialist Hygiene Services Ltd,Contract cleaning - Public Conveniences Cleaning Servic,2011053,201904
Rother District Council,01/07/2019,091HOUSING,Housing and Community Services,20128,Public Conveniences,B2611,Contract cleaning,381.21,Specialist Hygiene Services Ltd,Contract cleaning - Public Conveniences Cleaning Servic,2011053,201904
Rother District Council,01/07/2019,091HOUSING,Housing and Community Services,20128,Public Conveniences,B2611,Contract cleaning,317.69,Specialist Hygiene Services Ltd,Contract cleaning - Public Conveniences Cleaning Servic,2011053,201904
Rother District Council,01/07/2019,091HOUSING,Housing and Community Services,20128,Public Conveniences,B2611,Contract cleaning,349.45,Specialist Hygiene Services Ltd,Contract cleaning - Public Conveniences Cleaning Servic,2011053,201904
Rother District Council,01/07/2019,091HOUSING,Housing and Community Services,20128,Public Conveniences,B2611,Contract cleaning,381.21,Specialist Hygiene Services Ltd,Contract cleaning - Public Conveniences Cleaning Servic,2011053,201904
Rother District Council,01/07/2019,091HOUSING,Housing and Community Services,20128,Public Conveniences,B2611,Contract cleaning,285.84,Specialist Hygiene Services Ltd,Contract cleaning - Public Conveniences Cleaning Servic,2011053,201904
Rother District Council,01/07/2019,999NOREPORT,Resources,90000,Balance sheet all accounts,R2335,Cycle Scheme,412.50,Cycle Solutions (Cycle to Work) Ltd,Cycle Scheme Purchase Cycles re Sacrifice Scheme,2011009,201904
Rother District Council,01/07/2019,091HOUSING,Housing and Community Services,20116,Rural Open Spaces & Amenities,D2923,Grants made,750.00,Battle Town Council,Grants made - Parks-Battle in Bloom,2010747,201904
Rother District Council,01/07/2019,031RESOURCES,Executive Directors & Corporate Core,20171,Human Resources,D2513,Hired and Contracted services,103.16,Computershare Voucher Services,Hired and contracted services - Child Care Voucher Service Charge,2010889,201904
Rother District Council,01/07/2019,101RESOURCES,Resources,20216,Cost Of Collection,D2513,Hired and Contracted services,329.00,Her Majestys Court Service,Hired and contracted services - Court Costs/Fees,2011172,201904
Rother District Council,01/07/2019,021CORP,Corporate Services & Human Resources,20167,European Elections,D2513,Hired and Contracted services,"1,094.30",Phase 3 Consulting Ltd,Hired and contracted services - election misc payment-net,2011036,201904
Rother District Council,01/07/2019,071STRAT,Strategy and Planning,20255,Local Development Framework,D2513,Hired and Contracted services,"5,576.66",Mrs Charlotte Glancy,Hired and contracted services - LDF Consultancy,2010880,201904
Rother District Council,01/07/2019,031RESOURCES,Executive Directors & Corporate Core,20174,Administrative Offices,D2513,Hired and Contracted services,68.35,Clearwater Technology Ltd,Hired and contracted services - Legionella Sampling and Monitoring,2010803,201904
Rother District Council,01/07/2019,101RESOURCES,Resources,20209,Corporate management,D2513,Hired and Contracted services,20.09,Merchant Rentals Ltd,Hired and contracted services - Streamline Machine-Rental,2010924,201904
Rother District Council,01/07/2019,091HOUSING,Housing and Community Services,20206,Syrians,D2513,Hired and Contracted services,267.48,Sanctuary Housing Association,Hired and contracted services - Syrian Resettlement Programme-Rent,2010806,201904
Rother District Council,01/07/2019,101RESOURCES,Resources,20240,Printing Services,D2418,Photocopying Charges,378.97,Canon (UK) Ltd,Photocopy Paper by external supplier - Wide Format Consumables,2010849,201904
Rother District Council,01/07/2019,031RESOURCES,Executive Directors & Corporate Core,20175,Administrative Offices - T.H. Annex (NOT CHP),B1100,Repairs to Premises,434.62,ADT Fire and  Security Plc,Repairs to Premises - Intruder Alarm System Monitor/Maint,2011161,201904
